Body Name,Service Area,Expenses Type,Invoice Payment Date,Transaction Number,Net Amount,Supplier Name
Manchester City Council,Chief Executives,Advertising,01.08.2011,5100479476,900,MediaCo Outdoor Limited
Manchester City Council,Chief Executives,Advertising,01.08.2011,5100479474,900,MediaCo Outdoor Limited
Manchester City Council,Chief Executives,Advertising,01.08.2011,5100471140,"7,820.45",MEN Media Ltd
Manchester City Council,Chief Executives,Advertising,01.08.2011,5100471140,"4,117.23",MEN Media Ltd
Manchester City Council,Chief Executives,Advertising,01.08.2011,5100471137,"4,060.29",MEN Media Ltd
Manchester City Council,Chief Executives,Advertising,01.08.2011,5100471137,"2,321.17",MEN Media Ltd
Manchester City Council,Childrens Services,Agency staff provision,01.08.2011,5100471188,"4,974.52",Hays Personnel
Manchester City Council,Chief Executives,Agency staff provision,01.08.2011,5100478447,"1,600.00",Consult R Us Ltd
Manchester City Council,Chief Executives,Agency staff provision,01.08.2011,5100471104,"6,830.59",Semester Recruitment Ltd
Manchester City Council,Hospitality + Trading Services,Building Materials for direct delivery,01.08.2011,1902731900,816.98,Brake Bros Foodservice Ltd
Manchester City Council,Hospitality + Trading Services,Building Materials for direct delivery,01.08.2011,1902731729,542.21,Brake Bros Foodservice Ltd
Manchester City Council,Hospitality + Trading Services,Building Materials for direct delivery,01.08.2011,1902731874,509.71,Brake Bros Foodservice Ltd
Manchester City Council,Hospitality + Trading Services,Building Materials for direct delivery,01.08.2011,1902731877,500,Brake Bros Foodservice Ltd
Manchester City Council,Hospitality + Trading Services,Building Materials for direct delivery,01.08.2011,5100471095,"1,232.50",Robert Horne Group
Manchester City Council,Housing General Fund,Building Works,01.08.2011,1902682735,"1,800.00",Redacted Personal Information
Manchester City Council,Hospitality + Trading Services,Catering Provisions,01.08.2011,1902731833,"1,129.48",Brake Bros Foodservice Ltd
Manchester City Council,Hospitality + Trading Services,Catering Provisions,01.08.2011,1902731915,"1,121.64",Brake Bros Foodservice Ltd
Manchester City Council,Hospitality + Trading Services,Catering Provisions,01.08.2011,1902732033,959.66,Brake Bros Foodservice Ltd
Manchester City Council,Hospitality + Trading Services,Catering Provisions,01.08.2011,1902731942,933.06,Brake Bros Foodservice Ltd
Manchester City Council,Hospitality + Trading Services,Catering Provisions,01.08.2011,1902731803,665.91,Brake Bros Foodservice Ltd
Manchester City Council,Hospitality + Trading Services,Catering Provisions,01.08.2011,1902732026,546.04,Brake Bros Foodservice Ltd
Manchester City Council,Hospitality + Trading Services,Catering Provisions,01.08.2011,1902731811,501.76,Brake Bros Foodservice Ltd
Manchester City Council,Hospitality + Trading Services,Catering Provisions,01.08.2011,1902731990,716,Coca-Cola & Enterprises Ltd
Manchester City Council,Hospitality + Trading Services,Catering Provisions,01.08.2011,1902731820,613.86,Ralph Livesey Ltd
Manchester City Council,Chief Executives,Cleaning Equipment and Materials,01.08.2011,1700021908,-514.84,Manchester Airport Plc
Manchester City Council,Hospitality + Trading Services,ClothsUniformLaundry,01.08.2011,1902731940,608.61,Arco Group Ltd
Manchester City Council,Hospitality + Trading Services,ClothsUniformLaundry,01.08.2011,5100471195,"4,452.45",E & E Workwear
Manchester City Council,Hospitality + Trading Services,Compensation Payments,01.08.2011,1902730413,"5,800.00",Simpsons Solicitors
Manchester City Council,Adult Social Care,Compensation Payments,01.08.2011,1902639969,"20,000.00",J Arnold Hancock Solicitors
Manchester City Council,Highways Services,Compensation Payments,01.08.2011,1902639421,"1,300.00",Redacted Personal Information
Manchester City Council,Highways Services,Compensation Payments,01.08.2011,1902730598,"1,000.00",The Clarke Partnership
Manchester City Council,Manchester Leisure,Consultants Fees,01.08.2011,5100479431,"5,350.00",Ekos Consulting (Uk) Ltd
Manchester City Council,Adult Social Care,Electricity,01.08.2011,1902730458,"1,837.36",E-On
Manchester City Council,Manchester Leisure,Equipment,01.08.2011,1902659980,"1,719.19",World of water
Manchester City Council,Hospitality + Trading Services,Equipment,01.08.2011,5100471114,883,Bradburn Equipment Limited
Manchester City Council,Adult Social Care,Equipment,01.08.2011,5100471144,"1,008.71",Adt Fire & Security Plc
Manchester City Council,Childrens Services,Equipment,01.08.2011,5100471141,"15,000.00",LMS Music Supplies
Manchester City Council,Chief Executives,Equipment,01.08.2011,1902690244,"1,372.40",R.E.V. Gomm Ltd
Manchester City Council,Hospitality + Trading Services,Funeral and coroner related services,01.08.2011,1902690196,760,Redacted Personal Information
Manchester City Council,Hospitality + Trading Services,Funeral and coroner related services,01.08.2011,1902690194,760,Redacted Personal Information
Manchester City Council,Childrens Services,Furniture,01.08.2011,5100471156,652.02,The Furnishing Service Ltd
Manchester City Council,Childrens Services,Grant and subscriptions awarded,01.08.2011,1902731018,765,Benchill Community Centre
Manchester City Council,Chief Executives,Grant and subscriptions awarded,01.08.2011,1902638149,"2,693.30",Blackley In Bloom
Manchester City Council,Hospitality + Trading Services,Hire of Equipment,01.08.2011,5100471114,697,Bradburn Equipment Limited
Manchester City Council,Hospitality + Trading Services,Hire of Machinery,01.08.2011,5100471237,"8,541.97",Ashtead Plant Hire
Manchester City Council,Hospitality + Trading Services,Hire of Machinery,01.08.2011,5100471229,"8,165.46",Ashtead Plant Hire
Manchester City Council,Environment and Operations,I T Provision,01.08.2011,5100471086,"4,178.77",Lalpac Ltd
Manchester City Council,Adult Social Care,I T Provision,01.08.2011,5100471122,"2,605.60",Panztel (Uk) Limited
Manchester City Council,Chief Executives,I T Provision,01.08.2011,5100478025,"2,830.00",Amtec Computer Corporation Ltd
Manchester City Council,Chief Executives,I T Provision,01.08.2011,5100471151,"2,400.00",Nectar Creative Ltd
Manchester City Council,Insurance Fund,Insurance,01.08.2011,1902683033,"6,100.00",Leo Abse & Cohen Sol
Manchester City Council,Hospitality + Trading Services,Internal Repairs and Maintenance for buildings,01.08.2011,5100471113,575,Bradburn Equipment Limited
Manchester City Council,Childrens Services,Landline Telephone,01.08.2011,5100479360,"2,440.00",Intrinsic Technology Limited
Manchester City Council,Highways Services,Compensation Payments,01.08.2011,1902690734,"9,192.08",Lyons Wilson Solicitors
Manchester City Council,Childrens Services,Payments for services,01.08.2011,5100471162,"2,218.00",Manchester Settlement
Manchester City Council,Childrens Services,Payments for services,01.08.2011,5100471160,"1,745.85",The Together Trust
Manchester City Council,Childrens Services,Payments for services,01.08.2011,5100471161,"1,745.85",The Together Trust
Manchester City Council,Chief Executives,Payments for services,01.08.2011,5100471097,614,Priory Healthcare
Manchester City Council,Hospitality + Trading Services,Payments to Sub-Contractors,01.08.2011,5100471101,"50,000.00",Rosgal Ltd
Manchester City Council,Housing Revenue Account,Postage,01.08.2011,1902703304,678.07,Royal Mail Group Ltd
Manchester City Council,Manchester Leisure,Printing,01.08.2011,1902643853,"1,634.00",Orion Secure Print Systems
Manchester City Council,Chief Executives,Printing,01.08.2011,5100472714,"7,105.00",Hudson & Pearson
Manchester City Council,Childrens Services,Private Finance and Public Private partnership initiatives,01.08.2011,5100479413,"44,992.25",Manchester School Services Limited
Manchester City Council,Childrens Services,Private Finance and Public Private partnership initiatives,01.08.2011,5100479426,"1,804.00",Manchester School Services Limited
Manchester City Council,Childrens Services,Professional Services Corriculum,01.08.2011,5100478042,"317,205.15",Better Choices Ltd
Manchester City Council,Manchester Leisure,Proffesional fees,01.08.2011,1902644105,"1,704.98",Emergency Training UK Limited
Manchester City Council,Manchester Leisure,Proffesional fees,01.08.2011,1902646063,523.5,NAD Services Ltd
Manchester City Council,Manchester Leisure,Proffesional fees,01.08.2011,1902648074,"61,618.09",NBA Properties Inc.
Manchester City Council,Childrens Services,Proffesional fees,01.08.2011,5100471139,648,Northern Way Properties Limited
Manchester City Council,Childrens Services,Proffesional fees,01.08.2011,5100471138,-648,Northern Way Properties Limited
Manchester City Council,Corporate Services,Proffesional fees,01.08.2011,5100472693,"3,928.00",Victoria Baths Trust
Manchester City Council,Chief Executives,Proffesional fees,01.08.2011,1902643700,800,Redacted Personal Information
Manchester City Council,Regeneration Finance,Proffesional fees,01.08.2011,5100471118,"2,666.66",Development & Construction Solution
Manchester City Council,Regeneration Finance,Proffesional fees,01.08.2011,1902660454,"5,000.00",Puma Events  & Training
Manchester City Council,Hospitality + Trading Services,Purchase of stores for re-distribution,01.08.2011,5100471054,"1,156.48",Buildbase Ltd aka Axon Buildbase
Manchester City Council,Hospitality + Trading Services,Purchase of stores for re-distribution,01.08.2011,5100471119,"1,027.00",Tarmac Central Ltd
Manchester City Council,Childrens Services,Refuse Collection,01.08.2011,1902643596,559.82, Phs All Clear Limited
Manchester City Council,Highways Services,Rents,01.08.2011,5100477726,"1,534.00",BCL
Manchester City Council,Childrens Services,Subsistence and Conference Expenses,01.08.2011,1902643735,"1,359.00",Slater Baker Limited
Manchester City Council,Chief Executives,Supported Accommodation,01.08.2011,5100471145,"4,120.53",City Of Salford
Manchester City Council,Housing Revenue Account,Surplus property Acquisitions,01.08.2011,1902690255,"5,600.00",Redacted Personal Information
Manchester City Council,Housing Revenue Account,Surplus property Acquisitions,01.08.2011,1902671813,"6,070.00",Redacted Personal Information
Manchester City Council,Housing Revenue Account,Surplus property Acquisitions,01.08.2011,1902690227,"5,600.00",Redacted Personal Information
Manchester City Council,Housing Revenue Account,Surplus property Acquisitions,01.08.2011,1902690702,"6,020.00",Redacted Personal Information
Manchester City Council,Childrens Services,Third party payments relating to Voluntary Organisations,01.08.2011,5100471124,"34,417.73",The Big Life Company
Manchester City Council,Regeneration Finance,Training and Development,01.08.2011,5100471093,643,Trinity College London
Manchester City Council,Hospitality + Trading Services,Vehicle Parts/Spares,01.08.2011,5100471240,"1,558.60",F T Factors
Manchester City Council,Hospitality + Trading Services,Vehicle Parts/Spares,01.08.2011,5100471230,"1,521.30",F T Factors
Manchester City Council,Hospitality + Trading Services,Vehicle Parts/Spares,01.08.2011,5100471241,"1,129.40",F T Factors
Manchester City Council,Hospitality + Trading Services,Vehicle Parts/Spares,01.08.2011,5100471107,"4,172.78",Stapletons Tyre Services
Manchester City Council,Adult Social Care,Window Cleaning,01.08.2011,5100471092,600,L.M.J.Windows Ltd
Manchester City Council,Manchester Leisure,Works and associated costs for Land and Buildings,01.08.2011,5100471100,"2,136.00",Scott Wilson Ltd
Manchester City Council,Manchester City Galleries,Works and associated costs for Land and Buildings,01.08.2011,5100471125,"4,475.00",Jeffay Furniture Ltd
Manchester City Council,Childrens Services,Agency staff provision,02.08.2011,5100471361,"1,254.00",PULSE
Manchester City Council,Childrens Services,Agency staff provision,02.08.2011,5100471362,"1,254.00",PULSE
Manchester City Council,Chief Executives,Agency staff provision,02.08.2011,5100471596,"1,260.00",Michael Page International
Manchester City Council,Chief Executives,Agency staff provision,02.08.2011,5100471598,"1,170.00",Michael Page International
Manchester City Council,Hospitality + Trading Services,Building Materials for direct delivery,02.08.2011,5100471425,899.2,Cemex (Uk) Shared Service Centre
Manchester City Council,Hospitality + Trading Services,Building Materials for direct delivery,02.08.2011,5100471442,774.78,Cemex (Uk) Shared Service Centre
Manchester City Council,Hospitality + Trading Services,Building Materials for direct delivery,02.08.2011,5100471428,763.73,Cemex (Uk) Shared Service Centre
Manchester City Council,Hospitality + Trading Services,Building Materials for direct delivery,02.08.2011,5100471429,736.45,Cemex (Uk) Shared Service Centre
Manchester City Council,Hospitality + Trading Services,Building Materials for direct delivery,02.08.2011,5100471419,727.5,Cemex (Uk) Shared Service Centre
Manchester City Council,Hospitality + Trading Services,Building Materials for direct delivery,02.08.2011,5100471434,723.73,Cemex (Uk) Shared Service Centre
Manchester City Council,Hospitality + Trading Services,Building Materials for direct delivery,02.08.2011,5100471456,720.46,Cemex (Uk) Shared Service Centre
Manchester City Council,Hospitality + Trading Services,Building Materials for direct delivery,02.08.2011,5100471433,644.03,Cemex (Uk) Shared Service Centre
Manchester City Council,Hospitality + Trading Services,Building Materials for direct delivery,02.08.2011,5100471443,632.96,Cemex (Uk) Shared Service Centre
Manchester City Council,Hospitality + Trading Services,Building Materials for direct delivery,02.08.2011,5100471444,631.95,Cemex (Uk) Shared Service Centre
Manchester City Council,Hospitality + Trading Services,Building Materials for direct delivery,02.08.2011,5100471435,622.9,Cemex (Uk) Shared Service Centre
Manchester City Council,Hospitality + Trading Services,Building Materials for direct delivery,02.08.2011,5100471451,622.9,Cemex (Uk) Shared Service Centre
Manchester City Council,Hospitality + Trading Services,Building Materials for direct delivery,02.08.2011,5100471427,617.28,Cemex (Uk) Shared Service Centre
Manchester City Council,Hospitality + Trading Services,Building Materials for direct delivery,02.08.2011,5100471431,616.86,Cemex (Uk) Shared Service Centre
Manchester City Council,Hospitality + Trading Services,Building Materials for direct delivery,02.08.2011,5100471412,611.83,Cemex (Uk) Shared Service Centre
Manchester City Council,Hospitality + Trading Services,Building Materials for direct delivery,02.08.2011,5100471416,607.81,Cemex (Uk) Shared Service Centre
Manchester City Council,Hospitality + Trading Services,Building Materials for direct delivery,02.08.2011,5100471446,594.95,Cemex (Uk) Shared Service Centre
Manchester City Council,Hospitality + Trading Services,Building Materials for direct delivery,02.08.2011,5100471422,592.73,Cemex (Uk) Shared Service Centre
Manchester City Council,Hospitality + Trading Services,Building Materials for direct delivery,02.08.2011,5100471440,570.6,Cemex (Uk) Shared Service Centre
Manchester City Council,Hospitality + Trading Services,Building Materials for direct delivery,02.08.2011,5100471438,569.59,Cemex (Uk) Shared Service Centre
Manchester City Council,Hospitality + Trading Services,Building Materials for direct delivery,02.08.2011,5100471417,548.47,Cemex (Uk) Shared Service Centre
Manchester City Council,Hospitality + Trading Services,Building Materials for direct delivery,02.08.2011,5100471430,528.36,Cemex (Uk) Shared Service Centre
Manchester City Council,Hospitality + Trading Services,Building Materials for direct delivery,02.08.2011,5100471426,524.61,Cemex (Uk) Shared Service Centre
Manchester City Council,Hospitality + Trading Services,Building Materials for direct delivery,02.08.2011,5100471421,521.31,Cemex (Uk) Shared Service Centre
Manchester City Council,Hospitality + Trading Services,Building Materials for direct delivery,02.08.2011,5100471420,514.27,Cemex (Uk) Shared Service Centre
Manchester City Council,Childrens Services,Building Works,02.08.2011,5100471406,"-19,078.62",Laing O'Rourke Construction Ltd
Manchester City Council,Housing Revenue Account,Concessionary Decorating ,02.08.2011,5100471299,"1,960.69",W H Morris Ltd
Manchester City Council,Manchester Leisure,Consultants Fees,02.08.2011,5100456318,"2,621.71",Davis Langdon
Manchester City Council,Chief Executives,Consultants Fees,02.08.2011,5100471526,"2,500.00",DTZ Debenham Tie Leung
Manchester City Council,Regeneration Finance,Consultants Fees,02.08.2011,5100471526,"10,000.00",DTZ Debenham Tie Leung
Manchester City Council,Regeneration Finance,Consultants Fees,02.08.2011,5100471396,"10,450.00",Redacted Personal Information
Manchester City Council,Manchester Leisure,Contract Cleaning External,02.08.2011,5100471252,"6,039.93",Elite Cleaning & Environ. Services
Manchester City Council,Manchester Leisure,Contract Cleaning External,02.08.2011,5100471258,"6,039.93",Elite Cleaning & Environ. Services
Manchester City Council,Hospitality + Trading Services,Courier Costs,02.08.2011,5100471402,837.04,Scalamander Business Services Ltd
Manchester City Council,Hospitality + Trading Services,Courier Costs,02.08.2011,5100471403,837.04,Scalamander Business Services Ltd
Manchester City Council,Environment and Operations,Equipment,02.08.2011,5100471275,"82,295.50",Unicorn Containers Ltd
Manchester City Council,Adult Social Care,Equipment,02.08.2011,5100471575,"1,599.60",Nottingham Rehab Supplies
Manchester City Council,Adult Social Care,Equipment,02.08.2011,5100471453,"1,940.60",Prism UK Medical Ltd t/a Carefree
Manchester City Council,Adult Social Care,Equipment,02.08.2011,5100471472,517.08,Prism UK Medical Ltd t/a Carefree
Manchester City Council,Adult Social Care,Equipment,02.08.2011,5100471259,778,Roma Medical Ltd
Manchester City Council,Childrens Services,Equipment,02.08.2011,5100471514,"6,337.85",LMS Music Supplies
Manchester City Council,Manchester Leisure,External repairs and maintenance for buildings,02.08.2011,5100471560,"1,331.00",GB Building Solutions Ltd
Manchester City Council,Hospitality + Trading Services,External repairs and maintenance for buildings,02.08.2011,5100471325,"2,987.20",Amtoll Ltd
Manchester City Council,Hospitality + Trading Services,External repairs and maintenance for buildings,02.08.2011,5100471326,"2,374.30",Amtoll Ltd
Manchester City Council,Hospitality + Trading Services,External repairs and maintenance for buildings,02.08.2011,5100471329,"2,244.23",Amtoll Ltd
Manchester City Council,Adult Social Care,Grant and subscriptions awarded,02.08.2011,5100471537,800,"Northern Counties Housing Ass Ltd,."
Manchester City Council,Childrens Services,Grant and subscriptions awarded,02.08.2011,1902731031,765,Benchill Community Centre
Manchester City Council,Childrens Services,Grant and subscriptions awarded,02.08.2011,5100471518,"18,579.48",Wai Yin Chinese Women Society
Manchester City Council,Childrens Services,Grant and subscriptions awarded,02.08.2011,5100471260,"2,785.00",Youth Project @ Apostles &
Manchester City Council,Chief Executives,Grant and subscriptions awarded,02.08.2011,5100471281,"16,416.75",Manchester Care & Repair Ltd
Manchester City Council,Regeneration Finance,Grant and subscriptions awarded,02.08.2011,5100471287,"9,253.08",Zion Arts Centre Ltd
Manchester City Council,Highways Services,Highway Maintenance,02.08.2011,5100471391,"5,013.82",GMCA
Manchester City Council,Regeneration Finance,Hire of Premises,02.08.2011,5100471562,"13,583.44",The Manchester College
Manchester City Council,Environment and Operations,I T Provision,02.08.2011,5100471190,727,Mouchel Limited
Manchester City Council,Environment and Operations,I T Provision,02.08.2011,5100471191,600,Ncc Services Limited
Manchester City Council,Insurance Fund,Insurance,02.08.2011,1902719446,"10,338.38",Simpsons Solicitors
Manchester City Council,Regeneration Finance,Legal Fees,02.08.2011,5100471312,"3,500.00",Addleshaw Goddard Solicitors
Manchester City Council,Environment and Operations,Licences Purchase,02.08.2011,5100471375,"7,410.00",Sweet & Maxwell Ltd
Manchester City Council,Chief Executives,Occupational Health services,02.08.2011,5100471228,"3,910.00",Healthwork Ltd
Manchester City Council,Chief Executives,Occupational Health services,02.08.2011,5100471295,"2,200.00",Healthwork Ltd
Manchester City Council,Manchester Leisure,Payments for services,02.08.2011,5100471394,600,Salford City Reds Foundation
Manchester City Council,Manchester Leisure,Payments for services,02.08.2011,5100471549,500,Timperley Lacrosse Club
Manchester City Council,Manchester Leisure,Payments for services,02.08.2011,5100471530,"1,498.00",W S Education
Manchester City Council,Manchester Leisure,Payments for services,02.08.2011,5100471379,"1,498.00",W S Education
Manchester City Council,Chief Executives,Printing,02.08.2011,5100471392,-591,Tangent Print service
Manchester City Council,Housing Revenue Account,Private Finance and Public Private partnership initiatives,02.08.2011,5100471592,"870,000.00",Grove Village Ltd
Manchester City Council,Housing Revenue Account,Private Finance and Public Private partnership initiatives,02.08.2011,5100471593,"5,774.00",Renaissance Miles Platting Ltd
Manchester City Council,Manchester Leisure,Proffesional fees,02.08.2011,5100462371,"5,500.00",Bauer Radio Ltd
Manchester City Council,Manchester Leisure,Proffesional fees,02.08.2011,5100471595,"2,016.00",Clearview Event Services Limited
Manchester City Council,Manchester Leisure,Proffesional fees,02.08.2011,5100471197,"10,000.00",International Sport Group Limited
Manchester City Council,Environment and Operations,Proffesional fees,02.08.2011,5100471186,"-8,305.71",Daly Drains Ltd
Manchester City Council,Adult Social Care,Proffesional fees,02.08.2011,1902731017,"6,908.00",Criminal Records Bureau
Manchester City Council,Childrens Services,Proffesional fees,02.08.2011,5100471524,"18,000.00",Lighthouse Childcare Centre
Manchester City Council,Childrens Services,Proffesional fees,02.08.2011,5100471201,"2,525.05",Safehands Network Ltd
Manchester City Council,Hospitality + Trading Services,Purchase of stores for re-distribution,02.08.2011,5100471175,"1,758.00",Ecomix Concrete Ltd
Manchester City Council,Hospitality + Trading Services,Purchase of stores for re-distribution,02.08.2011,5100471176,"1,085.00",Ecomix Concrete Ltd
Manchester City Council,Hospitality + Trading Services,Purchase of stores for re-distribution,02.08.2011,5100471179,700,Ecomix Concrete Ltd
Manchester City Council,Hospitality + Trading Services,Purchase of stores for re-distribution,02.08.2011,5100471177,560,Ecomix Concrete Ltd
Manchester City Council,Hospitality + Trading Services,Purchase of stores for re-distribution,02.08.2011,5100471168,501,Tarmac Central Ltd
Manchester City Council,Adult Social Care,Rates,02.08.2011,5100471511,"17,833.68",Mosscare Housing Ltd
Manchester City Council,Adult Social Care,Rents,02.08.2011,5100471515,"17,833.68",Mosscare Housing Ltd
Manchester City Council,Corporate Services,Rents,02.08.2011,5100471284,"1,979.54",Zion Arts Centre Ltd
Manchester City Council,Corporate Services,Rents,02.08.2011,5100471286,"1,979.54",Zion Arts Centre Ltd
Manchester City Council,Regeneration Finance,Rents,02.08.2011,5100471562,"36,590.75",The Manchester College
Manchester City Council,Childrens Services,Supported Accommodation,02.08.2011,5100471248,600,First step Accomadation Ltd
Manchester City Council,Childrens Services,Supported Accommodation,02.08.2011,5100471254,600,First step Accomadation Ltd
Manchester City Council,Childrens Services,Supported Accommodation,02.08.2011,5100471256,600,First step Accomadation Ltd
Manchester City Council,Childrens Services,Supported Accommodation,02.08.2011,5100471559,829.99,Victoria Park Independence Proj Ltd
Manchester City Council,Childrens Services,Supported Accommodation,02.08.2011,5100471554,625.03,Victoria Park Independence Proj Ltd
Manchester City Council,Childrens Services,Supported Accommodation,02.08.2011,5100471556,625.03,Victoria Park Independence Proj Ltd
Manchester City Council,Childrens Services,Supported Accommodation,02.08.2011,5100471566,625.03,Victoria Park Independence Proj Ltd
Manchester City Council,Childrens Services,Supported Accommodation,02.08.2011,5100471567,625.03,Victoria Park Independence Proj Ltd
Manchester City Council,Housing General Fund,Surplus property Fees,02.08.2011,1902728970,"4,830.00",Hockenhulls
Manchester City Council,Chief Executives,Third party payments relating to Voluntary Organisations,02.08.2011,5100471523,"5,512.50",Better Choices Ltd
Manchester City Council,Manchester Leisure,Third party payments to other Local Authorities,02.08.2011,5100471532,"3,200.00",Open University
Manchester City Council,Regeneration Finance,Third party payments to other Local Authorities,02.08.2011,5100471265,"5,630.00",Open Awards
Manchester City Council,Regeneration Finance,Third party payments to other Local Authorities,02.08.2011,5100471269,"3,707.00",Open Awards
Manchester City Council,Regeneration Finance,Third party payments to other Local Authorities,02.08.2011,5100471272,"3,357.00",Open Awards
Manchester City Council,Regeneration Finance,Third party payments to other Local Authorities,02.08.2011,5100471277,"1,272.00",Open Awards
Manchester City Council,Regeneration Finance,Third party payments to other Local Authorities,02.08.2011,5100471274,"1,000.00",Open Awards
Manchester City Council,Regeneration Finance,Third party payments to other Local Authorities,02.08.2011,5100471276,920,Open Awards
Manchester City Council,Childrens Services,Training and Development,02.08.2011,5100471381,"1,350.00",House Of Grumpy Ltd
Manchester City Council,Childrens Services,Training and Development,02.08.2011,5100471384,"1,200.00",House Of Grumpy Ltd
Manchester City Council,Childrens Services,Training and Development,02.08.2011,5100471385,900,House Of Grumpy Ltd
Manchester City Council,Childrens Services,Transport Coach Hire,02.08.2011,5100471495,"-3,525.50",Lady Cars
Manchester City Council,Manchester Leisure,Works and associated costs for Land and Buildings,02.08.2011,5100471285,"12,000.00",Scott Wilson Ltd
Manchester City Council,Manchester Leisure,Works and associated costs for Land and Buildings,02.08.2011,5100471288,"-2,187.48",Scott Wilson Ltd
Manchester City Council,Childrens Services,Works and associated costs for Land and Buildings,02.08.2011,5100471372,"66,921.00",Harry Fairclough Construction Ltd
Manchester City Council,Corporate Services,Works and associated costs for Land and Buildings,02.08.2011,5100471538,"6,700.00",Davis Langdon
Manchester City Council,Corporate Services,Works and associated costs for Land and Buildings,02.08.2011,5100471539,"3,781.19",Davis Langdon
Manchester City Council,Corporate Services,Works and associated costs for Land and Buildings,02.08.2011,5100471538,"12,500.00",Davis Langdon
Manchester City Council,Corporate Services,Works and associated costs for Land and Buildings,02.08.2011,5100471539,"3,781.19",Davis Langdon
Manchester City Council,Corporate Services,Works and associated costs for Land and Buildings,02.08.2011,5100471268,"1,102.00",Edmond Shipway
Manchester City Council,Corporate Services,Works and associated costs for Land and Buildings,02.08.2011,5100471273,"1,213.00",Edmond Shipway
Manchester City Council,Chief Executives,Works and associated costs for Land and Buildings,02.08.2011,5100456318,"2,378.29",Davis Langdon
Manchester City Council,Childrens Services,Agency staff provision,03.08.2011,5100471779,"35,000.00",Black Health Agency
Manchester City Council,Chief Executives,Agency staff provision,03.08.2011,5100471726,981.02,Blue Arrow Ltd
Manchester City Council,Chief Executives,Agency staff provision,03.08.2011,5100471291,"6,487.70",Semester Recruitment Ltd
Manchester City Council,Chief Executives,Agency staff provision,03.08.2011,5100471290,"1,215.68",Semester Recruitment Ltd
Manchester City Council,Childrens Services,Building Works,03.08.2011,5100471041,"1,116.00",Egan Reid Stationery Co Ltd
Manchester City Council,Childrens Services,Building Works,03.08.2011,5100471565,872.44,Intrinsic Technology Limited
Manchester City Council,Housing General Fund,Building Works,03.08.2011,1902732383,505,Redacted Personal Information
Manchester City Council,Housing General Fund,Building Works,03.08.2011,1902732067,"2,250.00",Redacted Personal Information T/A Mack 4
Manchester City Council,Housing General Fund,Building Works,03.08.2011,1902732055,"4,353.00",Stannah Lift Services Ltd
Manchester City Council,Housing General Fund,Building Works,03.08.2011,1902732057,"4,295.00",Stannah Lift Services Ltd
Manchester City Council,Housing General Fund,Building Works,03.08.2011,1902732056,"4,113.00",Stannah Lift Services Ltd
Manchester City Council,Housing General Fund,Building Works,03.08.2011,1902732058,"1,873.00",Stannah Lift Services Ltd
Manchester City Council,Housing General Fund,Building Works,03.08.2011,1902732054,"1,677.00",Stannah Lift Services Ltd
Manchester City Council,Hospitality + Trading Services,ClothsUniformLaundry,03.08.2011,5100471757,"1,395.97",Stalbridge Linen Services Ltd
Manchester City Council,Highways Services,Contract Cleaning External,03.08.2011,5100460011,"2,745.82",Sodexho Ltd
Manchester City Council,Regeneration Finance,Electricity,03.08.2011,5100471924,"6,231.06",The Manchester College
Manchester City Council,Manchester Leisure,Equipment,03.08.2011,5100471812,"1,146.30",Maudesport Limited
Manchester City Council,Hospitality + Trading Services,Equipment,03.08.2011,5100471614,"-5,780.40",Neopost Ltd (Consumables)
Manchester City Council,Adult Social Care,Equipment,03.08.2011,5100471709,"1,080.00",Invacare Limited
Manchester City Council,Adult Social Care,Equipment,03.08.2011,5100471588,"1,121.90",Lisclare
Manchester City Council,Adult Social Care,Equipment,03.08.2011,5100471621,750,Mangar International Ltd
Manchester City Council,Adult Social Care,Equipment,03.08.2011,5100471620,-900,Mangar International Ltd
Manchester City Council,Adult Social Care,Equipment,03.08.2011,5100471577,"1,089.50",Nottingham Rehab Supplies
Manchester City Council,Adult Social Care,Equipment,03.08.2011,5100471590,"1,559.00",Osprey Healthcare Ltd
Manchester City Council,Adult Social Care,Equipment,03.08.2011,5100471898,562.5,Roma Medical Ltd
Manchester City Council,Adult Social Care,Furniture,03.08.2011,5100471766,731.8,The Furnishing Service Ltd
Manchester City Council,Adult Social Care,Furniture,03.08.2011,5100471814,535.29,The Furnishing Service Ltd
Manchester City Council,Chief Executives,Furniture,03.08.2011,5100471037,675,Egan Reid Stationery Co Ltd
Manchester City Council,Regeneration Finance,Gas,03.08.2011,5100471924,"1,049.05",The Manchester College
Manchester City Council,Manchester Leisure,Grant and subscriptions awarded,03.08.2011,5100471676,"3,377.00",Manchester City Art Galleries Dev.T
Manchester City Council,Manchester Leisure,Grant and subscriptions awarded,03.08.2011,5100471625,"2,000.00",Manchester Jewish Museum
Manchester City Council,Manchester Leisure,Grant and subscriptions awarded,03.08.2011,5100471675,"2,000.00",National Museums Liverpool
Manchester City Council,Childrens Services,Grant and subscriptions awarded,03.08.2011,5100471732,"2,336.67",Ladybarn Community Centre
Manchester City Council,Chief Executives,Grant and subscriptions awarded,03.08.2011,1902732416,"5,525.00",4CT Limited
Manchester City Council,Chief Executives,Grant and subscriptions awarded,03.08.2011,1902732415,"2,083.00",Ahmed Iqbal Ullah Education Trust
Manchester City Council,Chief Executives,Grant and subscriptions awarded,03.08.2011,1902732411,"1,077.50",Albert Kennedy Trust
Manchester City Council,Chief Executives,Grant and subscriptions awarded,03.08.2011,1902732410,"4,246.00",Aquarius Community Centre
Manchester City Council,Chief Executives,Grant and subscriptions awarded,03.08.2011,1902732409,"3,587.00",Barlow Moor Community Association.
Manchester City Council,Chief Executives,Grant and subscriptions awarded,03.08.2011,1902732408,"2,550.00",Benchill Community Centre
Manchester City Council,Chief Executives,Grant and subscriptions awarded,03.08.2011,1902732407,"1,802.50","Birch Community Association,"
Manchester City Council,Chief Executives,Grant and subscriptions awarded,03.08.2011,1902732404,"3,833.00",Grace Incorporation Faith Trust
Manchester City Council,Chief Executives,Grant and subscriptions awarded,03.08.2011,1902732406,"3,483.00",Greater Manchester Coalition Of Dis
Manchester City Council,Chief Executives,Grant and subscriptions awarded,03.08.2011,1902732403,"3,397.50",Harpurhey Neighbourhood Project
Manchester City Council,Chief Executives,Grant and subscriptions awarded,03.08.2011,1902732442,"2,800.00",Lesbian Community Project
Manchester City Council,Chief Executives,Grant and subscriptions awarded,03.08.2011,1902732400,"11,667.00",Manchester Council For Community
Manchester City Council,Chief Executives,Grant and subscriptions awarded,03.08.2011,1902732440,"2,191.00",Manchester Disabled People'S Access
Manchester City Council,Chief Executives,Grant and subscriptions awarded,03.08.2011,5100471790,594.64,Manchester Mental Health & Social C
Manchester City Council,Chief Executives,Grant and subscriptions awarded,03.08.2011,1902732429,"1,178.00",Manchester Samaritans
Manchester City Council,Chief Executives,Grant and subscriptions awarded,03.08.2011,1902732435,"2,083.00",Neesa Well Women Drop-In Project
Manchester City Council,Chief Executives,Grant and subscriptions awarded,03.08.2011,1902732432,"1,802.50",Northmoor Community Association
Manchester City Council,Chief Executives,Grant and subscriptions awarded,03.08.2011,1902732431,901,Royal Oak & Baguley Residents Assoc
Manchester City Council,Chief Executives,Grant and subscriptions awarded,03.08.2011,1902732428,"5,050.00",Shopmobility Manchester Ltd
Manchester City Council,Chief Executives,Grant and subscriptions awarded,03.08.2011,1902732427,"2,072.50",Slade Lane Neighbourhood Centre
Manchester City Council,Chief Executives,Grant and subscriptions awarded,03.08.2011,1902732426,"1,750.00",Somali Women's Group of M/cr
Manchester City Council,Chief Executives,Grant and subscriptions awarded,03.08.2011,1902732425,"1,622.50",St Georges Community Centre.
Manchester City Council,Chief Executives,Grant and subscriptions awarded,03.08.2011,1902732423,"1,000.00",Support 4 Progress
Manchester City Council,Chief Executives,Grant and subscriptions awarded,03.08.2011,1902732401,"1,667.00",Talbot/Himmat Support Centre
Manchester City Council,Chief Executives,Grant and subscriptions awarded,03.08.2011,1902732422,"1,083.00",Training & Support 4 Services &
Manchester City Council,Chief Executives,Grant and subscriptions awarded,03.08.2011,1902732420,"2,644.00",Turkey Lane & Monsall Neighbourhood
Manchester City Council,Chief Executives,Grant and subscriptions awarded,03.08.2011,1902732419,"3,333.00",Wai Yin Chinese Women Society
Manchester City Council,Chief Executives,Grant and subscriptions awarded,03.08.2011,1902732417,"1,560.00",Whalley Range Forum
Manchester City Council,Regeneration Finance,Grant and subscriptions awarded,03.08.2011,5100467148,"3,741.00",NHS Manchester Primary Care Trust
Manchester City Council,Regeneration Finance,Grant and subscriptions awarded,03.08.2011,5100471432,"-3,741.00",NHS Manchester Primary Care Trust
Manchester City Council,Hospitality + Trading Services,Hire of Equipment,03.08.2011,5100471794,550,Tennant UK Ltd
Manchester City Council,Chief Executives,Hire of Equipment,03.08.2011,5100471652,"10,140.00",Network Audio
Manchester City Council,Regeneration Finance,Hire of Premises,03.08.2011,5100471924,"1,762.58",The Manchester College
Manchester City Council,Hospitality + Trading Services,I T Provision,03.08.2011,5100471738,"3,026.00",Rocc Computers Ltd
Manchester City Council,Childrens Services,I T Provision,03.08.2011,5100471751,589.05,Citrix Online UK Ltd
Manchester City Council,Chief Executives,I T Provision,03.08.2011,5100471327,506.46,Computerland Uk Ltd
Manchester City Council,Childrens Services,Compensation Payments,03.08.2011,1902732527,"2,500.00",Abney Garsden Mcdonald
Manchester City Council,Chief Executives,Legal Fees,03.08.2011,5100471599,"2,580.00",Redacted Personal Information
Manchester City Council,Chief Executives,Occupational Health services,03.08.2011,5100471740,"2,884.40",Healthwork Ltd
Manchester City Council,Chief Executives,Occupational Health services,03.08.2011,5100471744,"2,708.40",Healthwork Ltd
Manchester City Council,Manchester Leisure,Payments for services,03.08.2011,5100471930,"1,500.00",Manchester Rugby Union
Manchester City Council,Chief Executives,Payments for services,03.08.2011,5100471728,"11,532.00",Greater Manchester West
Manchester City Council,Hospitality + Trading Services,Payments to Sub-Contractors,03.08.2011,5100471749,"10,530.00",Kenny Bros (Civil Eng) Ltd
Manchester City Council,Hospitality + Trading Services,Payments to Sub-Contractors,03.08.2011,5100471264,809.58,Kenny Bros (Civil Eng) Ltd
Manchester City Council,Environment and Operations,Payments to Sub-Contractors,03.08.2011,5100471889,"5,000.00",Community Forests Northwest Ltd
Manchester City Council,Childrens Services,Postage,03.08.2011,5100471552,"1,090.64",Neopost Finance Ltd (Rental)
Manchester City Council,Childrens Services,Postage,03.08.2011,5100471563,"1,000.00",Neopost Ltd (Credifon)
Manchester City Council,Chief Executives,Postage,03.08.2011,5100471634,"3,000.00",Teleset Francotyp Postalia Ltd
Manchester City Council,Chief Executives,Printing,03.08.2011,5100471527,"6,863.00",Holdmede Ltd T/A Pelican Press
Manchester City Council,Manchester Leisure,Proffesional fees,03.08.2011,5100471908,"7,750.00",Hemisphere Design
Manchester City Council,Manchester Leisure,Proffesional fees,03.08.2011,5100471908,"1,935.00",Hemisphere Design
Manchester City Council,Environment and Operations,Proffesional fees,03.08.2011,5100471631,"25,706.25",Northern Way Properties Limited
Manchester City Council,Environment and Operations,Proffesional fees,03.08.2011,5100471636,"1,875.00",Northern Way Properties Limited
Manchester City Council,Environment and Operations,Proffesional fees,03.08.2011,5100471637,"-1,730.77",Northern Way Properties Limited
Manchester City Council,Environment and Operations,Proffesional fees,03.08.2011,5100471632,"-2,307.69",Northern Way Properties Limited
Manchester City Council,Environment and Operations,Proffesional fees,03.08.2011,5100471633,"-13,709.54",Northern Way Properties Limited
Manchester City Council,Childrens Services,Proffesional fees,03.08.2011,5100471628,601,North East Cheshire Social Work Svs
Manchester City Council,Corporate Services,Proffesional fees,03.08.2011,5100471700,"3,213.10",University Of Salford
Manchester City Council,Corporate Services,Proffesional fees,03.08.2011,5100471165,"3,347.50",W T Partnership
Manchester City Council,Chief Executives,Proffesional fees,03.08.2011,5100471743,"5,483.40",Healthwork Ltd
Manchester City Council,Regeneration Finance,Rates,03.08.2011,5100471715,"10,710.14",Artisan Regeneration Ltd
Manchester City Council,Adult Social Care,Rents,03.08.2011,5100471747,"7,913.00",Grail Property
Manchester City Council,Adult Social Care,Security,03.08.2011,5100471607,"1,008.71",Sitewatch Fire & Surveillance Ltd
Manchester City Council,Adult Social Care,Security,03.08.2011,5100471611,-757.91,Sitewatch Fire & Surveillance Ltd
Manchester City Council,Childrens Services,Subsistence and Conference Expenses,03.08.2011,5100462241,"1,400.00",Price Training
Manchester City Council,Childrens Services,Subsistence and Conference Expenses,03.08.2011,5100464003,"1,400.00",Price Training
Manchester City Council,Childrens Services,Supported Accommodation,03.08.2011,5100471645,829.99,Victoria Park Independence Proj Ltd
Manchester City Council,Childrens Services,Supported Accommodation,03.08.2011,5100471648,829.99,Victoria Park Independence Proj Ltd
Manchester City Council,Childrens Services,Supported Accommodation,03.08.2011,5100471642,625.03,Victoria Park Independence Proj Ltd
Manchester City Council,Childrens Services,Supported Accommodation,03.08.2011,5100471653,625.03,Victoria Park Independence Proj Ltd
Manchester City Council,Childrens Services,Supported Accommodation,03.08.2011,5100471657,625.03,Victoria Park Independence Proj Ltd
Manchester City Council,Childrens Services,Supported Accommodation,03.08.2011,5100471660,625.03,Victoria Park Independence Proj Ltd
Manchester City Council,Childrens Services,Third party payments relating to Voluntary Organisations,03.08.2011,5100471378,"8,001.55",CMAS
Manchester City Council,Chief Executives,Third party payments relating to Voluntary Organisations,03.08.2011,5100471727,"-11,532.00",Great Places Housing Association
Manchester City Council,Hospitality + Trading Services,Training and Development,03.08.2011,5100471624,"3,600.00",The Manchester College
Manchester City Council,Childrens Services,Training and Development,03.08.2011,1902730554,"1,412.00",Mindstretchers
Manchester City Council,Childrens Services,Transport Coach Hire,03.08.2011,5100471520,"1,200.00",Redacted Personal Information T/A  Fairway Minibus
Manchester City Council,Hospitality + Trading Services,Vehicle Hire Costs,03.08.2011,5100471321,"56,535.70",Specialist Vehicle rental
Manchester City Council,Adult Social Care,Water - Metered,03.08.2011,1902732299,752.17,United Utilities Water Plc
Manchester City Council,Childrens Services,Water - Metered,03.08.2011,5100471826,"1,046.55",Tree Of Life Centre Wythenshawe
Manchester City Council,Childrens Services,Works and associated costs for Land and Buildings,03.08.2011,5100471829,"5,207.69",Bramall Construction Ltd
Manchester City Council,Childrens Services,Works and associated costs for Land and Buildings,03.08.2011,5100471835,"74,067.00",Bramall Construction Ltd
Manchester City Council,Childrens Services,Works and associated costs for Land and Buildings,03.08.2011,5100471699,"129,843.00",GB Building Solutions Ltd
Manchester City Council,Chief Executives,Advertising,04.08.2011,5100472473,882,TSL Education Ltd
Manchester City Council,Childrens Services,Agency staff provision,04.08.2011,5100463701,"1,254.00",PULSE
Manchester City Council,Chief Executives,Agency staff provision,04.08.2011,5100471282,"2,272.20",Bennett Staff Bureau
Manchester City Council,Chief Executives,Agency staff provision,04.08.2011,5100472066,"1,787.36",Entrust Social Care
Manchester City Council,Chief Executives,Agency staff provision,04.08.2011,5100472064,"1,426.15",Entrust Social Care
Manchester City Council,Chief Executives,Agency staff provision,04.08.2011,5100472263,"5,374.78",People Source Consulting
Manchester City Council,Chief Executives,Agency staff provision,04.08.2011,5100471448,747.25,Recruitment Solutions (NW) Ltd
Manchester City Council,Chief Executives,Agency staff provision,04.08.2011,5100472117,"3,971.23",Reed Employment Plc
Manchester City Council,Chief Executives,Agency staff provision,04.08.2011,5100472639,"8,095.87",Semester Recruitment Ltd
Manchester City Council,Hospitality + Trading Services,Building Materials for direct delivery,04.08.2011,5100471956,"2,305.40",Morelock Signs Ltd
Manchester City Council,Hospitality + Trading Services,Building Materials for direct delivery,04.08.2011,5100471491,"2,760.00",R S Clare Ltd
Manchester City Council,Housing General Fund,Building Works,04.08.2011,1902739317,"3,782.00",Handicare  UK Ltd
Manchester City Council,Housing General Fund,Building Works,04.08.2011,1902739323,"1,677.00",Handicare  UK Ltd
Manchester City Council,Housing General Fund,Building Works,04.08.2011,1902739325,675,Handicare  UK Ltd
Manchester City Council,Housing General Fund,Building Works,04.08.2011,1902740060,"31,487.19",HSK Solicitors
Manchester City Council,Housing General Fund,Building Works,04.08.2011,1902740057,"90,807.46",O'Neill Patient Solicitors
Manchester City Council,Corporate Services,Cash Collection,04.08.2011,1902724027,763.59,G4S Cash Services (Uk) Ltd
Manchester City Council,Hospitality + Trading Services,Cleaning Equipment,04.08.2011,5100472365,821.42,Panztel (Uk) Limited
Manchester City Council,Childrens Services,Cleaning Equipment and Materials,04.08.2011,5100472463,824.44,PHS Group
Manchester City Council,Chief Executives,Communications,04.08.2011,5100472067,960,Creative Concern
Manchester City Council,Chief Executives,Communications,04.08.2011,5100472069,900,Creative Concern
Manchester City Council,Insurance Fund,Computer Ins Premium,04.08.2011,5100472053,"20,173.29",Aon Ltd
Manchester City Council,Manchester Leisure,Contract Cleaning External,04.08.2011,5100472480,"1,662.00",Clearview Event Services Limited
Manchester City Council,Housing Revenue Account,Council Dwelling Construction,04.08.2011,5100472164,586.32,Tep-The Environment Partnership
Manchester City Council,Manchester Leisure,Electricity,04.08.2011,1902739887,"16,393.59",Scottish & Southern Energy Plc
Manchester City Council,Manchester Leisure,Electricity,04.08.2011,1902739893,"5,503.48",Scottish & Southern Energy Plc
Manchester City Council,Manchester Leisure,Electricity,04.08.2011,1902739883,"3,315.99",Scottish & Southern Energy Plc
Manchester City Council,Libraries and Theatres,Electricity,04.08.2011,1902739869,"1,317.64",Scottish & Southern Energy Plc
Manchester City Council,Hospitality + Trading Services,Electricity,04.08.2011,1902739866,"22,199.55",Scottish & Southern Energy Plc
Manchester City Council,Hospitality + Trading Services,Electricity,04.08.2011,1902739890,"11,366.69",Scottish & Southern Energy Plc
Manchester City Council,Hospitality + Trading Services,Electricity,04.08.2011,1902739878,"10,964.42",Scottish & Southern Energy Plc
Manchester City Council,Hospitality + Trading Services,Electricity,04.08.2011,1902739874,"10,517.15",Scottish & Southern Energy Plc
Manchester City Council,Hospitality + Trading Services,Electricity,04.08.2011,1902739870,"4,289.35",Scottish & Southern Energy Plc
Manchester City Council,Hospitality + Trading Services,Electricity,04.08.2011,1902739867,"2,645.79",Scottish & Southern Energy Plc
Manchester City Council,Hospitality + Trading Services,Electricity,04.08.2011,1902739865,"1,495.46",Scottish & Southern Energy Plc
Manchester City Council,Hospitality + Trading Services,Electricity,04.08.2011,1902739888,"1,421.07",Scottish & Southern Energy Plc
Manchester City Council,Environment and Operations,Electricity,04.08.2011,1902739885,"4,842.92",Scottish & Southern Energy Plc
Manchester City Council,Environment and Operations,Electricity,04.08.2011,1902739892,"1,893.66",Scottish & Southern Energy Plc
Manchester City Council,Environment and Operations,Electricity,04.08.2011,1902739872,"1,880.77",Scottish & Southern Energy Plc
Manchester City Council,Environment and Operations,Electricity,04.08.2011,1902739875,"1,389.89",Scottish & Southern Energy Plc
Manchester City Council,Environment and Operations,Electricity,04.08.2011,1902739868,"1,190.32",Scottish & Southern Energy Plc
Manchester City Council,Adult Social Care,Electricity,04.08.2011,1902739880,"1,152.01",Scottish & Southern Energy Plc
Manchester City Council,Childrens Services,Electricity,04.08.2011,1902739871,"2,171.49",Scottish & Southern Energy Plc
Manchester City Council,Childrens Services,Electricity,04.08.2011,1902739895,"1,502.39",Scottish & Southern Energy Plc
Manchester City Council,Childrens Services,Electricity,04.08.2011,1902739894,"1,399.31",Scottish & Southern Energy Plc
Manchester City Council,Childrens Services,Electricity,04.08.2011,1902739873,"1,154.37",Scottish & Southern Energy Plc
Manchester City Council,Corporate Services,Electricity,04.08.2011,1902739879,"13,713.92",Scottish & Southern Energy Plc
Manchester City Council,Corporate Services,Electricity,04.08.2011,1902739884,"9,424.64",Scottish & Southern Energy Plc
Manchester City Council,Corporate Services,Electricity,04.08.2011,1902739876,"8,906.34",Scottish & Southern Energy Plc
Manchester City Council,Corporate Services,Electricity,04.08.2011,1902739877,"3,643.58",Scottish & Southern Energy Plc
Manchester City Council,Corporate Services,Electricity,04.08.2011,1902739886,"2,772.72",Scottish & Southern Energy Plc
Manchester City Council,Chief Executives,Electricity,04.08.2011,1902739882,"20,057.80",Scottish & Southern Energy Plc
Manchester City Council,Chief Executives,Electricity,04.08.2011,1902739891,"2,313.95",Scottish & Southern Energy Plc
Manchester City Council,Regeneration Finance,Electricity,04.08.2011,1902739889,"6,288.49",Scottish & Southern Energy Plc
Manchester City Council,Highways Services,Electricity,04.08.2011,1902739862,"155,935.58",Haven Power Ltd
Manchester City Council,Highways Services,Electricity,04.08.2011,1902739864,"1,530.16",Haven Power Ltd
Manchester City Council,Grtr Manchester Urban Traffic,Electricity,04.08.2011,1902739861,"106,722.63",Haven Power Ltd
Manchester City Council,Adult Social Care,Equipment,04.08.2011,5100458853,850.78,Adt Fire & Security Plc
Manchester City Council,Adult Social Care,Equipment,04.08.2011,5100472554,"1,132.50",Aidservice Ltd
Manchester City Council,Adult Social Care,Equipment,04.08.2011,5100472505,"1,034.00",Aidservice Ltd
Manchester City Council,Adult Social Care,Equipment,04.08.2011,5100472090,"2,105.00",Swiftstyle Supplies
Manchester City Council,Chief Executives,Examination Fees,04.08.2011,5100472169,"2,603.52",Central Mcr University Hospitals
Manchester City Council,Chief Executives,Examination Fees,04.08.2011,5100472166,"1,014.00",ROAR Forensics Ltd
Manchester City Council,Regeneration Finance,Expenditure re Internal Trading Ordered Externally,04.08.2011,5100472084,"1,330.00",Search Manchester Ltd
Manchester City Council,Childrens Services,Foster Payments,04.08.2011,1902739333,638.4,Redacted Personal Information
Manchester City Council,Chief Executives,Funeral and coroner related services,04.08.2011,5100472145,580.8,Redacted Personal Information
Manchester City Council,Adult Social Care,Furniture,04.08.2011,5100472407,539.03,The Furnishing Service Ltd
Manchester City Council,Adult Social Care,Gas,04.08.2011,1902739902,"1,065.71",Corona Energy Ltd
Manchester City Council,Manchester Leisure,Grant and subscriptions awarded,04.08.2011,5100472444,"6,119.00",ALL FM 96.9 Ltd
Manchester City Council,Manchester Leisure,Grant and subscriptions awarded,04.08.2011,5100472345,"3,966.25",Full Circle Arts
Manchester City Council,Manchester Leisure,Grant and subscriptions awarded,04.08.2011,5100472414,"7,196.00",Green Room
Manchester City Council,Manchester Leisure,Grant and subscriptions awarded,04.08.2011,5100472085,"120,000.00",Wythenshawe Forum Trust Ltd
Manchester City Council,Environment and Operations,Grant and subscriptions awarded,04.08.2011,5100472130,"4,000.00",Cityco
Manchester City Council,Environment and Operations,Grant and subscriptions awarded,04.08.2011,5100472032,"6,625.00",Community Forests Northwest Ltd
Manchester City Council,Environment and Operations,Grant and subscriptions awarded,04.08.2011,5100472029,"1,719.11",Community Forests Northwest Ltd
Manchester City Council,Chief Executives,Grant and subscriptions awarded,04.08.2011,5100472189,"1,875.00",Independent Choices - Manchester Li
Manchester City Council,Chief Executives,Grant and subscriptions awarded,04.08.2011,5100472424,"12,927.31",Manchester Mental Health & Social C
Manchester City Council,Manchester Leisure,Grounds Maintenance,04.08.2011,5100472481,"1,662.00",Clearview Event Services Limited
Manchester City Council,Manchester Leisure,Grounds Maintenance,04.08.2011,5100472482,"1,662.00",Clearview Event Services Limited
Manchester City Council,Hospitality + Trading Services,Hire of Equipment,04.08.2011,5100472089,818.4,Edgar J Browning Ltd
Manchester City Council,Hospitality + Trading Services,Hire of Equipment,04.08.2011,5100472091,818.4,Edgar J Browning Ltd
Manchester City Council,Hospitality + Trading Services,Hire of Equipment,04.08.2011,5100472092,818.4,Edgar J Browning Ltd
Manchester City Council,Hospitality + Trading Services,Hire of Equipment,04.08.2011,5100472094,818.4,Edgar J Browning Ltd
Manchester City Council,Hospitality + Trading Services,Hire of Equipment,04.08.2011,5100472095,818.4,Edgar J Browning Ltd
Manchester City Council,Childrens Services,Hire of Equipment,04.08.2011,5100471753,"-167,760.00",Herbert T Forrest Ltd
Manchester City Council,Childrens Services,Home Care ,04.08.2011,5100472193,"7,240.00",Welfare Call (LAC) Ltd
Manchester City Council,Childrens Services,I T Provision,04.08.2011,5100472206,600,Ncc Services Limited
Manchester City Council,Chief Executives,I T Provision,04.08.2011,5100472317,"3,000.00",Computerland Uk Ltd
Manchester City Council,Chief Executives,I T Provision,04.08.2011,5100472173,"1,800.00",Meridian Law Ltd
Manchester City Council,Housing General Fund,Income Tax Payable,04.08.2011,1902740060,"1,035.06",HSK Solicitors
Manchester City Council,Insurance Fund,Insurance,04.08.2011,5100472288,"1,050.00",Aon Ltd
Manchester City Council,Environment and Operations,Landline Telephone,04.08.2011,1902720513,557.7,BT PLC
Manchester City Council,Adult Social Care,Compensation Payments,04.08.2011,1902739850,500,Liberata
Manchester City Council,Corporate Services,Legal Fees,04.08.2011,5100471297,"9,600.00",Redacted Personal Information
Manchester City Council,Chief Executives,Legal Fees,04.08.2011,5100472364,"3,733.80",Redacted Personal Information
Manchester City Council,Libraries and Theatres,Library Materials Acquisition,04.08.2011,1902731044,"2,770.00",Azhar Enterrprises
Manchester City Council,Manchester Leisure,Payments for services,04.08.2011,5100471946,720,Salford Community Leisure Ltd
Manchester City Council,Manchester Leisure,Payments for services,04.08.2011,5100471954,585,Salford Community Leisure Ltd
Manchester City Council,Childrens Services,Payments for services,04.08.2011,5100472386,"1,520.13",Autistic Society Greater Manchester
Manchester City Council,Childrens Services,Payments for services,04.08.2011,5100472227,"1,066.00",Eden Care(North West)Limited
Manchester City Council,Childrens Services,Payments for services,04.08.2011,5100472224,533,Eden Care(North West)Limited
Manchester City Council,Childrens Services,Payments for services,04.08.2011,5100472217,"1,500.00",European Wellcare Education Ltd
Manchester City Council,Childrens Services,Payments for services,04.08.2011,5100471993,557.54,Intact Project Ltd
Manchester City Council,Childrens Services,Payments for services,04.08.2011,5100472236,"1,071.42",Redacted Personal Information
Manchester City Council,Childrens Services,Payments for services,04.08.2011,5100472203,714.28,Redacted Personal Information
Manchester City Council,Childrens Services,Payments for services,04.08.2011,5100472258,"1,096.56",Respite (North West) Ltd
Manchester City Council,Childrens Services,Payments for services,04.08.2011,5100472252,"1,082.20",Respite (North West) Ltd
Manchester City Council,Childrens Services,Payments for services,04.08.2011,5100472261,989.44,Respite (North West) Ltd
Manchester City Council,Childrens Services,Payments for services,04.08.2011,5100472250,803.92,Respite (North West) Ltd
Manchester City Council,Chief Executives,Payments for services,04.08.2011,5100472253,"11,532.00",Greater Manchester West
Manchester City Council,Chief Executives,Personal needs of client,04.08.2011,5100472083,"1,400.00",Manchester Young Lives
Manchester City Council,Corporate Services,Postage,04.08.2011,5100472255,"9,385.65",Royal Mail Group Plc
Manchester City Council,Corporate Services,Postage,04.08.2011,5100472251,"2,043.70",Royal Mail Group Plc
Manchester City Council,Chief Executives,Printing,04.08.2011,5100472088,-550,Browns CTP Ltd
Manchester City Council,Childrens Services,Proffesional fees,04.08.2011,5100471755,637.5,Sloan Education Services Ltd
Manchester City Council,Housing Revenue Account,Proffesional fees,04.08.2011,5100472155,-576,Tep-The Environment Partnership
Manchester City Council,Highways Services,Proffesional fees,04.08.2011,5100472242,"1,183.95",AECOM Limited
Manchester City Council,Childrens Services,Rents,04.08.2011,5100471742,"-102,927.00",Herbert T Forrest Ltd
Manchester City Council,Chief Executives,Rents,04.08.2011,5100472128,"1,120.00",Her Majesty's Court Service
Manchester City Council,Hospitality + Trading Services,Security,04.08.2011,5100471116,"6,110.70",Security Monitoring Centres Ltd
Manchester City Council,Hospitality + Trading Services,Security,04.08.2011,5100472366,"-6,110.70",Security Monitoring Centres Ltd
Manchester City Council,Hospitality + Trading Services,Security,04.08.2011,5100471306,564.48,Showsec International Ltd
Manchester City Council,Childrens Services,Subsistence and Conference Expenses,04.08.2011,5100472440,"2,500.00",National Childrens Bureau
Manchester City Council,Adult Social Care,Supported Accommodation,04.08.2011,5100472270,"17,833.68",Mosscare Housing Ltd
Manchester City Council,Childrens Services,Supported Accommodation,04.08.2011,5100472208,750,First step Accomadation Ltd
Manchester City Council,Childrens Services,Supported Accommodation,04.08.2011,5100472077,600,First step Accomadation Ltd
Manchester City Council,Childrens Services,Supported Accommodation,04.08.2011,5100472041,874,Intact Project Ltd
Manchester City Council,Childrens Services,Supported Accommodation,04.08.2011,5100472104,"2,400.00",Redacted Personal Information Ltd t/a Oaklea House
Manchester City Council,Childrens Services,Supported Accommodation,04.08.2011,5100472106,"2,100.00",Redacted Personal Information Ltd t/a Oaklea House
Manchester City Council,Childrens Services,Supported Accommodation,04.08.2011,5100472102,"1,370.00",Redacted Personal Information Ltd t/a Oaklea House
Manchester City Council,Childrens Services,Supported Accommodation,04.08.2011,5100472087,507.56,St Vincents Housing Association Ltd
Manchester City Council,Chief Executives,Supported Accommodation,04.08.2011,5100472081,"4,049.98",St Helens Council
Manchester City Council,Adult Social Care,Third party payments relating to Voluntary Organisations,04.08.2011,5100472188,"3,220.22",Redacted Personal Information
Manchester City Council,Childrens Services,Third party payments relating to Voluntary Organisations,04.08.2011,5100472199,900,Courtyard Care Ltd
Manchester City Council,Childrens Services,Third party payments relating to Voluntary Organisations,04.08.2011,5100472194,600,Courtyard Care Ltd
Manchester City Council,Manchester Leisure,Tipping - Tonnage,04.08.2011,5100471979,"1,717.70",Enterprise Manchester Partnership
Manchester City Council,Childrens Services,Transport Coach Hire,04.08.2011,5100472420,800,B Curbishley Ltd
Manchester City Council,Childrens Services,Transport Coach Hire,04.08.2011,5100472395,"3,950.00",G.M Travel
Manchester City Council,Childrens Services,Transport Coach Hire,04.08.2011,5100472080,"5,401.10",Mr Blackcab
Manchester City Council,Childrens Services,Transport Coach Hire,04.08.2011,5100472078,"4,414.18",Mr Blackcab
Manchester City Council,Childrens Services,Transport Coach Hire,04.08.2011,5100472040,"3,373.94",Mr Blackcab
Manchester City Council,Childrens Services,Transport Coach Hire,04.08.2011,5100472042,"3,178.20",Mr Blackcab
Manchester City Council,Childrens Services,Transport Coach Hire,04.08.2011,5100472034,"2,379.31",Mr Blackcab
Manchester City Council,Childrens Services,Transport Coach Hire,04.08.2011,5100472037,"2,047.10",Mr Blackcab
Manchester City Council,Hospitality + Trading Services,Vehicle Hire Costs,04.08.2011,5100472007,"1,155.00",Highland Access
Manchester City Council,Environment and Operations,Water - Metered,04.08.2011,1902739860,"7,021.07",United Utilities Water Plc
Manchester City Council,Mersey Valley Joint Committee,Water - Metered,04.08.2011,1902721397,"5,849.88",United Utilities Water Plc
Manchester City Council,Adult Social Care,Window Cleaning,04.08.2011,5100472100,600,L.M.J.Windows Ltd
Manchester City Council,Chief Executives,Advertising,05.08.2011,5100472526,882,TSL Education Ltd
Manchester City Council,Chief Executives,Advertising,05.08.2011,5100472545,882,TSL Education Ltd
Manchester City Council,Chief Executives,Agency staff provision,05.08.2011,5100473160,"5,850.79",Ashberry Recruitment Ltd
Manchester City Council,Chief Executives,Agency staff provision,05.08.2011,5100471721,960.75,Bluegroup International Ltd
Manchester City Council,Chief Executives,Agency staff provision,05.08.2011,5100471313,886.85,Carepath Recruitment
Manchester City Council,Chief Executives,Agency staff provision,05.08.2011,5100472786,"3,217.58",Celsian
Manchester City Council,Chief Executives,Agency staff provision,05.08.2011,5100471647,834.81,P S Care
Manchester City Council,Chief Executives,Agency staff provision,05.08.2011,5100471302,"7,416.15",Randstad Care
Manchester City Council,Chief Executives,Agency staff provision,05.08.2011,5100471655,"2,350.00",Real Staffing Group Ltd
Manchester City Council,Chief Executives,Agency staff provision,05.08.2011,5100472500,"1,732.50",Sacco Mann Ltd
Manchester City Council,Chief Executives,Agency staff provision,05.08.2011,5100471305,"3,060.76",Search Consultancy Ltd
Manchester City Council,Chief Executives,Agency staff provision,05.08.2011,5100472978,928.9,Swiis Uk Limited
Manchester City Council,Hospitality + Trading Services,Building Materials for direct delivery,05.08.2011,5100471468,891.02,Cemex (Uk) Shared Service Centre
Manchester City Council,Hospitality + Trading Services,Building Materials for direct delivery,05.08.2011,5100471461,725.54,Cemex (Uk) Shared Service Centre
Manchester City Council,Hospitality + Trading Services,Building Materials for direct delivery,05.08.2011,5100471482,715.43,Cemex (Uk) Shared Service Centre
Manchester City Council,Hospitality + Trading Services,Building Materials for direct delivery,05.08.2011,5100471487,713.42,Cemex (Uk) Shared Service Centre
Manchester City Council,Hospitality + Trading Services,Building Materials for direct delivery,05.08.2011,5100471494,694.72,Cemex (Uk) Shared Service Centre
Manchester City Council,Hospitality + Trading Services,Building Materials for direct delivery,05.08.2011,5100471459,681.24,Cemex (Uk) Shared Service Centre
Manchester City Council,Hospitality + Trading Services,Building Materials for direct delivery,05.08.2011,5100471492,673.19,Cemex (Uk) Shared Service Centre
Manchester City Council,Hospitality + Trading Services,Building Materials for direct delivery,05.08.2011,5100471508,608.82,Cemex (Uk) Shared Service Centre
Manchester City Council,Hospitality + Trading Services,Building Materials for direct delivery,05.08.2011,5100471498,571.6,Cemex (Uk) Shared Service Centre
Manchester City Council,Hospitality + Trading Services,Building Materials for direct delivery,05.08.2011,5100471464,570.6,Cemex (Uk) Shared Service Centre
Manchester City Council,Hospitality + Trading Services,Building Materials for direct delivery,05.08.2011,5100471493,561.54,Cemex (Uk) Shared Service Centre
Manchester City Council,Hospitality + Trading Services,Building Materials for direct delivery,05.08.2011,5100471474,543.45,Cemex (Uk) Shared Service Centre
Manchester City Council,Hospitality + Trading Services,Building Materials for direct delivery,05.08.2011,5100471476,528.36,Cemex (Uk) Shared Service Centre
Manchester City Council,Hospitality + Trading Services,Building Materials for direct delivery,05.08.2011,5100471485,524.33,Cemex (Uk) Shared Service Centre
Manchester City Council,Hospitality + Trading Services,Building Materials for direct delivery,05.08.2011,5100471477,523.33,Cemex (Uk) Shared Service Centre
Manchester City Council,Hospitality + Trading Services,Building Materials for direct delivery,05.08.2011,5100471499,511.25,Cemex (Uk) Shared Service Centre
Manchester City Council,Hospitality + Trading Services,Building Materials for direct delivery,05.08.2011,5100471486,510.25,Cemex (Uk) Shared Service Centre
Manchester City Council,Hospitality + Trading Services,Building Materials for direct delivery,05.08.2011,5100471501,508.71,Cemex (Uk) Shared Service Centre
Manchester City Council,Hospitality + Trading Services,Building Materials for direct delivery,05.08.2011,5100472596,900.2,Fairway Landscapes Ltd
Manchester City Council,Childrens Services,Building Works,05.08.2011,5100473005,"7,692.56",Yorkshire Purchasing
Manchester City Council,Childrens Services,Building Works,05.08.2011,5100473155,"4,256.37",Yorkshire Purchasing
Manchester City Council,Childrens Services,Building Works,05.08.2011,5100472628,"3,234.81",Yorkshire Purchasing
Manchester City Council,Childrens Services,Building Works,05.08.2011,5100473020,"2,229.79",Yorkshire Purchasing
Manchester City Council,Childrens Services,Building Works,05.08.2011,5100473158,"2,138.95",Yorkshire Purchasing
Manchester City Council,Childrens Services,Building Works,05.08.2011,5100472632,"1,466.86",Yorkshire Purchasing
Manchester City Council,Childrens Services,Building Works,05.08.2011,5100472630,"1,315.60",Yorkshire Purchasing
Manchester City Council,Childrens Services,Building Works,05.08.2011,5100473082,"1,004.57",Yorkshire Purchasing
Manchester City Council,Childrens Services,Building Works,05.08.2011,5100472634,859.6,Yorkshire Purchasing
Manchester City Council,Childrens Services,Building Works,05.08.2011,5100472755,627.96,Yorkshire Purchasing
Manchester City Council,Childrens Services,Car Parking Permits,05.08.2011,5100473109,"9,271.20",National Car Parks Ltd Season Ticke
Manchester City Council,Childrens Services,Car Parking Permits,05.08.2011,5100473121,"3,130.42",National Car Parks Ltd Season Ticke
Manchester City Council,Childrens Services,Car Parking Permits,05.08.2011,5100473083,"1,569.50",National Car Parks Ltd Season Ticke
Manchester City Council,Chief Executives,Car Parking Permits,05.08.2011,5100472717,"15,113.14",National Car Parks Ltd Season Ticke
Manchester City Council,Childrens Services,Catering Provisions,05.08.2011,5100473114,783.83,3663 (Bfs Group Ltd)
Manchester City Council,Hospitality + Trading Services,Compensation Payments,05.08.2011,1902740074,664,Department For Work & Pensions
Manchester City Council,Childrens Services,Compensation Payments,05.08.2011,1902739789,"14,000.00",Abney Garsden Mcdonald
Manchester City Council,Childrens Services,Compensation Payments,05.08.2011,1902740073,"6,600.00",Abney Garsden Mcdonald
Manchester City Council,Corporate Services,Consultants Fees,05.08.2011,5100471662,"29,640.00",Curtins Consulting Engineer
Manchester City Council,Corporate Services,Electricity,05.08.2011,1902733943,"3,577.84",Bruntwood Estates Alpha
Manchester City Council,Corporate Services,Electricity,05.08.2011,1902738783,"1,068.60",Bruntwood Estates Alpha
Manchester City Council,Regeneration Finance,Electricity,05.08.2011,5100472741,524.55,Bruntwood Estates Alpha
Manchester City Council,Environment and Operations,Equipment,05.08.2011,5100472646,"13,996.50",Egbert H Taylor & Company Ltd
Manchester City Council,Environment and Operations,Equipment,05.08.2011,5100472649,"13,996.50",Egbert H Taylor & Company Ltd
Manchester City Council,Environment and Operations,Equipment,05.08.2011,5100472652,"13,996.50",Egbert H Taylor & Company Ltd
Manchester City Council,Environment and Operations,Equipment,05.08.2011,5100472654,"12,130.30",Egbert H Taylor & Company Ltd
Manchester City Council,Adult Social Care,Equipment,05.08.2011,5100472518,"1,260.50",Aidservice Ltd
Manchester City Council,Adult Social Care,Equipment,05.08.2011,5100472514,570,Aidservice Ltd
Manchester City Council,Adult Social Care,Equipment,05.08.2011,5100472519,540.5,Aidservice Ltd
Manchester City Council,Adult Social Care,Equipment,05.08.2011,5100472515,534.95,Aidservice Ltd
Manchester City Council,Adult Social Care,Equipment,05.08.2011,5100472551,"-1,097.50",Aidservice Ltd
Manchester City Council,Adult Social Care,Equipment,05.08.2011,5100472585,"1,496.00",Deaf Alerter Plc
Manchester City Council,Adult Social Care,Equipment,05.08.2011,5100472719,979.65,Ots Ltd
Manchester City Council,Chief Executives,Equipment,05.08.2011,5100473130,"1,682.85",Data Space Limited
Manchester City Council,Chief Executives,Equipment,05.08.2011,5100471916,"4,898.00",Detail Design Engineering Ltd
Manchester City Council,Manchester Leisure,External repairs and maintenance for buildings,05.08.2011,5100471581,"3,346.00",Environmental Building Solutions
Manchester City Council,Manchester Leisure,External repairs and maintenance for buildings,05.08.2011,5100471581,"1,310.00",Environmental Building Solutions
Manchester City Council,Manchester Leisure,Goods purchased for resale in Council outlets,05.08.2011,5100473012,"1,499.40",Pomergranate Europe Ltd
Manchester City Council,Manchester Leisure,Grant and subscriptions awarded,05.08.2011,5100473047,"15,000.00",Lancashire County Council
Manchester City Council,Manchester Leisure,Grant and subscriptions awarded,05.08.2011,5100473125,"10,348.00",People's History Museum
Manchester City Council,Manchester Leisure,Grant and subscriptions awarded,05.08.2011,5100473065,"13,000.00",University Of Manchester
Manchester City Council,Manchester Leisure,Grant and subscriptions awarded,05.08.2011,5100473072,"3,000.00",University Of Manchester
Manchester City Council,Manchester Leisure,Grant and subscriptions awarded,05.08.2011,5100473175,"15,410.00",Xtrax
Manchester City Council,Chief Executives,Grant and subscriptions awarded,05.08.2011,1902740007,680,Tree Of Life Centre Wythenshawe
Manchester City Council,Regeneration Finance,Grant and subscriptions awarded,05.08.2011,5100471436,"9,069.00",NHS Manchester Primary Care Trust
Manchester City Council,Housing Revenue Account,Grounds Maintenance,05.08.2011,5100472725,"1,350.00",VPS (UK) Limited
Manchester City Council,Housing Revenue Account,Grounds Maintenance,05.08.2011,5100472728,"1,350.00",VPS (UK) Limited
Manchester City Council,Hospitality + Trading Services,Hire of Machinery,05.08.2011,5100473048,"1,440.00",R & M Developments Ltd
Manchester City Council,Hospitality + Trading Services,Hire of Machinery,05.08.2011,5100473060,"1,195.00",R & M Developments Ltd
Manchester City Council,Hospitality + Trading Services,Hire of Machinery,05.08.2011,5100473055,"1,010.00",R & M Developments Ltd
Manchester City Council,Hospitality + Trading Services,Hire of Machinery,05.08.2011,5100473050,840,R & M Developments Ltd
Manchester City Council,Environment and Operations,Hire of Premises,05.08.2011,5100472415,"1,335.42",East Lancs Masonic Hall Co Ltd
Manchester City Council,Childrens Services,Home Care ,05.08.2011,5100473071,600,Bedspace Resource Ltd
Manchester City Council,Childrens Services,Home Care ,05.08.2011,5100473076,600,Bedspace Resource Ltd
Manchester City Council,Childrens Services,Home Care ,05.08.2011,5100473078,600,Bedspace Resource Ltd
Manchester City Council,Childrens Services,Home Care ,05.08.2011,5100473080,600,Bedspace Resource Ltd
Manchester City Council,Childrens Services,Home Care ,05.08.2011,5100473081,600,Bedspace Resource Ltd
Manchester City Council,Childrens Services,Home Care ,05.08.2011,5100473067,526.85,Bedspace Resource Ltd
Manchester City Council,Childrens Services,Home Care ,05.08.2011,5100473073,500,Bedspace Resource Ltd
Manchester City Council,Chief Executives,I T Provision,05.08.2011,5100473064,"3,530.00",Community Network for Manchester
Manchester City Council,Regeneration Finance,I T Provision,05.08.2011,5100472674,"1,885.50",Code Computerlove Ltd
Manchester City Council,Highways Services,I T Provision,05.08.2011,5100460020,"8,850.00",IHS (Global) Ltd
Manchester City Council,Adult Social Care,Internal Repairs and Maintenance for buildings,05.08.2011,1902719319,500,Roger W Dean & Co Ltd
Manchester City Council,Adult Social Care,Internal Repairs and Maintenance for buildings,05.08.2011,1902719405,500,Roger W Dean & Co Ltd
Manchester City Council,Adult Social Care,Internal Repairs and Maintenance for buildings,05.08.2011,1902721390,500,Roger W Dean & Co Ltd
Manchester City Council,Adult Social Care,Internal Repairs and Maintenance for buildings,05.08.2011,1902730325,500,Roger W Dean & Co Ltd
Manchester City Council,Hospitality + Trading Services,Compensation Payments,05.08.2011,1902739857,566,Department For Work & Pensions
Manchester City Council,Adult Social Care,Compensation Payments,05.08.2011,1902739910,837,Department For Work & Pensions
Manchester City Council,Libraries and Theatres,Library Materials Acquisition,05.08.2011,1902731080,"4,104.30",Coutts Information Services Ltd
Manchester City Council,Libraries and Theatres,Library Materials Acquisition,05.08.2011,1902731082,535.45,IKC (UK) Ltd
Manchester City Council,Housing Revenue Account,Northwards Reps Fee,05.08.2011,5100471521,"1,632,843.28",Northwards Housing Limited
Manchester City Council,Manchester Leisure,Payments for services,05.08.2011,5100471622,"21,859.95",Serco Manchester Leisure Ltd Wythen
Manchester City Council,Manchester Leisure,Payments for services,05.08.2011,5100473022,"1,800.00",Sports Structures Coaches CIC
Manchester City Council,Manchester Leisure,Payments for services,05.08.2011,5100473179,"1,600.00",Wright Robinson Sports College
Manchester City Council,Childrens Services,Payments for services,05.08.2011,5100473086,"1,097.00",Adoption UK
Manchester City Council,Childrens Services,Payments for services,05.08.2011,5100473100,"1,520.13",Autistic Society Greater Manchester
Manchester City Council,Childrens Services,Payments for services,05.08.2011,5100473165,"9,000.00",Blackburn With Darwen Borough Counc
Manchester City Council,Childrens Services,Payments for services,05.08.2011,5100473162,"1,288.00",Families for Children Adoption
Manchester City Council,Environment and Operations,Payments to Contractors,05.08.2011,5100473053,"33,447.43",National Car Parks Manchester Ltd
Manchester City Council,Hospitality + Trading Services,Payments to Sub-Contractors,05.08.2011,5100472874,"1,725.00",A1 Drainmasters Ltd
Manchester City Council,Hospitality + Trading Services,Payments to Sub-Contractors,05.08.2011,5100472655,"7,893.00",Arboricultural Services Treework
Manchester City Council,Hospitality + Trading Services,Payments to Sub-Contractors,05.08.2011,5100472650,"4,000.00",Arboricultural Services Treework
Manchester City Council,Hospitality + Trading Services,Payments to Sub-Contractors,05.08.2011,5100472651,"4,000.00",Arboricultural Services Treework
Manchester City Council,Hospitality + Trading Services,Payments to Sub-Contractors,05.08.2011,5100472653,"2,808.00",Arboricultural Services Treework
Manchester City Council,Hospitality + Trading Services,Payments to Sub-Contractors,05.08.2011,5100472656,"2,202.00",Arboricultural Services Treework
Manchester City Council,Hospitality + Trading Services,Payments to Sub-Contractors,05.08.2011,5100471793,"6,469.38",Kenny Bros (Civil Eng) Ltd
Manchester City Council,Hospitality + Trading Services,Payments to Sub-Contractors,05.08.2011,5100472409,"-4,990.90",Kenny Bros (Civil Eng) Ltd
Manchester City Council,Hospitality + Trading Services,Payments to Sub-Contractors,05.08.2011,5100471923,"8,505.00",Rainford Contract Services Ltd
Manchester City Council,Hospitality + Trading Services,Payments to Sub-Contractors,05.08.2011,5100472928,"2,802.20",Sureset UK Ltd
Manchester City Council,Hospitality + Trading Services,Payments to Sub-Contractors,05.08.2011,5100472930,"-2,802.20",Sureset UK Ltd
Manchester City Council,Environment and Operations,Payments to Sub-Contractors,05.08.2011,5100472659,"1,140.00",Arboricultural Services Treework
Manchester City Council,Environment and Operations,Payments to Sub-Contractors,05.08.2011,5100472660,800,Arboricultural Services Treework
Manchester City Council,Hospitality + Trading Services,Postage,05.08.2011,5100472657,"2,356.30",Royal Mail Group Plc
Manchester City Council,Hospitality + Trading Services,Postage,05.08.2011,5100472616,"1,809.45",Royal Mail Group Plc
Manchester City Council,Environment and Operations,Postage,05.08.2011,5100473174,"2,043.86",Royal Mail Group Ltd
Manchester City Council,Childrens Services,Proffesional fees,05.08.2011,5100472556,567,Wythenshawe Community Initiative
Manchester City Council,Chief Executives,Proffesional fees,05.08.2011,5100472492,660,Forsyth Management Contracts Ltd
Manchester City Council,Chief Executives,Proffesional fees,05.08.2011,5100472405,"1,317.00",MK Illuminations UK Ltd
Manchester City Council,Hospitality + Trading Services,Purchase of stores for re-distribution,05.08.2011,5100472875,783.6,Buildbase Ltd aka Axon Buildbase
Manchester City Council,Hospitality + Trading Services,Purchase of stores for re-distribution,05.08.2011,5100473312,"1,427.68",Marshalls Mono Ltd
Manchester City Council,Hospitality + Trading Services,Purchase of stores for re-distribution,05.08.2011,5100472673,"14,000.00",P.F. Cusack (Tools Supplies) Ltd
Manchester City Council,Hospitality + Trading Services,Purchase of stores for re-distribution,05.08.2011,5100472965,"1,024.40",Tarmac Central Ltd
Manchester City Council,Hospitality + Trading Services,Purchase of stores for re-distribution,05.08.2011,5100472966,501,Tarmac Central Ltd
Manchester City Council,Hospitality + Trading Services,Refuse Collection,05.08.2011,5100471661,"9,663.60",Enterprise Manchester Partnership
Manchester City Council,Childrens Services,Renoval and Storage of Furniture,05.08.2011,5100472531,"1,249.80",P Fahey & Sons (Uk) Ltd
Manchester City Council,Manchester Leisure,Rents,05.08.2011,5100473181,"1,950.00",Wright Robinson Sports College
Manchester City Council,Adult Social Care,Rents,05.08.2011,1902720994,"1,000.00",B & A Properties
Manchester City Council,Adult Social Care,Rents,05.08.2011,1902720398,500,B & A Properties
Manchester City Council,Adult Social Care,Rents,05.08.2011,1902720993,500,B & A Properties
Manchester City Council,Childrens Services,Rents,05.08.2011,5100471388,"2,200.00",House Of Grumpy Ltd
Manchester City Council,Childrens Services,Rents,05.08.2011,5100471389,"2,100.00",House Of Grumpy Ltd
Manchester City Council,Childrens Services,Rents,05.08.2011,5100472625,655.73,Lpc Living Ltd
Manchester City Council,Corporate Services,Rents,05.08.2011,5100455584,"1,979.54",Zion Arts Centre Ltd
Manchester City Council,Hospitality + Trading Services,Security,05.08.2011,5100471666,"6,110.70",Security Monitoring Centres Ltd
Manchester City Council,Childrens Services,Subsistence and Conference Expenses,05.08.2011,1902740013,688.6,Redacted Personal Information
Manchester City Council,Childrens Services,Supported Accommodation,05.08.2011,5100472735,651.85,Bedspace Resource Ltd
Manchester City Council,Childrens Services,Supported Accommodation,05.08.2011,5100472736,651.85,Bedspace Resource Ltd
Manchester City Council,Adult Social Care,Supporting People Payments,05.08.2011,5100473183,"7,164.00",Eastlands Homes Partnership Ltd
Manchester City Council,Environment and Operations,Taxi Vehicle Materia,05.08.2011,5100472498,"1,096.00",New Auto Ltd T/A Mogo (Uk)
Manchester City Council,Adult Social Care,Third party payments relating to Voluntary Organisations,05.08.2011,5100473092,"1,436.84",Federation of Jewish Services
Manchester City Council,Adult Social Care,Third party payments relating to Voluntary Organisations,05.08.2011,5100473107,"1,923.50",Longsight Moss Side Community Proje
Manchester City Council,Childrens Services,Third party payments relating to Voluntary Organisations,05.08.2011,5100472743,778.18,Crossroads Caring for Carers
Manchester City Council,Childrens Services,Third party payments relating to Voluntary Organisations,05.08.2011,5100472766,625.8,Cygnet Springside
Manchester City Council,Childrens Services,Third party payments relating to Voluntary Organisations,05.08.2011,5100472698,"39,185.68",Family Action
Manchester City Council,Childrens Services,Third party payments relating to Voluntary Organisations,05.08.2011,5100473093,928.33,Talbot House Support Centre
Manchester City Council,Childrens Services,Third party payments relating to Voluntary Organisations,05.08.2011,5100472696,"6,082.22",The Big Life Company
Manchester City Council,Adult Social Care,Third party payments to other Local Authorities,05.08.2011,5100472723,"7,500.00",Oxford Brookes University
Manchester City Council,Adult Social Care,Third party payments to other Local Authorities,05.08.2011,5100472702,"-7,500.00",Oxford Brookes University
Manchester City Council,Corporate Services,Tracing fees,05.08.2011,5100473172,"1,395.00",Experian Limited
Manchester City Council,Childrens Services,Training and Development,05.08.2011,5100473024,750,Complete First Aid
Manchester City Council,Childrens Services,Training and Development,05.08.2011,5100473021,750,Complete First Aid
Manchester City Council,Childrens Services,Training and Development,05.08.2011,5100472553,"1,411.20",KD Training Consultants Ltd
Manchester City Council,Childrens Services,Training and Development,05.08.2011,5100472612,"1,600.00",Salford College
Manchester City Council,Childrens Services,Training and Development,05.08.2011,5100472621,"1,600.00",Salford College
Manchester City Council,Childrens Services,Training and Development,05.08.2011,5100472624,"1,600.00",Salford College
Manchester City Council,Childrens Services,Training and Development,05.08.2011,5100472622,900,Salford College
Manchester City Council,Childrens Services,Training and Development,05.08.2011,5100472623,900,Salford College
Manchester City Council,Environment and Operations,Transport and Driver Hire,05.08.2011,5100472638,890.74,City Car Club Ltd
Manchester City Council,Hospitality + Trading Services,Transport Coach Hire,05.08.2011,5100471937,"13,965.15",Orion Travel
Manchester City Council,Hospitality + Trading Services,Transport Coach Hire,05.08.2011,5100471936,"3,928.60",Orion Travel
Manchester City Council,Hospitality + Trading Services,Transport Coach Hire,05.08.2011,5100471939,"2,090.00",Orion Travel
Manchester City Council,Childrens Services,Transport Taxis,05.08.2011,5100472669,"3,017.90",Trading Post (NW) Ltd
Manchester City Council,Hospitality + Trading Services,Vehicle Costs,05.08.2011,5100472658,632.85,Unipart Group Ltd t/a Intertruck
Manchester City Council,Hospitality + Trading Services,Vehicle Repairs,05.08.2011,5100472643,"3,372.29",Manchester Van Hire Ltd
Manchester City Council,Childrens Services,Works and associated costs for Land and Buildings,05.08.2011,5100472573,"18,325.89",Bramall Construction Ltd
Manchester City Council,Chief Executives,Advertising,08.08.2011,5100473252,"7,547.99",MEN Media Ltd
Manchester City Council,Chief Executives,Advertising,08.08.2011,5100473252,"5,121.66",MEN Media Ltd
Manchester City Council,Manchester Leisure,Agency staff provision,08.08.2011,5100473246,"2,500.00",England Squash
Manchester City Council,Childrens Services,Agency staff provision,08.08.2011,5100472964,"2,890.00",Gollcher Associates Ltd
Manchester City Council,Chief Executives,Agency staff provision,08.08.2011,5100472038,"2,613.66",Bennett Staff Bureau
Manchester City Council,Chief Executives,Agency staff provision,08.08.2011,5100473135,"1,597.53",Deekay Technical Recruitment Ltd
Manchester City Council,Chief Executives,Agency staff provision,08.08.2011,5100472284,"3,223.79",HR Care (Manchester) Ltd
Manchester City Council,Chief Executives,Agency staff provision,08.08.2011,5100472285,"2,880.98",HR Care (Manchester) Ltd
Manchester City Council,Chief Executives,Agency staff provision,08.08.2011,5100472286,"2,189.66",HR Care (Manchester) Ltd
Manchester City Council,Chief Executives,Agency staff provision,08.08.2011,5100472257,"1,640.76",HR Care (Manchester) Ltd
Manchester City Council,Chief Executives,Agency staff provision,08.08.2011,5100473446,"2,778.30",Sanctuary Social Care
Manchester City Council,Chief Executives,Agency staff provision,08.08.2011,5100472082,"8,523.31",SRA Cover Staff Ltd
Manchester City Council,Hospitality + Trading Services,Building Materials for direct delivery,08.08.2011,5100472892,604.44,Arco Group Ltd
Manchester City Council,Hospitality + Trading Services,Building Materials for direct delivery,08.08.2011,5100473409,"-3,549.21",Burdens Ltd
Manchester City Council,Environment and Operations,Building Materials for direct delivery,08.08.2011,5100473408,"5,982.85",Killgerm Chemicals Ltd
Manchester City Council,Housing General Fund,Building Works,08.08.2011,1902739776,"3,575.00",Lift Able Ltd
Manchester City Council,Housing General Fund,Building Works,08.08.2011,1902739775,"1,322.00",Lift Able Ltd
Manchester City Council,Housing General Fund,Building Works,08.08.2011,1902739773,"2,093.00",Stannah Lift Services Ltd
Manchester City Council,Housing General Fund,Building Works,08.08.2011,1902739774,"1,967.00",Stannah Lift Services Ltd
Manchester City Council,Childrens Services,Car Parking Permits,08.08.2011,5100473268,"17,217.30",National Car Parks Ltd Season Ticke
Manchester City Council,Chief Executives,Car Parking Permits,08.08.2011,5100473274,"6,465.78",National Car Parks Ltd Season Ticke
Manchester City Council,Chief Executives,Car Parking Permits,08.08.2011,5100472292,734.01,National Car Parks Manchester Ltd
Manchester City Council,Childrens Services,Catering Provisions,08.08.2011,5100473275,708.16,Caterite Foodservice
Manchester City Council,Manchester Leisure,Compensation Payments,08.08.2011,5100473250,"2,286.96",Kings Chambers
Manchester City Council,Hospitality + Trading Services,Compensation Payments,08.08.2011,1902740339,"11,000.00",Simpsons Solicitors
Manchester City Council,Housing Revenue Account,Council Dwelling Adaptations,08.08.2011,5100473254,"4,277.33",Wates Construction Ltd
Manchester City Council,Housing Revenue Account,Council Dwelling Adaptations,08.08.2011,5100473254,"1,023.42",Wates Construction Ltd
Manchester City Council,Housing Revenue Account,Council Dwelling Adaptations,08.08.2011,5100473256,"3,695.57",Wates Construction Ltd
Manchester City Council,Housing Revenue Account,Council Dwelling Adaptations,08.08.2011,5100473259,"3,539.50",Wates Construction Ltd
Manchester City Council,Adult Social Care,Equipment,08.08.2011,5100472528,"1,055.40",Lisclare
Manchester City Council,Childrens Services,Equipment,08.08.2011,5100473288,500.5,LMS Music Supplies
Manchester City Council,Hospitality + Trading Services,Funeral and coroner related services,08.08.2011,5100473198,607.65,Treasured Memories Ltd
Manchester City Council,Adult Social Care,Funeral and coroner related services,08.08.2011,5100473425,"2,532.00",Michael Kennedy Funeral Service
Manchester City Council,Adult Social Care,Funeral and coroner related services,08.08.2011,5100473415,672,Michael Kennedy Funeral Service
Manchester City Council,Adult Social Care,Funeral and coroner related services,08.08.2011,5100473418,"1,064.00",Michael Kennedy Funeral Service
Manchester City Council,Adult Social Care,Funeral and coroner related services,08.08.2011,5100473417,937,Michael Kennedy Funeral Service
Manchester City Council,Chief Executives,Funeral and coroner related services,08.08.2011,5100472138,"2,216.36",Kane Funeral Services
Manchester City Council,Manchester Leisure,Grant and subscriptions awarded,08.08.2011,5100473313,"19,100.53",University Of Manchester
Manchester City Council,Manchester Leisure,Grant and subscriptions awarded,08.08.2011,5100473313,"8,000.00",University Of Manchester
Manchester City Council,Manchester Leisure,Grant and subscriptions awarded,08.08.2011,5100473313,"2,500.00",University Of Manchester
Manchester City Council,Manchester Leisure,Grant and subscriptions awarded,08.08.2011,5100473264,"-2,500.00",University Of Manchester
Manchester City Council,Manchester Leisure,Grant and subscriptions awarded,08.08.2011,5100473264,"-8,000.00",University Of Manchester
Manchester City Council,Manchester Leisure,Grant and subscriptions awarded,08.08.2011,5100473264,"-19,100.53",University Of Manchester
Manchester City Council,Childrens Services,Grant and subscriptions awarded,08.08.2011,5100473396,"5,093.02",4CT Limited
Manchester City Council,Childrens Services,Grant and subscriptions awarded,08.08.2011,5100473336,"1,000.00",4CT Limited
Manchester City Council,Childrens Services,Grant and subscriptions awarded,08.08.2011,5100473338,"17,164.69",Burnage Multi-Agency Group
Manchester City Council,Childrens Services,Grant and subscriptions awarded,08.08.2011,5100473337,"5,941.79",Commitment In Communities
Manchester City Council,Childrens Services,Grant and subscriptions awarded,08.08.2011,5100473339,"4,383.67",Water Adventure Centre
Manchester City Council,Hospitality + Trading Services,Grounds Maintenance,08.08.2011,5100471856,600,Countrywide Grounds Maintenance Ltd
Manchester City Council,Hospitality + Trading Services,Hire of Equipment,08.08.2011,5100473475,"4,880.40",Jetchem Systems Limited
Manchester City Council,Childrens Services,I T Provision,08.08.2011,5100472825,"8,000.00",Notschool.net
Manchester City Council,Chief Executives,I T Provision,08.08.2011,5100473301,"3,000.00",Pilat Europe Ltd
Manchester City Council,Insurance Fund,Insurance,08.08.2011,1902739917,"10,000.00",Pannone & Partners Solicitors
Manchester City Council,Environment and Operations,Compensation Payments,08.08.2011,5100473222,600,Redacted Personal Information
Manchester City Council,Adult Social Care,Legal Fees,08.08.2011,5100473224,"2,172.00",2-3 Grays Inn Square Chambers
Manchester City Council,Adult Social Care,Legal Fees,08.08.2011,5100473228,612.5,Redacted Personal Information
Manchester City Council,Childrens Services,Compensation Payments,08.08.2011,1902730618,"13,500.00",Abney Garsden Mcdonald
Manchester City Council,Childrens Services,Compensation Payments,08.08.2011,1902739855,"8,000.00",Beesley & Co Solicitors
Manchester City Council,Childrens Services,Compensation Payments,08.08.2011,1902739856,"8,000.00",Beesley & Co Solicitors
Manchester City Council,Childrens Services,Compensation Payments,08.08.2011,1902739911,621.3,Redacted Personal Information
Manchester City Council,Highways Services,Compensation Payments,08.08.2011,1902730343,"10,250.00",Thompsons Solicitors
Manchester City Council,Libraries and Theatres,Library Materials Acquisition,08.08.2011,1902731129,646,Alexander Street Press
Manchester City Council,Libraries and Theatres,Library Materials Acquisition,08.08.2011,1902731132,"1,135.74",Cramer Music Ltd
Manchester City Council,Manchester Leisure,Payments for services,08.08.2011,5100473255,"3,750.00",Sport Taekwondo UK Limited
Manchester City Council,Childrens Services,Payments for services,08.08.2011,5100473265,"1,400.32",City Care Partnership Ltd
Manchester City Council,Childrens Services,Payments for services,08.08.2011,5100473284,"5,055.76",European Wellcare Education Ltd
Manchester City Council,Childrens Services,Payments for services,08.08.2011,5100473219,"1,082.20",Respite (North West) Ltd
Manchester City Council,Childrens Services,Payments for services,08.08.2011,5100473217,803.92,Respite (North West) Ltd
Manchester City Council,Childrens Services,Payments for services,08.08.2011,5100473206,556.56,Respite (North West) Ltd
Manchester City Council,Childrens Services,Payments for services,08.08.2011,5100473210,548.28,Respite (North West) Ltd
Manchester City Council,Childrens Services,Payments for services,08.08.2011,5100473215,510.18,Respite (North West) Ltd
Manchester City Council,Hospitality + Trading Services,Payments to Sub-Contractors,08.08.2011,5100472431,"37,897.31",Kenny Bros (Civil Eng) Ltd
Manchester City Council,Hospitality + Trading Services,Payments to Sub-Contractors,08.08.2011,5100472426,"3,729.50",Kenny Bros (Civil Eng) Ltd
Manchester City Council,Hospitality + Trading Services,Payments to Sub-Contractors,08.08.2011,5100472428,"1,446.90",Kenny Bros (Civil Eng) Ltd
Manchester City Council,Hospitality + Trading Services,Payments to Sub-Contractors,08.08.2011,5100472434,"1,237.67",Kenny Bros (Civil Eng) Ltd
Manchester City Council,Hospitality + Trading Services,Payments to Sub-Contractors,08.08.2011,5100472937,"2,802.20",Sureset UK Ltd
Manchester City Council,Hospitality + Trading Services,Payments to Sub-Contractors,08.08.2011,5100472959,"6,599.00",Woodroyd Contract Services Ltd
Manchester City Council,Environment and Operations,Payments to Sub-Contractors,08.08.2011,5100473195,"2,732.62",C-Ways Limited
Manchester City Council,Environment and Operations,Payments to Sub-Contractors,08.08.2011,5100473194,"1,264.55",C-Ways Limited
Manchester City Council,Environment and Operations,Payments to Sub-Contractors,08.08.2011,5100473196,605.88,C-Ways Limited
Manchester City Council,Highways Services,Payments to Sub-Contractors,08.08.2011,5100472980,775,Underground Surveys (UK) Ltd
Manchester City Council,Corporate Services,Proffesional fees,08.08.2011,5100466302,"10,205.00",Borough of Pendle
Manchester City Council,Chief Executives,Proffesional fees,08.08.2011,5100473317,815,Health Management (UK) Ltd
Manchester City Council,Chief Executives,Proffesional fees,08.08.2011,5100473456,"15,699.00",University Of Manchester
Manchester City Council,Highways Services,Proffesional fees,08.08.2011,5100473453,"7,028.44",Scott Wilson Ltd
Manchester City Council,Hospitality + Trading Services,Purchase of stores for re-distribution,08.08.2011,5100472555,"2,246.40",Instarmac Group Ltd
Manchester City Council,Hospitality + Trading Services,Purchase of stores for re-distribution,08.08.2011,5100472676,502,P.F. Cusack (Tools Supplies) Ltd
Manchester City Council,Adult Social Care,Rents,08.08.2011,5100472597,"7,527.00",Grail Property
Manchester City Council,Childrens Services,Rents,08.08.2011,5100471529,"3,143.69",GB Building Solutions Ltd
Manchester City Council,Childrens Services,Stationery,08.08.2011,5100473397,555.83,Banner Business Services Ltd
Manchester City Council,Childrens Services,Supported Accommodation,08.08.2011,5100471644,625.03,Victoria Park Independence Proj Ltd
Manchester City Council,Childrens Services,Supported Accommodation,08.08.2011,5100473404,625.03,Victoria Park Independence Proj Ltd
Manchester City Council,Childrens Services,Supported Accommodation,08.08.2011,5100473403,-625.03,Victoria Park Independence Proj Ltd
Manchester City Council,Adult Social Care,Supporting People Payments,08.08.2011,5100473168,"6,826.50",Eastlands Homes Partnership Ltd
Manchester City Council,Adult Social Care,Supporting People Payments,08.08.2011,5100473186,933.24,Eastlands Homes Partnership Ltd
Manchester City Council,Adult Social Care,Supporting People Payments,08.08.2011,5100473178,903.72,Eastlands Homes Partnership Ltd
Manchester City Council,Regeneration Finance,Third party payments relating to Voluntary Organisations,08.08.2011,5100471902,"2,990.00",Lifeline Project Limited
Manchester City Council,Adult Social Care,Third party payments to other Local Authorities,08.08.2011,5100473335,"31,413.12",Stockport Mbc
Manchester City Council,Childrens Services,Third party payments to other Local Authorities,08.08.2011,5100473481,"1,021.00",Stockport College
Manchester City Council,Childrens Services,Training and Development,08.08.2011,5100473187,600,Wythenshawe Community Church
Manchester City Council,Hospitality + Trading Services,Transport Coach Hire,08.08.2011,5100471806,"2,076.90",AAB Travel
Manchester City Council,Childrens Services,Transport Coach Hire,08.08.2011,5100471910,600,Executive Travell
Manchester City Council,Childrens Services,Transport Coach Hire,08.08.2011,5100473241,-600,Executive Travell
Manchester City Council,Childrens Services,Transport Coach Hire,08.08.2011,5100471872,"3,186.00",Galaxy Cars (Manchester) Limited
Manchester City Council,Childrens Services,Transport Coach Hire,08.08.2011,5100471509,"3,525.50",Lady Cars
Manchester City Council,Childrens Services,Transport Coach Hire,08.08.2011,5100473358,"-3,525.50",Lady Cars
Manchester City Council,Childrens Services,Transport Coach Hire,08.08.2011,5100472576,"2,117.00",Oak Leaf Travel
Manchester City Council,Childrens Services,Transport Coach Hire,08.08.2011,5100472579,963,Oak Leaf Travel
Manchester City Council,Childrens Services,Transport Coach Hire,08.08.2011,5100473197,"-1,520.00",Redacted Personal Information
Manchester City Council,Corporate Services,Travel,08.08.2011,1902732526,"21,081.90",Trainline.com Limited
Manchester City Council,Hospitality + Trading Services,Vehicle Parts/Spares,08.08.2011,5100473562,"1,470.75",F T Factors
Manchester City Council,Hospitality + Trading Services,Vehicle Parts/Spares,08.08.2011,5100473478,"1,375.20",F T Factors
Manchester City Council,Hospitality + Trading Services,Vehicle Parts/Spares,08.08.2011,5100473561,882.1,F T Factors
Manchester City Council,Hospitality + Trading Services,Vehicle Repairs,08.08.2011,5100472582,"3,361.35",Advanced Vehicle Technicians Ltd
Manchester City Council,Chief Executives,Agency staff provision,09.08.2011,5100473902,"3,148.95",Celsian
Manchester City Council,Chief Executives,Agency staff provision,09.08.2011,5100473586,"1,037.13",Medicare First
Manchester City Council,Chief Executives,Agency staff provision,09.08.2011,5100473585,989.38,Medicare First
Manchester City Council,Chief Executives,Agency staff provision,09.08.2011,5100473631,949.38,Medicare First
Manchester City Council,Chief Executives,Agency staff provision,09.08.2011,5100473584,896.7,Medicare First
Manchester City Council,Chief Executives,Agency staff provision,09.08.2011,5100473587,803.68,Medicare First
Manchester City Council,Chief Executives,Agency staff provision,09.08.2011,5100473667,"3,369.95",Reed Employment Plc
Manchester City Council,Chief Executives,Agency staff provision,09.08.2011,5100473695,"1,284.50",Reed Employment Plc
Manchester City Council,Chief Executives,Agency staff provision,09.08.2011,5100473615,"2,540.94",Rullion Engineering Personnel Limit
Manchester City Council,Chief Executives,Agency staff provision,09.08.2011,5100473597,"1,825.32",Sanctuary Social Care
Manchester City Council,Chief Executives,Agency staff provision,09.08.2011,5100473597,896.7,Sanctuary Social Care
Manchester City Council,Chief Executives,Agency staff provision,09.08.2011,5100473553,"2,062.61",Sellick Partnership (Legal) Ltd
Manchester City Council,Hospitality + Trading Services,Building Materials for direct delivery,09.08.2011,5100473668,"6,534.00",Broxap Ltd
Manchester City Council,Hospitality + Trading Services,Building Materials for direct delivery,09.08.2011,5100473526,"3,708.00",Broxap Ltd
Manchester City Council,Hospitality + Trading Services,Building Materials for direct delivery,09.08.2011,5100473554,"1,120.00",Ecomix Concrete Ltd
Manchester City Council,Hospitality + Trading Services,Building Materials for direct delivery,09.08.2011,5100473557,560,Ecomix Concrete Ltd
Manchester City Council,Housing General Fund,Building Works,09.08.2011,1902730601,960,Edward Mellor Ltd
Manchester City Council,Hospitality + Trading Services,Cleaning Equipment,09.08.2011,5100468427,676.75,Breanheath Limited
Manchester City Council,Hospitality + Trading Services,Cleaning Equipment and Materials,09.08.2011,5100473859,926.97,Amtoll Ltd
Manchester City Council,Regeneration Finance,Consultants Fees,09.08.2011,5100473922,"5,149.17",Mace Ltd
Manchester City Council,Adult Social Care,Equipment,09.08.2011,5100472881,633.6,Frontier Therapeutics
Manchester City Council,Leasing,Equipment Operating Lease,09.08.2011,5100473730,"3,172.90",Xerox Finance Ltd
Manchester City Council,Adult Social Care,External repairs and maintenance for buildings,09.08.2011,5100474011,"4,258.00",Community Security (North West)
Manchester City Council,Childrens Services,Fixtures and Fitting,09.08.2011,1902741246,"1,861.00",Barnardos Manchester Leaving Care S
Manchester City Council,Hospitality + Trading Services,General Office expenses,09.08.2011,5100473689,667.07,Marketing Manchester
Manchester City Council,Environment and Operations,General Office expenses,09.08.2011,5100473624,651.75,Green Plate Limited
Manchester City Council,Manchester Leisure,Goods purchased for resale in Council outlets,09.08.2011,5100473790,515.2,Cornflower Ltd
Manchester City Council,Manchester Leisure,Grant and subscriptions awarded,09.08.2011,5100473678,"8,184.18",Lancashire County Council
Manchester City Council,Childrens Services,Grant and subscriptions awarded,09.08.2011,5100473565,"4,300.00",Bury Metro
Manchester City Council,Childrens Services,Grant and subscriptions awarded,09.08.2011,5100460070,"7,581.64",Greater Manchester Police
Manchester City Council,Chief Executives,Grant and subscriptions awarded,09.08.2011,5100473712,"30,000.00",Manchester Mental Health & Social C
Manchester City Council,Chief Executives,Grant and subscriptions awarded,09.08.2011,5100473711,"20,000.00",Manchester Mental Health & Social C
Manchester City Council,Regeneration Finance,Grounds Maintenance,09.08.2011,5100471870,"1,938.46",Ashlea Ltd
Manchester City Council,Highways Services,Highway Drainage,09.08.2011,5100473754,"8,973.40",Manchester Cathedral
Manchester City Council,Hospitality + Trading Services,Hire of Equipment,09.08.2011,5100473362,"5,881.57",F.R.Sharrock Ltd
Manchester City Council,Hospitality + Trading Services,I T Provision,09.08.2011,5100471879,"1,684.00",NWIX Group Ltd
Manchester City Council,Chief Executives,I T Provision,09.08.2011,5100472299,"1,898.44",Computerland Uk Ltd
Manchester City Council,Regeneration Finance,I T Provision,09.08.2011,5100471314,"1,899.10",Computerland Uk Ltd
Manchester City Council,Regeneration Finance,I T Provision,09.08.2011,5100471318,"1,899.10",Computerland Uk Ltd
Manchester City Council,Regeneration Finance,I T Provision,09.08.2011,5100471314,916.45,Computerland Uk Ltd
Manchester City Council,Regeneration Finance,I T Provision,09.08.2011,5100471318,916.45,Computerland Uk Ltd
Manchester City Council,Chief Executives,Landline Telephone,09.08.2011,5100473791,"1,645.00",T.I.S Limited
Manchester City Council,Chief Executives,Landline Telephone,09.08.2011,5100473801,761,T.I.S Limited
Manchester City Council,Chief Executives,Landline Telephone,09.08.2011,5100473798,750,T.I.S Limited
Manchester City Council,Leasing,Lease Payments,09.08.2011,5100473730,"32,479.24",Xerox Finance Ltd
Manchester City Council,Leasing,Lease Payments,09.08.2011,5100473730,"15,153.74",Xerox Finance Ltd
Manchester City Council,Leasing,Lease Payments,09.08.2011,5100473730,"2,043.58",Xerox Finance Ltd
Manchester City Council,Leasing,Lease Payments,09.08.2011,5100473730,569.1,Xerox Finance Ltd
Manchester City Council,Childrens Services,Compensation Payments,09.08.2011,1902740616,"4,217.09",Abney Garsden Mcdonald
Manchester City Council,Highways Services,Compensation Payments,09.08.2011,1902740614,585,Department For Work & Pensions
Manchester City Council,Manchester Leisure,Payments for services,09.08.2011,5100472448,"1,000.00",Wythenshawe Youth Arts Network
Manchester City Council,Adult Social Care,Payments for services,09.08.2011,5100473726,511.25,Manchester Mental Health & Social C
Manchester City Council,Chief Executives,Payments for services,09.08.2011,5100473778,"3,290.00",Abbey Gisburne Park Hospital
Manchester City Council,Chief Executives,Payments for services,09.08.2011,5100473786,"2,820.00",Abbey Gisburne Park Hospital
Manchester City Council,Chief Executives,Payments for services,09.08.2011,5100473546,"8,600.00",Caci Ltd
Manchester City Council,Chief Executives,Payments for services,09.08.2011,5100473785,"1,934.50",Greater Manchester Probation Board
Manchester City Council,Chief Executives,Payments for services,09.08.2011,5100473782,"3,684.00",Priory Healthcare
Manchester City Council,Chief Executives,Payments for services,09.08.2011,5100473780,"3,070.00",Priory Healthcare
Manchester City Council,Chief Executives,Payments for services,09.08.2011,5100473781,"1,842.00",Priory Healthcare
Manchester City Council,Chief Executives,Payments for services,09.08.2011,5100473784,"1,228.00",Priory Healthcare
Manchester City Council,Chief Executives,Payments for services,09.08.2011,5100473783,614,Priory Healthcare
Manchester City Council,Learning Disabilities PB,Payments for services,09.08.2011,5100473641,"4,009.51",Outreach Community & Residential Se
Manchester City Council,Learning Disabilities PB,Payments for services,09.08.2011,5100473644,"4,009.51",Outreach Community & Residential Se
Manchester City Council,Environment and Operations,Payments to Sub-Contractors,09.08.2011,5100473828,716.27,Sitewatch Fire & Surveillance Ltd
Manchester City Council,Chief Executives,Payments to Sub-Contractors,09.08.2011,5100473915,540,Ian Terry Planter Services
Manchester City Council,Adult Social Care,Personal needs of client,09.08.2011,5100473728,693.75,RNIB
Manchester City Council,Manchester Leisure,Proffesional fees,09.08.2011,5100473677,"7,000.00",Royal Exchange Theatre Co.Ltd
Manchester City Council,Environment and Operations,Proffesional fees,09.08.2011,5100473679,500,Cityco
Manchester City Council,Childrens Services,Proffesional fees,09.08.2011,5100473732,"1,736.47",Trinity House
Manchester City Council,Chief Executives,Proffesional fees,09.08.2011,5100473763,"8,875.00",Connectup.Co.Uk
Manchester City Council,Chief Executives,Proffesional fees,09.08.2011,5100473765,"8,300.00",Connectup.Co.Uk
Manchester City Council,Chief Executives,Proffesional fees,09.08.2011,5100473588,"18,800.00",Xtrax
Manchester City Council,Regeneration Finance,Proffesional fees,09.08.2011,5100473700,"1,500.00",Grant Thornton Uk LLP
Manchester City Council,Libraries and Theatres,Publicity,09.08.2011,5100473560,800,AllAboutAudiences
Manchester City Council,Hospitality + Trading Services,Purchase of stores for re-distribution,09.08.2011,5100462375,743,Ecomix Concrete Ltd
Manchester City Council,Hospitality + Trading Services,Purchase of stores for re-distribution,09.08.2011,5100462374,708,Ecomix Concrete Ltd
Manchester City Council,Hospitality + Trading Services,Purchase of stores for re-distribution,09.08.2011,5100473549,643,Ecomix Concrete Ltd
Manchester City Council,Regeneration Finance,Radio Charges,09.08.2011,1902740334,500,Zest Team North Mcr
Manchester City Council,Adult Social Care,Rents,09.08.2011,5100473671,"1,949.61",Northwards Housing Limited
Manchester City Council,Childrens Services,Rents,09.08.2011,1902741246,625.03,Barnardos Manchester Leaving Care S
Manchester City Council,Housing Revenue Account,Rents,09.08.2011,1902720343,"11,416.66",Moore Large & Co.Ltd
Manchester City Council,Housing Revenue Account,Rents,09.08.2011,1902720343,"5,708.34",Moore Large & Co.Ltd
Manchester City Council,Corporate Services,Responsive Repairs Work,09.08.2011,5100472521,843.75,BCL
Manchester City Council,Corporate Services,Responsive Repairs Work,09.08.2011,5100472529,618.9,BCL
Manchester City Council,Environment and Operations,Security,09.08.2011,5100473706,848.64,Sitewatch Fire & Surveillance Ltd
Manchester City Council,Environment and Operations,Security,09.08.2011,5100473708,848.64,Sitewatch Fire & Surveillance Ltd
Manchester City Council,Corporate Services,Subsistence and Conference Expenses,09.08.2011,5100473738,853.9,Manchester City Football Club Plc
Manchester City Council,Housing General Fund,Surplus property Acquisitions,09.08.2011,5100473688,876.78,Master Moves Ltd
Manchester City Council,Housing General Fund,Surplus property Acquisitions,09.08.2011,5100473603,655.74,Master Moves Ltd
Manchester City Council,Housing General Fund,Surplus property Acquisitions,09.08.2011,5100473609,571.34,Master Moves Ltd
Manchester City Council,Housing General Fund,Surplus property Acquisitions,09.08.2011,5100473659,521.54,Master Moves Ltd
Manchester City Council,Housing Revenue Account,Surplus property Acquisitions,09.08.2011,5100473685,931.86,Master Moves Ltd
Manchester City Council,Housing Revenue Account,Surplus property Acquisitions,09.08.2011,5100473660,677.78,Master Moves Ltd
Manchester City Council,Housing Revenue Account,Surplus property Acquisitions,09.08.2011,5100473611,533.86,Master Moves Ltd
Manchester City Council,Adult Social Care,Third party payments relating to Voluntary Organisations,09.08.2011,5100473727,"1,436.84",Federation of Jewish Services
Manchester City Council,Childrens Services,Training and Development,09.08.2011,5100473598,784.12,Findel Education Ltd
Manchester City Council,Highways Services,Transfer to Reserves,09.08.2011,5100471544,"13,849.58",Kenny Bros (Civil Eng) Ltd
Manchester City Council,Highways Services,Transfer to Reserves,09.08.2011,5100471798,"8,825.66",Kenny Bros (Civil Eng) Ltd
Manchester City Council,Highways Services,Transfer to Reserves,09.08.2011,5100472111,"8,402.70",Kenny Bros (Civil Eng) Ltd
Manchester City Council,Highways Services,Transfer to Reserves,09.08.2011,5100471800,"8,115.04",Kenny Bros (Civil Eng) Ltd
Manchester City Council,Highways Services,Transfer to Reserves,09.08.2011,5100471836,"6,317.24",Kenny Bros (Civil Eng) Ltd
Manchester City Council,Highways Services,Transfer to Reserves,09.08.2011,5100471545,"6,174.84",Kenny Bros (Civil Eng) Ltd
Manchester City Council,Highways Services,Transfer to Reserves,09.08.2011,5100471838,"6,084.15",Kenny Bros (Civil Eng) Ltd
Manchester City Council,Highways Services,Transfer to Reserves,09.08.2011,5100471824,"5,357.43",Kenny Bros (Civil Eng) Ltd
Manchester City Council,Highways Services,Transfer to Reserves,09.08.2011,5100471547,"4,552.13",Kenny Bros (Civil Eng) Ltd
Manchester City Council,Highways Services,Transfer to Reserves,09.08.2011,5100471853,"4,120.29",Kenny Bros (Civil Eng) Ltd
Manchester City Council,Highways Services,Transfer to Reserves,09.08.2011,5100471842,"3,778.50",Kenny Bros (Civil Eng) Ltd
Manchester City Council,Highways Services,Transfer to Reserves,09.08.2011,5100471846,"3,625.45",Kenny Bros (Civil Eng) Ltd
Manchester City Council,Highways Services,Transfer to Reserves,09.08.2011,5100471830,"3,229.07",Kenny Bros (Civil Eng) Ltd
Manchester City Council,Highways Services,Transfer to Reserves,09.08.2011,5100471834,"3,201.39",Kenny Bros (Civil Eng) Ltd
Manchester City Council,Highways Services,Transfer to Reserves,09.08.2011,5100471839,"2,672.81",Kenny Bros (Civil Eng) Ltd
Manchester City Council,Highways Services,Transfer to Reserves,09.08.2011,5100471844,"2,156.08",Kenny Bros (Civil Eng) Ltd
Manchester City Council,Childrens Services,Transport Coach Hire,09.08.2011,5100471919,666.6,AAB Travel
Manchester City Council,Childrens Services,Transport Coach Hire,09.08.2011,5100471533,"3,134.50",Lady Cars
Manchester City Council,Childrens Services,Transport Taxis,09.08.2011,5100473614,"1,280.40",Cresta Car Hire
Manchester City Council,Childrens Services,Transport Taxis,09.08.2011,5100473582,"1,117.93",Cresta Car Hire
Manchester City Council,Hospitality + Trading Services,Vehicle Costs,09.08.2011,5100473665,903.8,Unipart Group Ltd t/a Intertruck
Manchester City Council,Hospitality + Trading Services,Vehicle Parts/Spares,09.08.2011,5100473752,790.23,Warrington Truck Parts Ltd
Manchester City Council,Corporate Services,Works and associated costs for Land and Buildings,09.08.2011,5100473524,"1,412.38",SMG (Europe) Ltd
Manchester City Council,Chief Executives,Works and associated costs for Land and Buildings,09.08.2011,5100473713,"189,380.00",Centre Screen Productions Limited
Manchester City Council,Chief Executives,Works and associated costs for Land and Buildings,09.08.2011,5100473922,"3,885.52",Mace Ltd
Manchester City Council,Chief Executives,Works and associated costs for Land and Buildings,09.08.2011,5100473916,"-3,338.57",Mace Ltd
Manchester City Council,Chief Executives,Agency staff provision,10.08.2011,5100473972,"1,011.88",Harbex Nursing & Care
Manchester City Council,Chief Executives,Agency staff provision,10.08.2011,5100473953,523.49,Harbex Nursing & Care
Manchester City Council,Chief Executives,Agency staff provision,10.08.2011,5100474142,"5,911.00",People Source Consulting
Manchester City Council,Adult Social Care,Bed & Breakfast Acc,10.08.2011,5100473934,808.33,Redacted Personal Information
Manchester City Council,Hospitality + Trading Services,Building Materials for direct delivery,10.08.2011,5100473658,"3,102.00",Scrutiny Cleaning Services
Manchester City Council,Housing General Fund,Building Works,10.08.2011,5100471525,"68,739.00",GB Building Solutions Ltd
Manchester City Council,Corporate Services,Consultants Fees,10.08.2011,5100473267,"3,960.00",Hind Consultancy Services Ltd
Manchester City Council,Corporate Services,Consultants Fees,10.08.2011,5100473278,"3,718.00",Hind Consultancy Services Ltd
Manchester City Council,Regeneration Finance,Consultants Fees,10.08.2011,5100473919,"-5,149.17",Mace Ltd
Manchester City Council,Regeneration Finance,Consultants Fees,10.08.2011,5100473218,"3,379.39",Mpulse Ltd
Manchester City Council,Regeneration Finance,Consultants Fees,10.08.2011,5100473627,"2,363.37",Mpulse Ltd
Manchester City Council,Adult Social Care,Contract Cleaning External,10.08.2011,5100474061,655.95,PHS Group
Manchester City Council,Adult Social Care,Equipment,10.08.2011,5100473932,"1,060.00",Aidapt Bathrooms Ltd
Manchester City Council,Adult Social Care,Equipment,10.08.2011,5100473938,776.1,Aidapt Bathrooms Ltd
Manchester City Council,Adult Social Care,Equipment,10.08.2011,5100473939,545.7,Aidapt Bathrooms Ltd
Manchester City Council,Adult Social Care,Equipment,10.08.2011,5100473979,916.25,Prism UK Medical Ltd t/a Carefree
Manchester City Council,Adult Social Care,Equipment,10.08.2011,5100473977,547.9,Prism UK Medical Ltd t/a Carefree
Manchester City Council,Environment and Operations,External repairs and maintenance for buildings,10.08.2011,5100474053,794.55,Byrne Surfacing Ltd
Manchester City Council,Childrens Services,Foster Payments,10.08.2011,1902741430,768.04,Redacted Personal Information
Manchester City Council,Manchester Leisure,Grant and subscriptions awarded,10.08.2011,5100471573,605,Fools Paradise
Manchester City Council,Chief Executives,Grant and subscriptions awarded,10.08.2011,5100474012,"16,189.00",Merci Ltd
Manchester City Council,Chief Executives,Grant and subscriptions awarded,10.08.2011,5100474027,"14,250.00",Merci Ltd
Manchester City Council,Chief Executives,Grant and subscriptions awarded,10.08.2011,5100474013,"2,436.00",Merci Ltd
Manchester City Council,Manchester Leisure,Grounds Maintenance,10.08.2011,5100471672,"76,966.04",Glendale Managed Services
Manchester City Council,Manchester Leisure,Grounds Maintenance,10.08.2011,5100471671,"9,848.48",Glendale Managed Services
Manchester City Council,Hospitality + Trading Services,Hire of Equipment,10.08.2011,5100473321,781.2,Edgar J Browning Ltd
Manchester City Council,Hospitality + Trading Services,Hire of Equipment,10.08.2011,5100473322,781.2,Edgar J Browning Ltd
Manchester City Council,Hospitality + Trading Services,Hire of Equipment,10.08.2011,5100473324,781.2,Edgar J Browning Ltd
Manchester City Council,Hospitality + Trading Services,Hire of Equipment,10.08.2011,5100473327,781.2,Edgar J Browning Ltd
Manchester City Council,Hospitality + Trading Services,Hire of Equipment,10.08.2011,5100473329,781.2,Edgar J Browning Ltd
Manchester City Council,Chief Executives,Hire of Equipment,10.08.2011,5100472442,"2,400.00",Portable Conveniences Ltd
Manchester City Council,Adult Social Care,Landline Telephone,10.08.2011,1902745951,"1,202.07",BT PLC
Manchester City Council,Chief Executives,Landline Telephone,10.08.2011,1902739845,"129,861.95",BT PLC
Manchester City Council,Learning Disabilities PB,Payments for services,10.08.2011,5100473971,"3,981.80",SLC Paragon
Manchester City Council,Learning Disabilities PB,Payments for services,10.08.2011,5100473992,"3,981.80",SLC Paragon
Manchester City Council,Learning Disabilities PB,Payments for services,10.08.2011,5100473996,"3,981.80",SLC Paragon
Manchester City Council,Learning Disabilities PB,Payments for services,10.08.2011,5100473975,"2,746.28",SLC Paragon
Manchester City Council,Learning Disabilities PB,Payments for services,10.08.2011,5100473990,"2,746.28",SLC Paragon
Manchester City Council,Learning Disabilities PB,Payments for services,10.08.2011,5100473994,"2,746.28",SLC Paragon
Manchester City Council,Learning Disabilities PB,Payments for services,10.08.2011,5100473978,"1,946.60",SLC Paragon
Manchester City Council,Learning Disabilities PB,Payments for services,10.08.2011,5100474000,"1,946.60",SLC Paragon
Manchester City Council,Learning Disabilities PB,Payments for services,10.08.2011,5100473985,"1,621.68",SLC Paragon
Manchester City Council,Learning Disabilities PB,Payments for services,10.08.2011,5100474250,"1,621.68",SLC Paragon
Manchester City Council,Learning Disabilities PB,Payments for services,10.08.2011,5100473986,"1,470.96",SLC Paragon
Manchester City Council,Learning Disabilities PB,Payments for services,10.08.2011,5100473987,"1,470.96",SLC Paragon
Manchester City Council,Chief Executives,Payments to Sub-Contractors,10.08.2011,5100472283,550,MEN Media Ltd
Manchester City Council,Adult Social Care,Personal needs of client,10.08.2011,5100473945,"1,798.00",Aidapt Bathrooms Ltd
Manchester City Council,Adult Social Care,Personal needs of client,10.08.2011,5100473941,545.7,Aidapt Bathrooms Ltd
Manchester City Council,Chief Executives,Printing,10.08.2011,5100471512,540,Browns CTP Ltd
Manchester City Council,Chief Executives,Printing,10.08.2011,5100472416,744,Holdmede Ltd T/A Pelican Press
Manchester City Council,Childrens Services,Proffesional fees,10.08.2011,1902731412,"1,277.81",Somerville Raine Limited
Manchester City Council,Childrens Services,Proffesional fees,10.08.2011,1902740016,736.67,Stockport Psychology Services
Manchester City Council,Corporate Services,Proffesional fees,10.08.2011,5100471886,"5,562.17",Rider Levett Bucknall UK Ltd
Manchester City Council,Chief Executives,Proffesional fees,10.08.2011,5100462245,"148,679.96",Greater Manchester Police
Manchester City Council,Chief Executives,Proffesional fees,10.08.2011,5100462247,"46,299.19",Greater Manchester Police
Manchester City Council,Hospitality + Trading Services,Purchase of stores for re-distribution,10.08.2011,5100474255,560,Ecomix Concrete Ltd
Manchester City Council,Hospitality + Trading Services,Purchase of stores for re-distribution,10.08.2011,5100474254,513,Ecomix Concrete Ltd
Manchester City Council,Hospitality + Trading Services,Refuse Collection,10.08.2011,5100474052,"2,579.47",Enterprise Manchester Partnership
Manchester City Council,Hospitality + Trading Services,Refuse Collection,10.08.2011,5100474167,"1,659.90",Enterprise Manchester Partnership
Manchester City Council,Hospitality + Trading Services,Refuse Collection,10.08.2011,5100474236,743.3,Enterprise Manchester Partnership
Manchester City Council,Hospitality + Trading Services,Security,10.08.2011,5100472972,"317,438.03",Group 4 Total Security Ltd T/A G4S
Manchester City Council,Regeneration Finance,Stationery,10.08.2011,5100474077,676.18,Banner Business Services Ltd
Manchester City Council,Corporate Services,Storage Costs,10.08.2011,5100471358,"10,020.30",DeepStore Limited
Manchester City Council,Corporate Services,Storage Costs,10.08.2011,5100471356,"6,594.25",DeepStore Limited
Manchester City Council,Manchester Leisure,Subsistence and Conference Expenses,10.08.2011,5100474208,"1,220.00",The Lowry Hotel
Manchester City Council,Learning Disabilities PB,Third party payments relating to Voluntary Organisations,10.08.2011,5100473968,"3,713.33",Talbot House Support Centre
Manchester City Council,Chief Executives,Third party payments to Health Authority,10.08.2011,5100474022,"2,094.67",Ashton Leigh & Wigan PCT
Manchester City Council,Manchester Leisure,Tipping - Tonnage,10.08.2011,5100474112,"1,760.31",Enterprise Manchester Partnership
Manchester City Council,Chief Executives,Training and Development,10.08.2011,5100471952,"1,189.90",T-Three Public Sector Consulting
Manchester City Council,Childrens Services,Transport Coach Hire,10.08.2011,5100474025,"1,840.00",Belle Vue Manchester
Manchester City Council,Childrens Services,Transport Coach Hire,10.08.2011,5100473258,735,Executive Travell
Manchester City Council,Childrens Services,Transport Coach Hire,10.08.2011,5100473202,"1,280.00",Redacted Personal Information
Manchester City Council,Childrens Services,Transport Coach Hire,10.08.2011,5100474121,"1,543.35",Teletaxis Accounts Ltd
Manchester City Council,Childrens Services,Transport Coach Hire,10.08.2011,5100474075,-907,Teletaxis Accounts Ltd
Manchester City Council,Childrens Services,Transport Coach Hire,10.08.2011,5100474074,"-1,390.00",Teletaxis Accounts Ltd
Manchester City Council,Hospitality + Trading Services,Vehicle Hire Costs,10.08.2011,5100472276,"26,086.20",Winners Contract Hire Ltd
Manchester City Council,Childrens Services,Works and associated costs for Land and Buildings,10.08.2011,5100474229,"34,881.47",Bramall Construction Ltd
Manchester City Council,Childrens Services,Works and associated costs for Land and Buildings,10.08.2011,5100474231,"14,739.25",Bramall Construction Ltd
Manchester City Council,Chief Executives,Works and associated costs for Land and Buildings,10.08.2011,5100474019,"49,911.21",Click Netherfield
Manchester City Council,Chief Executives,Works and associated costs for Land and Buildings,10.08.2011,5100473917,"3,338.57",Mace Ltd
Manchester City Council,Chief Executives,Works and associated costs for Land and Buildings,10.08.2011,5100473919,"-3,885.52",Mace Ltd
Manchester City Council,Chief Executives,Agency staff provision,11.08.2011,5100474618,"4,250.00",Badenoch & Clark
Manchester City Council,Chief Executives,Agency staff provision,11.08.2011,5100474619,"4,250.00",Badenoch & Clark
Manchester City Council,Chief Executives,Agency staff provision,11.08.2011,5100473573,"1,448.51",P S Care
Manchester City Council,Chief Executives,Agency staff provision,11.08.2011,5100474276,659.46,Recruitment Solutions (NW) Ltd
Manchester City Council,Chief Executives,Agency staff provision,11.08.2011,5100474713,"2,164.51",Rullion Engineering Personnel Limit
Manchester City Council,Chief Executives,Agency staff provision,11.08.2011,5100473551,"3,056.49",Search Consultancy Ltd
Manchester City Council,Hospitality + Trading Services,Building Materials for direct delivery,11.08.2011,5100473952,573.63,Howarth Timber
Manchester City Council,Adult Social Care,Building Materials for direct delivery,11.08.2011,5100474369,"1,120.00",Illingworth Ingham (M/cR)
Manchester City Council,Childrens Services,Car Parking Expenses,11.08.2011,1700021539,"-2,500.00",Northern Way Properties Limited
Manchester City Council,Childrens Services,Car Parking Permits,11.08.2011,1902720275,"10,554.31",Northern Way Properties Limited
Manchester City Council,Environment and Operations,Cash Collection,11.08.2011,5100474425,"4,152.70",G4S Cash Services (Uk) Ltd
Manchester City Council,Hospitality + Trading Services,Catering Provisions,11.08.2011,1902747865,875.12,Berkeley Care Management Ltd
Manchester City Council,Hospitality + Trading Services,Catering Provisions,11.08.2011,1902747864,764.53,Berkeley Care Management Ltd
Manchester City Council,Hospitality + Trading Services,Catering Provisions,11.08.2011,1902747863,762.9,Berkeley Care Management Ltd
Manchester City Council,Hospitality + Trading Services,Catering Provisions,11.08.2011,1902747866,744.98,Berkeley Care Management Ltd
Manchester City Council,Manchester Leisure,Consultants Fees,11.08.2011,5100473555,"5,400.00",Mace Ltd
Manchester City Council,Housing Revenue Account,Consultants Fees,11.08.2011,5100474322,"7,994.70",Mpulse Ltd
Manchester City Council,Hospitality + Trading Services,Contract Cleaning External,11.08.2011,5100474687,"23,569.00",Ocean Contract Cleaning Ltd
Manchester City Council,Hospitality + Trading Services,Contract Cleaning External,11.08.2011,5100474696,591.36,Ocean Contract Cleaning Ltd
Manchester City Council,Learning Disabilities PB,Day Care Payments,11.08.2011,5100474274,675.15,Ormerod Home Trust Ltd
Manchester City Council,Corporate Services,Electricity,11.08.2011,1902748176,"2,164.03",E-On
Manchester City Council,Manchester Leisure,Equipment,11.08.2011,5100464440,"1,200.00",Information & Data Network Supplies
Manchester City Council,Adult Social Care,Equipment,11.08.2011,5100473568,"3,057.45",Sunridge Upholstery Ltd
Manchester City Council,Chief Executives,Equipment,11.08.2011,5100474379,"1,736.35",Data Space Limited
Manchester City Council,Childrens Services,Foster Payments,11.08.2011,1902748285,803.55,Redacted Personal Information
Manchester City Council,Adult Social Care,Furniture,11.08.2011,5100474644,"1,893.10",The Furnishing Service Ltd
Manchester City Council,Adult Social Care,Furniture,11.08.2011,5100472413,954.68,The Furnishing Service Ltd
Manchester City Council,Adult Social Care,Furniture,11.08.2011,5100474649,812.59,The Furnishing Service Ltd
Manchester City Council,Adult Social Care,Furniture,11.08.2011,5100474500,700,The Furnishing Service Ltd
Manchester City Council,Manchester Leisure,Grant and subscriptions awarded,11.08.2011,5100474631,"10,000.00",AllAboutAudiences
Manchester City Council,Housing Revenue Account,Grant and subscriptions awarded,11.08.2011,5100474004,"4,886.00",Northwards Housing Limited
Manchester City Council,Hospitality + Trading Services,Hire of Machinery,11.08.2011,5100474217,"4,006.80",Ruttle Plant Hire Ltd
Manchester City Council,Manchester Leisure,I T Provision,11.08.2011,5100472396,840,GBM Digital Technologies Ltd
Manchester City Council,Manchester Leisure,I T Provision,11.08.2011,5100474664,525,GBM Digital Technologies Ltd
Manchester City Council,Adult Social Care,I T Provision,11.08.2011,5100473115,988.8,Trojan Consultants Ltd
Manchester City Council,Chief Executives,I T Provision,11.08.2011,5100474029,"45,000.00",Computerland Uk Ltd
Manchester City Council,Chief Executives,I T Provision,11.08.2011,5100474030,"45,000.00",Computerland Uk Ltd
Manchester City Council,Insurance Fund,Insurance,11.08.2011,5100474328,"2,056.25",Redacted Personal Information
Manchester City Council,Hospitality + Trading Services,Internal Repairs and Maintenance for buildings,11.08.2011,5100474636,601.52,Dante Fire & Security Ltd
Manchester City Council,Environment and Operations,Landline Telephone,11.08.2011,1902741338,887.71,Cable & Wireless UK
Manchester City Council,Adult Social Care,Landline Telephone,11.08.2011,1902088102,"1,058.63",Cable & Wireless UK
Manchester City Council,Adult Social Care,Landline Telephone,11.08.2011,1902384458,"1,014.07",Cable & Wireless UK
Manchester City Council,Adult Social Care,Landline Telephone,11.08.2011,1901824297,882.57,Cable & Wireless UK
Manchester City Council,Housing Revenue Account,Landline Telephone,11.08.2011,1902741379,753.75,Cable & Wireless UK
Manchester City Council,Highways Services,Landline Telephone,11.08.2011,1700021544,"-2,412.00",Cable & Wireless UK
Manchester City Council,Highways Services,Legal Fees,11.08.2011,5100474326,"1,242.00",Redacted Personal Information
Manchester City Council,Highways Services,Legal Fees,11.08.2011,5100474319,571.94,Sph Costing Services Ltd
Manchester City Council,Environment and Operations,Licences Purchase,11.08.2011,5100472661,650,MobileWorks Ltd
Manchester City Council,Libraries and Theatres,"Papers,Periodic Mags",11.08.2011,5100473716,"1,053.35",Miles Newsagents
Manchester City Council,Childrens Services,Payments for services,11.08.2011,5100474429,974.4,Redacted Personal Information
Manchester City Council,Chief Executives,Payments for services,11.08.2011,5100472668,"2,084.00",HM Prison Service
Manchester City Council,Learning Disabilities PB,Payments for services,11.08.2011,5100474260,"1,621.68",SLC Paragon
Manchester City Council,Learning Disabilities PB,Payments for services,11.08.2011,5100474647,"1,470.96",SLC Paragon
Manchester City Council,Learning Disabilities PB,Payments for services,11.08.2011,5100474658,"1,470.96",SLC Paragon
Manchester City Council,Learning Disabilities PB,Payments for services,11.08.2011,5100474613,"16,125.60",Standwalk Ltd
Manchester City Council,Learning Disabilities PB,Payments for services,11.08.2011,5100474600,"8,966.44",U B U (Northern Life Care Ltd)
Manchester City Council,Hospitality + Trading Services,Payments to Sub-Contractors,11.08.2011,5100474629,"1,475.00",Arboricultural Services Treework
Manchester City Council,Hospitality + Trading Services,Payments to Sub-Contractors,11.08.2011,5100474280,"12,175.26",J.Hopkins (Contractors) Ltd.
Manchester City Council,Hospitality + Trading Services,Payments to Sub-Contractors,11.08.2011,5100474299,"2,750.62",J.Hopkins (Contractors) Ltd.
Manchester City Council,Hospitality + Trading Services,Payments to Sub-Contractors,11.08.2011,5100473000,"6,469.38",Kenny Bros (Civil Eng) Ltd
Manchester City Council,Hospitality + Trading Services,Payments to Sub-Contractors,11.08.2011,5100472992,"1,958.88",Kenny Bros (Civil Eng) Ltd
Manchester City Council,Hospitality + Trading Services,Payments to Sub-Contractors,11.08.2011,5100472987,995.96,Kenny Bros (Civil Eng) Ltd
Manchester City Council,Hospitality + Trading Services,Payments to Sub-Contractors,11.08.2011,5100472989,691.88,Kenny Bros (Civil Eng) Ltd
Manchester City Council,Highways Services,Payments to Sub-Contractors,11.08.2011,5100474424,625,Underground Surveys (UK) Ltd
Manchester City Council,Environment and Operations,Postage,11.08.2011,5100474426,"1,895.76",Royal Mail Group Ltd
Manchester City Council,Corporate Services,Postage,11.08.2011,5100474392,"1,852.97",Royal Mail Group Plc
Manchester City Council,Childrens Services,Professional Services Corriculum,11.08.2011,5100474129,"7,816.66",Manchester Communication Academy
Manchester City Council,Childrens Services,Proffesional fees,11.08.2011,5100474288,650,Rhythm and Rhyme Limited
Manchester City Council,Corporate Services,Proffesional fees,11.08.2011,5100474315,"2,378.20",Axon Solutions Limited
Manchester City Council,Corporate Services,Proffesional fees,11.08.2011,5100474313,"1,297.10",Axon Solutions Limited
Manchester City Council,Corporate Services,Proffesional fees,11.08.2011,5100474324,"-1,297.10",Axon Solutions Limited
Manchester City Council,Corporate Services,Proffesional fees,11.08.2011,5100474320,"-2,378.20",Axon Solutions Limited
Manchester City Council,Corporate Services,Proffesional fees,11.08.2011,5100473575,"1,150.70",GVA Grimley Ltd
Manchester City Council,Corporate Services,Proffesional fees,11.08.2011,5100473933,"8,489.00",PS&P
Manchester City Council,Corporate Services,Proffesional fees,11.08.2011,5100474298,"8,489.00",PS&P
Manchester City Council,Corporate Services,Proffesional fees,11.08.2011,5100474297,"-8,489.00",PS&P
Manchester City Council,Corporate Services,Proffesional fees,11.08.2011,5100472759,"6,380.00",Rider Levett Bucknall UK Ltd
Manchester City Council,Learning Disabilities PB,Proffesional fees,11.08.2011,5100474595,"1,136.98",Parkway Green Housing Trust
Manchester City Council,Learning Disabilities PB,Proffesional fees,11.08.2011,5100474595,"1,004.38",Parkway Green Housing Trust
Manchester City Council,Chief Executives,Publications,11.08.2011,5100474450,519.45,Lexis Nexis Uk
Manchester City Council,Hospitality + Trading Services,Purchase of stores for re-distribution,11.08.2011,5100474266,"2,463.00",Ecomix Concrete Ltd
Manchester City Council,Hospitality + Trading Services,Purchase of stores for re-distribution,11.08.2011,5100474268,875,Ecomix Concrete Ltd
Manchester City Council,Hospitality + Trading Services,Purchase of stores for re-distribution,11.08.2011,5100474261,700,Ecomix Concrete Ltd
Manchester City Council,Hospitality + Trading Services,Purchase of stores for re-distribution,11.08.2011,5100474269,700,Ecomix Concrete Ltd
Manchester City Council,Hospitality + Trading Services,Purchase of stores for re-distribution,11.08.2011,5100474270,700,Ecomix Concrete Ltd
Manchester City Council,Environment and Operations,Radio Charges,11.08.2011,5100474712,986.13,Siemens Plc
Manchester City Council,Hospitality + Trading Services,Refuse Collection,11.08.2011,5100474165,"9,305.02",Enterprise Manchester Partnership
Manchester City Council,Hospitality + Trading Services,Refuse Collection,11.08.2011,5100474677,567.67,G.G. Rentals Ltd
Manchester City Council,Corporate Services,Refuse Collection,11.08.2011,5100474045,"1,561.00",Enterprise Manchester Partnership
Manchester City Council,Adult Social Care,Renoval and Storage of Furniture,11.08.2011,5100474497,"3,182.00",The Furnishing Service Ltd
Manchester City Council,Libraries and Theatres,Rents,11.08.2011,5100474310,"6,236.55",Wythenshawe Forum Trust Ltd
Manchester City Council,Libraries and Theatres,Rents,11.08.2011,5100474317,"5,733.27",Wythenshawe Forum Trust Ltd
Manchester City Council,Corporate Services,Rents,11.08.2011,1902720858,"1,000.00",Northern Way Properties Limited
Manchester City Council,Corporate Services,Rents,11.08.2011,1902720283,800,Northern Way Properties Limited
Manchester City Council,Corporate Services,Responsive Repairs Work,11.08.2011,5100469129,"27,250.00",Ellis Williams Architects
Manchester City Council,Childrens Services,Supported Accommodation,11.08.2011,5100474591,990.76,Caritas Diocese of Salford
Manchester City Council,Childrens Services,Supported Accommodation,11.08.2011,5100474592,990.76,Caritas Diocese of Salford
Manchester City Council,Childrens Services,Supported Accommodation,11.08.2011,5100474589,958.8,Caritas Diocese of Salford
Manchester City Council,Childrens Services,Supported Accommodation,11.08.2011,5100474615,958.8,Caritas Diocese of Salford
Manchester City Council,Learning Disabilities PB,Supported Accommodation,11.08.2011,5100474265,"2,595.32",SLC Paragon
Manchester City Council,Chief Executives,Third party payments relating to Voluntary Organisations,11.08.2011,5100474652,"22,030.00",Addaction
Manchester City Council,Chief Executives,Third party payments relating to Voluntary Organisations,11.08.2011,5100474300,"52,148.00",Lifeline Project Limited
Manchester City Council,Adult Social Care,Third party payments to Health Authority,11.08.2011,5100474318,"19,675.43",Alt Payee  CIC T/A Inspirit Care Lt
Manchester City Council,Corporate Services,Training and Development,11.08.2011,5100473930,787,Stockport Metropolitan Borough Coun
Manchester City Council,Corporate Services,Training and Development,11.08.2011,5100474366,"1,375.00",The Manchester College
Manchester City Council,Highways Services,Transfer to Reserves,11.08.2011,5100474545,"8,517.66",Kenny Bros (Civil Eng) Ltd
Manchester City Council,Childrens Services,Transport Coach Hire,11.08.2011,5100474723,"1,280.00",Redacted Personal Information T/A Beresford Travel
Manchester City Council,Insurance Fund,Vehicle & Plant Ins,11.08.2011,5100474653,"16,622.00",Zurich Insurance
Manchester City Council,Hospitality + Trading Services,Vehicle Costs,11.08.2011,5100474581,874.72,Millennium Supplies Ltd
Manchester City Council,Hospitality + Trading Services,Vehicle Hire Costs,11.08.2011,5100474098,"2,481.07",Specialist Vehicle rental
Manchester City Council,Hospitality + Trading Services,Vehicle Parts/Spares,11.08.2011,5100474413,752.5,Faun Zoeller (UK) Ltd
Manchester City Council,Manchester Leisure,Water - Metered,11.08.2011,1902748142,"13,783.82",United Utilities Water Plc
Manchester City Council,Manchester Leisure,Water - Metered,11.08.2011,1902748115,"12,516.79",United Utilities Water Plc
Manchester City Council,Manchester Leisure,Water - Metered,11.08.2011,1902748125,"7,154.46",United Utilities Water Plc
Manchester City Council,Manchester Leisure,Water - Metered,11.08.2011,1902748048,"3,997.96",United Utilities Water Plc
Manchester City Council,Manchester Leisure,Water - Metered,11.08.2011,1902748118,"3,479.31",United Utilities Water Plc
Manchester City Council,Manchester Leisure,Water - Metered,11.08.2011,1902748037,"1,945.89",United Utilities Water Plc
Manchester City Council,Manchester Leisure,Water - Metered,11.08.2011,1902748114,"1,860.44",United Utilities Water Plc
Manchester City Council,Manchester Leisure,Water - Metered,11.08.2011,1902748081,"1,825.59",United Utilities Water Plc
Manchester City Council,Manchester Leisure,Water - Metered,11.08.2011,1902748061,"1,715.41",United Utilities Water Plc
Manchester City Council,Manchester Leisure,Water - Metered,11.08.2011,1902748144,"1,592.33",United Utilities Water Plc
Manchester City Council,Manchester Leisure,Water - Metered,11.08.2011,1902748117,"1,576.09",United Utilities Water Plc
Manchester City Council,Manchester Leisure,Water - Metered,11.08.2011,1902748051,929.2,United Utilities Water Plc
Manchester City Council,Manchester Leisure,Water - Metered,11.08.2011,1902748127,641.46,United Utilities Water Plc
Manchester City Council,Manchester Leisure,Water - Metered,11.08.2011,1700021621,"-1,642.84",United Utilities Water Plc
Manchester City Council,Libraries and Theatres,Water - Metered,11.08.2011,1902748174,"2,132.42",United Utilities Water Plc
Manchester City Council,Libraries and Theatres,Water - Metered,11.08.2011,1902748029,"1,955.74",United Utilities Water Plc
Manchester City Council,Libraries and Theatres,Water - Metered,11.08.2011,1902748111,"1,109.73",United Utilities Water Plc
Manchester City Council,Libraries and Theatres,Water - Metered,11.08.2011,1902748075,561.8,United Utilities Water Plc
Manchester City Council,Hospitality + Trading Services,Water - Metered,11.08.2011,1902748065,"9,222.64",United Utilities Water Plc
Manchester City Council,Hospitality + Trading Services,Water - Metered,11.08.2011,1902748063,"5,209.10",United Utilities Water Plc
Manchester City Council,Hospitality + Trading Services,Water - Metered,11.08.2011,1902748058,"4,440.78",United Utilities Water Plc
Manchester City Council,Hospitality + Trading Services,Water - Metered,11.08.2011,1902748059,"3,588.87",United Utilities Water Plc
Manchester City Council,Hospitality + Trading Services,Water - Metered,11.08.2011,1902748090,"1,836.92",United Utilities Water Plc
Manchester City Council,Hospitality + Trading Services,Water - Metered,11.08.2011,1902748172,"1,222.81",United Utilities Water Plc
Manchester City Council,Hospitality + Trading Services,Water - Metered,11.08.2011,1902748105,561.4,United Utilities Water Plc
Manchester City Council,Hospitality + Trading Services,Water - Metered,11.08.2011,1700021625,-657.49,United Utilities Water Plc
Manchester City Council,Environment and Operations,Water - Metered,11.08.2011,1902748121,"8,966.05",United Utilities Water Plc
Manchester City Council,Environment and Operations,Water - Metered,11.08.2011,1902748112,"6,460.56",United Utilities Water Plc
Manchester City Council,Environment and Operations,Water - Metered,11.08.2011,1902748042,"2,085.93",United Utilities Water Plc
Manchester City Council,Environment and Operations,Water - Metered,11.08.2011,1902748064,554.01,United Utilities Water Plc
Manchester City Council,Environment and Operations,Water - Metered,11.08.2011,1902748149,521.8,United Utilities Water Plc
Manchester City Council,Adult Social Care,Water - Metered,11.08.2011,1902748157,"1,919.56",United Utilities Water Plc
Manchester City Council,Adult Social Care,Water - Metered,11.08.2011,1902748161,"1,608.50",United Utilities Water Plc
Manchester City Council,Adult Social Care,Water - Metered,11.08.2011,1902748034,"1,547.36",United Utilities Water Plc
Manchester City Council,Adult Social Care,Water - Metered,11.08.2011,1902748038,"1,283.60",United Utilities Water Plc
Manchester City Council,Adult Social Care,Water - Metered,11.08.2011,1902748139,"1,190.86",United Utilities Water Plc
Manchester City Council,Adult Social Care,Water - Metered,11.08.2011,1902748077,"1,163.60",United Utilities Water Plc
Manchester City Council,Adult Social Care,Water - Metered,11.08.2011,1902748067,865.91,United Utilities Water Plc
Manchester City Council,Adult Social Care,Water - Metered,11.08.2011,1902748140,845.69,United Utilities Water Plc
Manchester City Council,Adult Social Care,Water - Metered,11.08.2011,1902748073,823.66,United Utilities Water Plc
Manchester City Council,Adult Social Care,Water - Metered,11.08.2011,1902748124,619.2,United Utilities Water Plc
Manchester City Council,Adult Social Care,Water - Metered,11.08.2011,1902748047,598.06,United Utilities Water Plc
Manchester City Council,Adult Social Care,Water - Metered,11.08.2011,1902748101,596.51,United Utilities Water Plc
Manchester City Council,Adult Social Care,Water - Metered,11.08.2011,1700021629,-554.42,United Utilities Water Plc
Manchester City Council,Adult Social Care,Water - Metered,11.08.2011,1700021622,-568.87,United Utilities Water Plc
Manchester City Council,Childrens Services,Water - Metered,11.08.2011,1902747989,"1,701.01",United Utilities Water Plc
Manchester City Council,Childrens Services,Water - Metered,11.08.2011,1902747985,"1,614.31",United Utilities Water Plc
Manchester City Council,Childrens Services,Water - Metered,11.08.2011,1902748027,"1,394.59",United Utilities Water Plc
Manchester City Council,Childrens Services,Water - Metered,11.08.2011,1902748130,"1,128.62",United Utilities Water Plc
Manchester City Council,Childrens Services,Water - Metered,11.08.2011,1902748046,802.01,United Utilities Water Plc
Manchester City Council,Childrens Services,Water - Metered,11.08.2011,1902748163,796.04,United Utilities Water Plc
Manchester City Council,Childrens Services,Water - Metered,11.08.2011,1902748136,790.89,United Utilities Water Plc
Manchester City Council,Childrens Services,Water - Metered,11.08.2011,1902748045,691.58,United Utilities Water Plc
Manchester City Council,Childrens Services,Water - Metered,11.08.2011,1902748102,686.31,United Utilities Water Plc
Manchester City Council,Childrens Services,Water - Metered,11.08.2011,1902748082,675.32,United Utilities Water Plc
Manchester City Council,Childrens Services,Water - Metered,11.08.2011,1902748001,671.01,United Utilities Water Plc
Manchester City Council,Childrens Services,Water - Metered,11.08.2011,1902748164,666.68,United Utilities Water Plc
Manchester City Council,Childrens Services,Water - Metered,11.08.2011,1902748039,652.07,United Utilities Water Plc
Manchester City Council,Childrens Services,Water - Metered,11.08.2011,1902748171,562.24,United Utilities Water Plc
Manchester City Council,Childrens Services,Water - Metered,11.08.2011,1902748109,548.8,United Utilities Water Plc
Manchester City Council,Childrens Services,Water - Metered,11.08.2011,1902748162,529.95,United Utilities Water Plc
Manchester City Council,Childrens Services,Water - Metered,11.08.2011,1902747997,503.75,United Utilities Water Plc
Manchester City Council,Childrens Services,Water - Metered,11.08.2011,1700021623,"-2,193.83",United Utilities Water Plc
Manchester City Council,Corporate Services,Water - Metered,11.08.2011,1902748060,"5,014.68",United Utilities Water Plc
Manchester City Council,Corporate Services,Water - Metered,11.08.2011,1902748057,"2,478.46",United Utilities Water Plc
Manchester City Council,Corporate Services,Water - Metered,11.08.2011,1902748167,"2,239.89",United Utilities Water Plc
Manchester City Council,Corporate Services,Water - Metered,11.08.2011,1902747992,"1,661.24",United Utilities Water Plc
Manchester City Council,Chief Executives,Water - Metered,11.08.2011,1902748035,703.75,United Utilities Water Plc
Manchester City Council,Regeneration Finance,Water - Metered,11.08.2011,1902748044,"1,843.33",United Utilities Water Plc
Manchester City Council,Regeneration Finance,Water - Metered,11.08.2011,1902748070,"1,167.66",United Utilities Water Plc
Manchester City Council,Regeneration Finance,Water - Metered,11.08.2011,1902748126,500.05,United Utilities Water Plc
Manchester City Council,Childrens Services,Works and associated costs for Land and Buildings,11.08.2011,5100474351,"1,201,825.78",GB Building Solutions Ltd
Manchester City Council,Chief Executives,Works and associated costs for Land and Buildings,11.08.2011,5100474397,"42,500.00",HS Sports Ltd
Manchester City Council,Chief Executives,Agency staff provision,12.08.2011,5100474841,"2,106.71",247 Professional Health
Manchester City Council,Chief Executives,Agency staff provision,12.08.2011,5100474983,"1,936.55",Entrust Social Care
Manchester City Council,Chief Executives,Agency staff provision,12.08.2011,5100473311,"7,409.78",Manpower UK Ltd
Manchester City Council,Chief Executives,Agency staff provision,12.08.2011,5100474943,"1,055.59",Morson International
Manchester City Council,Chief Executives,Agency staff provision,12.08.2011,5100472453,"4,398.10",Randstad Care
Manchester City Council,Chief Executives,Agency staff provision,12.08.2011,5100474854,"2,350.00",Real Staffing Group Ltd
Manchester City Council,Chief Executives,Agency staff provision,12.08.2011,5100474738,"2,865.85",Rullion Engineering Personnel Limit
Manchester City Council,Chief Executives,Agency staff provision,12.08.2011,5100474809,"1,732.50",Sacco Mann Ltd
Manchester City Council,Manchester Leisure,Building Materials for direct delivery,12.08.2011,5100474805,850,J.E.Gordon Ltd
Manchester City Council,Hospitality + Trading Services,Building Materials for direct delivery,12.08.2011,5100474912,"1,403.55",Barcham Trees Plc
Manchester City Council,Hospitality + Trading Services,Building Materials for direct delivery,12.08.2011,5100472355,"3,549.21",Burdens Ltd
Manchester City Council,Hospitality + Trading Services,Building Materials for direct delivery,12.08.2011,5100474942,"3,549.21",Burdens Ltd
Manchester City Council,Hospitality + Trading Services,Building Materials for direct delivery,12.08.2011,5100474812,"3,740.00",Isaac Butterworth Ltd
Manchester City Council,Childrens Services,Building Works,12.08.2011,5100471683,"7,635.85",Laing O'Rourke Construction Ltd
Manchester City Council,Childrens Services,Building Works,12.08.2011,5100473497,833,W T Partnership
Manchester City Council,Housing General Fund,Building Works,12.08.2011,5100474962,"1,837.50",Michael Dyson Associates Ltd
Manchester City Council,Housing General Fund,Building Works,12.08.2011,5100474961,"1,093.80",Michael Dyson Associates Ltd
Manchester City Council,Regeneration Finance,Consultants Fees,12.08.2011,5100474453,"3,600.00",Rose Marley Management
Manchester City Council,Environment and Operations,Contract Cleaning External,12.08.2011,5100467410,636.72,PHS Group
Manchester City Council,Regeneration Finance,Contract Cleaning External,12.08.2011,5100474957,"1,300.00",The Co-operative Academy of
Manchester City Council,Childrens Services,Equipment,12.08.2011,5100474513,529.95,Computerland Uk Ltd
Manchester City Council,Corporate Services,General Office Exp,12.08.2011,5100475010,"1,108.07",Data Space Limited
Manchester City Council,Corporate Services,General Office Exp,12.08.2011,5100475002,976.07,Data Space Limited
Manchester City Council,Corporate Services,General Office Exp,12.08.2011,5100475004,-976.07,Data Space Limited
Manchester City Council,Environment and Operations,Grant and subscriptions awarded,12.08.2011,5100474821,"12,000.00",Oldham Borough Council
Manchester City Council,Adult Social Care,Grant and subscriptions awarded,12.08.2011,5100475093,"-3,823.98",Great Places Housing Association
Manchester City Council,Chief Executives,Grant and subscriptions awarded,12.08.2011,1902732402,"2,687.50",Ladybarn Community Association
Manchester City Council,Chief Executives,Grant and subscriptions awarded,12.08.2011,5100474833,"87,900.00",Manchester Alliance For
Manchester City Council,Chief Executives,Grant and subscriptions awarded,12.08.2011,1902741380,"1,250.00",Manchester Somali Senior Citizens
Manchester City Council,Chief Executives,Grant and subscriptions awarded,12.08.2011,1902740635,"2,250.00",The Pankhurst Centre
Manchester City Council,Childrens Services,Home Care ,12.08.2011,5100474742,680,Volunteer Reading Help
Manchester City Council,Childrens Services,Home Care ,12.08.2011,5100474765,680,Volunteer Reading Help
Manchester City Council,Childrens Services,Home Care ,12.08.2011,5100474774,680,Volunteer Reading Help
Manchester City Council,Childrens Services,Home Care ,12.08.2011,5100474760,510,Volunteer Reading Help
Manchester City Council,Chief Executives,I T Provision,12.08.2011,5100474779,"124,459.90",Computacenter (UK) Ltd
Manchester City Council,Chief Executives,I T Provision,12.08.2011,5100474514,972.66,Computerland Uk Ltd
Manchester City Council,Childrens Services,Landline Telephone,12.08.2011,5100474786,800,Intrinsic Technology Limited
Manchester City Council,Chief Executives,Landline Telephone,12.08.2011,1902689727,526.36,BT PLC
Manchester City Council,Chief Executives,Landline Telephone,12.08.2011,1902741385,"3,015.00",Cable & Wireless UK
Manchester City Council,Chief Executives,Landline Telephone,12.08.2011,1902741383,"1,461.00",Cable & Wireless UK
Manchester City Council,Chief Executives,Landline Telephone,12.08.2011,5100474783,"4,488.00",Intrinsic Technology Limited
Manchester City Council,Chief Executives,Landline Telephone,12.08.2011,5100474775,903,Intrinsic Technology Limited
Manchester City Council,Corporate Services,Legal Fees,12.08.2011,5100474550,"5,241.60",Pannone & Partners Solicitors
Manchester City Council,Corporate Services,Legal Fees,12.08.2011,5100474551,804,Pannone & Partners Solicitors
Manchester City Council,Libraries and Theatres,Library Materials Acquisition,12.08.2011,1902741209,"1,200.08",Smiths News Trading Ltd
Manchester City Council,Manchester Leisure,Payments for services,12.08.2011,5100474401,525,Delamere Rangers JFC
Manchester City Council,Manchester Leisure,Payments for services,12.08.2011,5100474806,891.86,Serco Manchester (Manchester Commun
Manchester City Council,Hospitality + Trading Services,Payments to Sub-Contractors,12.08.2011,5100474753,"4,000.00",Arboricultural Services Treework
Manchester City Council,Hospitality + Trading Services,Payments to Sub-Contractors,12.08.2011,5100475057,"2,635.00",Arboricultural Services Treework
Manchester City Council,Hospitality + Trading Services,Payments to Sub-Contractors,12.08.2011,5100473004,"16,497.00",Kenny Bros (Civil Eng) Ltd
Manchester City Council,Chief Executives,Payments to Sub-Contractors,12.08.2011,5100474578,"2,023.30",Interpreter Booking Services
Manchester City Council,Adult Social Care,Personal needs of client,12.08.2011,5100474826,588,Hemingways Marketing Services Ltd
Manchester City Council,Chief Executives,Photocopying,12.08.2011,5100474916,669.43,City Car Club Ltd
Manchester City Council,Chief Executives,Printing,12.08.2011,5100474849,936,Wallace Printers Ltd
Manchester City Council,Manchester Leisure,Proffesional fees,12.08.2011,5100474999,"5,920.12",Greater Manchester Police
Manchester City Council,Environment and Operations,Proffesional fees,12.08.2011,5100472896,"1,959.65",Buckley & Rowbotham
Manchester City Council,Environment and Operations,Proffesional fees,12.08.2011,5100474823,"6,556.00",Criminal Records Bureau
Manchester City Council,Adult Social Care,Proffesional fees,12.08.2011,5100475008,"5,000.00",Great Places Housing Association
Manchester City Council,Adult Social Care,Proffesional fees,12.08.2011,5100474909,"3,000.00",Great Places Housing Association
Manchester City Council,Corporate Services,Proffesional fees,12.08.2011,5100474409,"8,662.50",Faithful & Gould Ltd
Manchester City Council,Corporate Services,Proffesional fees,12.08.2011,5100474406,"6,133.75",Faithful & Gould Ltd
Manchester City Council,Chief Executives,Proffesional fees,12.08.2011,5100474975,815,Health Management (UK) Ltd
Manchester City Council,Libraries and Theatres,Publicity,12.08.2011,5100474952,"1,250.00",Redacted Personal Information
Manchester City Council,Environment and Operations,Radio Charges,12.08.2011,5100450025,"1,671.45",Siemens Financial Services Ltd
Manchester City Council,Corporate Services,Refuse Collection,12.08.2011,5100474272,"1,521.00",Enterprise Manchester Partnership
Manchester City Council,Adult Social Care,Rehabilitation Payments,12.08.2011,5100474930,520,Phoenix Futures
Manchester City Council,Adult Social Care,Rehabilitation Payments,12.08.2011,5100474935,520,Phoenix Futures
Manchester City Council,Environment and Operations,Security,12.08.2011,5100474422,"6,899.00",Close Protection UK Ltd
Manchester City Council,Regeneration Finance,Signers/Interpreters,12.08.2011,5100472233,"1,736.40",Interpreter Booking Services
Manchester City Council,Hospitality + Trading Services,Stationery,12.08.2011,5100474819,529.49,ID Management Systems
Manchester City Council,Childrens Services,Subsistence and Conference Expenses,12.08.2011,5100474997,"2,000.00",Better Choices Ltd
Manchester City Council,Childrens Services,Supported Accommodation,12.08.2011,5100474928,650,Bedspace Resource Ltd
Manchester City Council,Childrens Services,Supported Accommodation,12.08.2011,5100474925,600,Bedspace Resource Ltd
Manchester City Council,Childrens Services,Supported Accommodation,12.08.2011,5100474923,500,Bedspace Resource Ltd
Manchester City Council,Chief Executives,Third party payments relating to Voluntary Organisations,12.08.2011,5100474766,"18,600.00",Addaction
Manchester City Council,Chief Executives,Third party payments relating to Voluntary Organisations,12.08.2011,5100475025,"52,148.00",Lifeline Project Limited
Manchester City Council,Chief Executives,Third party payments relating to Voluntary Organisations,12.08.2011,5100475022,"17,966.00",Lifeline Project Limited
Manchester City Council,Chief Executives,Third party payments relating to Voluntary Organisations,12.08.2011,5100475026,"12,544.00",Lifeline Project Limited
Manchester City Council,Chief Executives,Third party payments relating to Voluntary Organisations,12.08.2011,5100475024,"6,171.33",Lifeline Project Limited
Manchester City Council,Corporate Services,Tracing fees,12.08.2011,5100474534,"2,527.50",Experian Limited
Manchester City Council,Corporate Services,Tracing fees,12.08.2011,5100474460,"1,973.40",Experian Limited
Manchester City Council,Hospitality + Trading Services,Training and Development,12.08.2011,5100474380,870,Enterprise LGV Tutition
Manchester City Council,Childrens Services,Transport Coach Hire,12.08.2011,5100474929,"19,266.00",A J Travel
Manchester City Council,Hospitality + Trading Services,Vehicle contract hire and leases,12.08.2011,5100475050,"4,900.00",S G Equipment Finance Ltd
Manchester City Council,Hospitality + Trading Services,Vehicle contract hire and leases,12.08.2011,5100475047,"1,680.00",S G Equipment Finance Ltd
Manchester City Council,Hospitality + Trading Services,Vehicle contract hire and leases,12.08.2011,5100475045,"1,200.00",S G Equipment Finance Ltd
Manchester City Council,Hospitality + Trading Services,Vehicle Parts/Spares,12.08.2011,5100474944,666.59,Dennis Eagle Ltd
Manchester City Council,Hospitality + Trading Services,Vehicle Parts/Spares,12.08.2011,5100474808,"2,340.00",Miller Oils Ltd
Manchester City Council,Childrens Services,Works and associated costs for Land and Buildings,12.08.2011,5100474780,750,Redacted Personal Information
Manchester City Council,Corporate Services,Works and associated costs for Land and Buildings,12.08.2011,5100474838,"9,360.00",Davis Langdon
Manchester City Council,Childrens Services,Agency staff provision,15.08.2011,5100475252,"8,900.00",Rathberry Limited
Manchester City Council,Childrens Services,Agency staff provision,15.08.2011,5100475228,"2,640.00",Sowing Success
Manchester City Council,Chief Executives,Agency staff provision,15.08.2011,5100475115,"2,815.75",Bluegroup International Ltd
Manchester City Council,Chief Executives,Agency staff provision,15.08.2011,5100475224,"1,067.81",Carepath Recruitment
Manchester City Council,Chief Executives,Agency staff provision,15.08.2011,5100475236,"18,918.11",Eden Brown Ltd
Manchester City Council,Chief Executives,Agency staff provision,15.08.2011,5100475240,"15,163.52",Eden Brown Ltd
Manchester City Council,Chief Executives,Agency staff provision,15.08.2011,5100475243,"2,536.27",Eden Brown Ltd
Manchester City Council,Chief Executives,Agency staff provision,15.08.2011,5100475247,"2,503.28",Eden Brown Ltd
Manchester City Council,Chief Executives,Agency staff provision,15.08.2011,5100475241,"2,161.58",Eden Brown Ltd
Manchester City Council,Chief Executives,Agency staff provision,15.08.2011,5100475238,"1,984.57",Eden Brown Ltd
Manchester City Council,Chief Executives,Agency staff provision,15.08.2011,5100475248,"1,978.90",Eden Brown Ltd
Manchester City Council,Chief Executives,Agency staff provision,15.08.2011,5100475250,"1,978.90",Eden Brown Ltd
Manchester City Council,Chief Executives,Agency staff provision,15.08.2011,5100475242,"1,842.44",Eden Brown Ltd
Manchester City Council,Chief Executives,Agency staff provision,15.08.2011,5100475237,"1,429.02",Eden Brown Ltd
Manchester City Council,Chief Executives,Agency staff provision,15.08.2011,5100475245,"1,156.75",Eden Brown Ltd
Manchester City Council,Chief Executives,Agency staff provision,15.08.2011,5100475112,587.3,Fresh 123 Ltd t/a Pin Point
Manchester City Council,Chief Executives,Agency staff provision,15.08.2011,5100475118,587.3,Fresh 123 Ltd t/a Pin Point
Manchester City Council,Chief Executives,Agency staff provision,15.08.2011,5100474959,"16,385.91",Hays Personnel
Manchester City Council,Chief Executives,Agency staff provision,15.08.2011,5100474191,"2,939.83",Hays Personnel
Manchester City Council,Chief Executives,Agency staff provision,15.08.2011,5100475185,"4,770.00",Real Staffing Group Ltd
Manchester City Council,Chief Executives,Agency staff provision,15.08.2011,5100475153,"-4,770.00",Real Staffing Group Ltd
Manchester City Council,Chief Executives,Agency staff provision,15.08.2011,5100475265,"4,748.76",Semester Recruitment Ltd
Manchester City Council,Chief Executives,Agency staff provision,15.08.2011,5100474731,"10,805.83",SRA Cover Staff Ltd
Manchester City Council,Adult Social Care,Bed & Breakfast Acc,15.08.2011,5100474995,808.33,Redacted Personal Information
Manchester City Council,Adult Social Care,Bed & Breakfast Acc,15.08.2011,5100475027,-808.33,Redacted Personal Information
Manchester City Council,Hospitality + Trading Services,Building Materials for direct delivery,15.08.2011,5100474606,589.2,E & E Workwear
Manchester City Council,Hospitality + Trading Services,Building Materials for direct delivery,15.08.2011,5100474082,"2,288.00",Marshalls Mono Ltd
Manchester City Council,Hospitality + Trading Services,Building Materials for direct delivery,15.08.2011,5100474376,"2,844.00",R S Clare Ltd
Manchester City Council,Childrens Services,Building Works,15.08.2011,5100473648,"446,386.49",Laing O'Rourke Construction Ltd
Manchester City Council,Housing General Fund,Building Works,15.08.2011,1902748417,"9,000.00",Redacted Personal Information
Manchester City Council,Housing General Fund,Building Works,15.08.2011,1902748341,"6,888.00",Terry Lifts Ltd
Manchester City Council,Hospitality + Trading Services,Catering Provisions,15.08.2011,5100473208,"47,493.99",Dairy Crest
Manchester City Council,Hospitality + Trading Services,ClothsUniformLaundry,15.08.2011,5100471233,"1,835.45",Bunzl UK Ltd T/A Greenham
Manchester City Council,Housing Revenue Account,Compensation Payments,15.08.2011,1902740629,"2,300.00",Clifford Johnston & Co
Manchester City Council,Childrens Services,"Consumable items eg Toilet rolls, soap etc",15.08.2011,5100474864,683.16,The Furnishing Service Ltd
Manchester City Council,Hospitality + Trading Services,Equipment,15.08.2011,5100474981,"12,030.00",Hobart U.K.
Manchester City Council,Hospitality + Trading Services,Expenditure re Internal Trading Ordered Externally,15.08.2011,5100475131,"33,532.00",Sun Leisure Ltd
Manchester City Council,Manchester Leisure,Grant and subscriptions awarded,15.08.2011,5100474830,700,Manchester Jazz Festival
Manchester City Council,Chief Executives,Grant and subscriptions awarded,15.08.2011,1902740631,"1,070.00",St Margaret's Church
Manchester City Council,Chief Executives,Grant and subscriptions awarded,15.08.2011,1902740011,"1,700.00",Whitemoss Club For Young People
Manchester City Council,Housing Revenue Account,Heat Management,15.08.2011,5100475196,"-1,282.04",ENER-G Switch 2 Ltd
Manchester City Council,Hospitality + Trading Services,Hire of Machinery,15.08.2011,5100475235,"8,000.00",H & C Plant Hire Ltd
Manchester City Council,Hospitality + Trading Services,Hire of Machinery,15.08.2011,5100475232,"6,139.00",H & C Plant Hire Ltd
Manchester City Council,Hospitality + Trading Services,Hire of Machinery,15.08.2011,5100475234,"1,500.00",H & C Plant Hire Ltd
Manchester City Council,Environment and Operations,Hire of Machinery,15.08.2011,5100473479,"1,800.00",A1 Drainmasters Ltd
Manchester City Council,Environment and Operations,Hire of Machinery,15.08.2011,5100473480,600,A1 Drainmasters Ltd
Manchester City Council,Childrens Services,Hire of Premises,15.08.2011,5100474186,"2,990.00",House Of Grumpy Ltd
Manchester City Council,Childrens Services,Hire of Premises,15.08.2011,5100474190,"1,150.00",House Of Grumpy Ltd
Manchester City Council,Childrens Services,Home Care ,15.08.2011,5100475102,510,Volunteer Reading Help
Manchester City Council,Childrens Services,Home Care ,15.08.2011,5100475105,510,Volunteer Reading Help
Manchester City Council,Learning Disabilities PB,Home Care ,15.08.2011,5100475123,"11,919.00",Respite (North West) Ltd
Manchester City Council,Hospitality + Trading Services,Insurance,15.08.2011,1902747502,"51,761.76",Zurich Municipal
Manchester City Council,Corporate Services,Landline Telephone,15.08.2011,1902741377,"1,449.63",Cable & Wireless UK
Manchester City Council,Corporate Services,Landline Telephone,15.08.2011,5100474856,"1,838.00",Complete Network Services Ltd
Manchester City Council,Hospitality + Trading Services,Legal Fees,15.08.2011,5100475091,600,Redacted Personal Information
Manchester City Council,Environment and Operations,Legal Fees,15.08.2011,5100475279,"1,458.00",Stephensons Solicitors
Manchester City Council,Corporate Services,Legal Fees,15.08.2011,5100474998,"1,229.40",Pannone & Partners Solicitors
Manchester City Council,Housing Revenue Account,Compensation Payments,15.08.2011,1902740076,600,Tranter Cleere & Co
Manchester City Council,General Fund,Levies,15.08.2011,1902749235,"2,861,333.00",GMCA
Manchester City Council,Regeneration Finance,Payments for services,15.08.2011,5100475124,"1,500.00",Cheetham & Crumpsall Welcome Centre
Manchester City Council,Hospitality + Trading Services,Payments to Sub-Contractors,15.08.2011,5100475251,"1,725.00",A1 Drainmasters Ltd
Manchester City Council,Hospitality + Trading Services,Payments to Sub-Contractors,15.08.2011,5100473477,"1,035.00",A1 Drainmasters Ltd
Manchester City Council,Hospitality + Trading Services,Payments to Sub-Contractors,15.08.2011,5100472960,718,Gro 2 Mow
Manchester City Council,Hospitality + Trading Services,Payments to Sub-Contractors,15.08.2011,5100475058,"159,667.18",J.Hopkins (Contractors) Ltd.
Manchester City Council,Highways Services,Payments to Sub-Contractors,15.08.2011,5100474973,"4,522.89",Wilde Consultants Ltd
Manchester City Council,Hospitality + Trading Services,Postage,15.08.2011,5100473626,"4,600.00",Royal Mail Retail.
Manchester City Council,Hospitality + Trading Services,Postage,15.08.2011,5100473629,"3,600.00",Royal Mail Retail.
Manchester City Council,Environment and Operations,Postage,15.08.2011,5100471564,"2,000.00",Neopost Ltd (Credifon)
Manchester City Council,Environment and Operations,Postage,15.08.2011,5100473923,"2,000.00",Neopost Ltd (Credifon)
Manchester City Council,Adult Social Care,Postage,15.08.2011,5100473924,"2,000.00",Neopost Ltd (Credifon)
Manchester City Council,Corporate Services,Postage,15.08.2011,5100473925,"3,000.00",Neopost Ltd (Credifon)
Manchester City Council,Chief Executives,Printing,15.08.2011,5100473535,"1,798.00",Hudson & Pearson
Manchester City Council,Chief Executives,Printing,15.08.2011,5100473537,"1,607.00",Hudson & Pearson
Manchester City Council,Chief Executives,Printing,15.08.2011,5100473532,"1,077.00",Hudson & Pearson
Manchester City Council,Chief Executives,Printing,15.08.2011,5100473559,867,Hudson & Pearson
Manchester City Council,Chief Executives,Printing,15.08.2011,5100473540,757,Hudson & Pearson
Manchester City Council,Childrens Services,Private Finance and Public Private partnership initiatives,15.08.2011,5100473617,"53,479.09",NU3PS
Manchester City Council,Childrens Services,Professional Services Corriculum,15.08.2011,5100472346,"9,508.00",Education Business Solutions
Manchester City Council,Environment and Operations,Proffesional fees,15.08.2011,5100471189,"8,305.71",Daly Drains Ltd
Manchester City Council,Adult Social Care,Proffesional fees,15.08.2011,5100475088,"1,301.54",Willow Park Housing Trust
Manchester City Council,Housing Revenue Account,Proffesional fees,15.08.2011,5100475200,"1,295.04",ENER-G Switch 2 Ltd
Manchester City Council,Libraries and Theatres,Publicity,15.08.2011,5100472402,"3,070.25",Vivid
Manchester City Council,Hospitality + Trading Services,Purchase of stores for re-distribution,15.08.2011,5100474528,693.6,Buildbase Ltd aka Axon Buildbase
Manchester City Council,Hospitality + Trading Services,Purchase of stores for re-distribution,15.08.2011,5100475114,"2,344.00",Hugh Logan Engineering Ltd
Manchester City Council,Hospitality + Trading Services,Purchase of stores for re-distribution,15.08.2011,5100474170,"3,153.60",Marshalls Mono Ltd
Manchester City Council,Hospitality + Trading Services,Purchase of stores for re-distribution,15.08.2011,5100474172,"1,254.24",Marshalls Mono Ltd
Manchester City Council,Regeneration Finance,Renoval and Storage of Furniture,15.08.2011,5100475116,893.62,BCL
Manchester City Council,Adult Social Care,Rents,15.08.2011,5100475280,"1,878.56",Eastlands Homes Partnership Ltd
Manchester City Council,Corporate Services,Rents,15.08.2011,5100475255,"18,750.00",Maryland Securities Ltd
Manchester City Council,Chief Executives,Third party payments relating to Voluntary Organisations,15.08.2011,5100475111,"15,535.00",New Start
Manchester City Council,Childrens Services,Training and Development,15.08.2011,5100474516,900,Essential Papers Ltd
Manchester City Council,Childrens Services,Transport Coach Hire,15.08.2011,5100475085,"4,832.24",M Travel
Manchester City Council,Hospitality + Trading Services,Vehicle Hire Costs,15.08.2011,5100474842,580,Vale Engineering (York) Ltd
Manchester City Council,Hospitality + Trading Services,Vehicle Hire Costs,15.08.2011,5100475135,580,Vale Engineering (York) Ltd
Manchester City Council,Hospitality + Trading Services,Vehicle Hire Costs,15.08.2011,5100475134,-580,Vale Engineering (York) Ltd
Manchester City Council,Hospitality + Trading Services,Vehicle Hire Costs,15.08.2011,5100475257,-580,Vale Engineering (York) Ltd
Manchester City Council,Hospitality + Trading Services,Vehicle Repairs,15.08.2011,5100475082,524.82,Advanced Vehicle Technicians Ltd
Manchester City Council,Adult Social Care,Window Cleaning,15.08.2011,5100471098,600,L.M.J.Windows Ltd
Manchester City Council,Manchester Leisure,Works and associated costs for Land and Buildings,15.08.2011,5100474009,"1,800.00",Imagemakers Design & Consulting
Manchester City Council,Manchester Leisure,Works and associated costs for Land and Buildings,15.08.2011,5100475128,"1,200.00",Imagemakers Design & Consulting
Manchester City Council,Childrens Services,Works and associated costs for Land and Buildings,15.08.2011,5100475203,"15,582.00",Cruden Group Ltd
Manchester City Council,Childrens Services,Works and associated costs for Land and Buildings,15.08.2011,5100475204,"9,130.00",Cruden Group Ltd
Manchester City Council,Childrens Services,Works and associated costs for Land and Buildings,15.08.2011,5100474979,"123,150.00",GB Building Solutions Ltd
Manchester City Council,Childrens Services,Works and associated costs for Land and Buildings,15.08.2011,5100474988,"101,158.00",GB Building Solutions Ltd
Manchester City Council,Childrens Services,Works and associated costs for Land and Buildings,15.08.2011,5100473236,"573,027.40",Laing O'Rourke Construction Ltd
Manchester City Council,Childrens Services,Agency staff provision,16.08.2011,5100475301,"1,200.00",Randstad Education
Manchester City Council,Childrens Services,Agency staff provision,16.08.2011,5100475304,"1,200.00",Randstad Education
Manchester City Council,Childrens Services,Agency staff provision,16.08.2011,5100475309,"1,200.00",Randstad Education
Manchester City Council,Childrens Services,Agency staff provision,16.08.2011,5100475348,"1,189.30",Randstad Education
Manchester City Council,Childrens Services,Agency staff provision,16.08.2011,5100475382,"1,157.25",Randstad Education
Manchester City Council,Childrens Services,Agency staff provision,16.08.2011,5100475408,"1,132.70",Randstad Education
Manchester City Council,Childrens Services,Agency staff provision,16.08.2011,5100475359,"1,122.93",Randstad Education
Manchester City Council,Childrens Services,Agency staff provision,16.08.2011,5100475364,"1,122.90",Randstad Education
Manchester City Council,Childrens Services,Agency staff provision,16.08.2011,5100475378,"1,085.57",Randstad Education
Manchester City Council,Childrens Services,Agency staff provision,16.08.2011,5100475350,"1,075.00",Randstad Education
Manchester City Council,Childrens Services,Agency staff provision,16.08.2011,5100475380,"1,075.00",Randstad Education
Manchester City Council,Childrens Services,Agency staff provision,16.08.2011,5100475406,"1,075.00",Randstad Education
Manchester City Council,Childrens Services,Agency staff provision,16.08.2011,5100475384,"1,073.30",Randstad Education
Manchester City Council,Childrens Services,Agency staff provision,16.08.2011,5100475362,"1,073.29",Randstad Education
Manchester City Council,Childrens Services,Agency staff provision,16.08.2011,5100475386,"1,050.00",Randstad Education
Manchester City Council,Childrens Services,Agency staff provision,16.08.2011,5100475412,"1,050.00",Randstad Education
Manchester City Council,Childrens Services,Agency staff provision,16.08.2011,5100475300,"1,045.00",Randstad Education
Manchester City Council,Childrens Services,Agency staff provision,16.08.2011,5100475302,"1,045.00",Randstad Education
Manchester City Council,Childrens Services,Agency staff provision,16.08.2011,5100475310,"1,045.00",Randstad Education
Manchester City Council,Childrens Services,Agency staff provision,16.08.2011,5100475315,"1,045.00",Randstad Education
Manchester City Council,Childrens Services,Agency staff provision,16.08.2011,5100475404,"1,045.00",Randstad Education
Manchester City Council,Childrens Services,Agency staff provision,16.08.2011,5100475410,"1,045.00",Randstad Education
Manchester City Council,Childrens Services,Agency staff provision,16.08.2011,5100475361,787.38,Randstad Education
Manchester City Council,Childrens Services,Agency staff provision,16.08.2011,5100475381,676.25,Randstad Education
Manchester City Council,Childrens Services,Agency staff provision,16.08.2011,5100475379,675.2,Randstad Education
Manchester City Council,Childrens Services,Agency staff provision,16.08.2011,5100475357,657.05,Randstad Education
Manchester City Council,Childrens Services,Agency staff provision,16.08.2011,5100475368,646.1,Randstad Education
Manchester City Council,Childrens Services,Agency staff provision,16.08.2011,5100475092,645.76,Randstad Education
Manchester City Council,Childrens Services,Agency staff provision,16.08.2011,5100475397,625,Randstad Education
Manchester City Council,Childrens Services,Agency staff provision,16.08.2011,5100475399,625,Randstad Education
Manchester City Council,Childrens Services,Agency staff provision,16.08.2011,5100475405,625,Randstad Education
Manchester City Council,Childrens Services,Agency staff provision,16.08.2011,5100475407,625,Randstad Education
Manchester City Council,Childrens Services,Agency staff provision,16.08.2011,5100475095,581.76,Randstad Education
Manchester City Council,Childrens Services,Agency staff provision,16.08.2011,5100475394,575,Randstad Education
Manchester City Council,Childrens Services,Agency staff provision,16.08.2011,5100475415,575,Randstad Education
Manchester City Council,Childrens Services,Agency staff provision,16.08.2011,5100475233,-575,Randstad Education
Manchester City Council,Childrens Services,Agency staff provision,16.08.2011,5100475246,-575,Randstad Education
Manchester City Council,Childrens Services,Agency staff provision,16.08.2011,5100475253,-575,Randstad Education
Manchester City Council,Childrens Services,Agency staff provision,16.08.2011,5100475254,-575,Randstad Education
Manchester City Council,Childrens Services,Agency staff provision,16.08.2011,5100475272,-575,Randstad Education
Manchester City Council,Childrens Services,Agency staff provision,16.08.2011,5100475274,-575,Randstad Education
Manchester City Council,Childrens Services,Agency staff provision,16.08.2011,5100475283,-575,Randstad Education
Manchester City Council,Childrens Services,Agency staff provision,16.08.2011,5100475284,-575,Randstad Education
Manchester City Council,Childrens Services,Agency staff provision,16.08.2011,5100475271,-599.4,Randstad Education
Manchester City Council,Childrens Services,Agency staff provision,16.08.2011,5100475273,-610.64,Randstad Education
Manchester City Council,Childrens Services,Agency staff provision,16.08.2011,5100475269,-611.38,Randstad Education
Manchester City Council,Childrens Services,Agency staff provision,16.08.2011,5100475290,990,Sowing Success
Manchester City Council,Childrens Services,Agency staff provision,16.08.2011,5100475291,540,Sowing Success
Manchester City Council,Chief Executives,Agency staff provision,16.08.2011,5100475468,"5,950.50",Reed Employment Plc
Manchester City Council,Chief Executives,Agency staff provision,16.08.2011,5100475473,587.2,Reed Employment Plc
Manchester City Council,Manchester Leisure,Building Materials for direct delivery,16.08.2011,5100475217,535,VC Electronics
Manchester City Council,Hospitality + Trading Services,Building Materials for direct delivery,16.08.2011,5100475727,"2,518.08",Burdens Ltd
Manchester City Council,Adult Social Care,Building Materials for direct delivery,16.08.2011,5100473161,750,Powell Hardware Ltd
Manchester City Council,Environment and Operations,Car Parking Permits,16.08.2011,5100475205,"69,360.53",NSL Ltd
Manchester City Council,Environment and Operations,Car Parking Permits,16.08.2011,5100475206,"60,000.00",NSL Ltd
Manchester City Council,Environment and Operations,Car Parking Permits,16.08.2011,5100475205,"1,604.00",NSL Ltd
Manchester City Council,Hospitality + Trading Services,Catering Provisions,16.08.2011,1902749801,578.8,Bunzl Catering Supplies
Manchester City Council,Childrens Services,Catering Provisions,16.08.2011,5100475195,641.57,3663 (Bfs Group Ltd)
Manchester City Council,Environment and Operations,Contract Cleaning External,16.08.2011,5100473105,"11,135.60",Morrison Merlin Limited
Manchester City Council,Environment and Operations,Contract Cleaning External,16.08.2011,5100473104,"10,701.83",Morrison Merlin Limited
Manchester City Council,Environment and Operations,Contract Cleaning External,16.08.2011,5100473101,"10,643.72",Morrison Merlin Limited
Manchester City Council,Environment and Operations,Electricity,16.08.2011,5100473101,"2,920.00",Morrison Merlin Limited
Manchester City Council,Environment and Operations,Electricity,16.08.2011,5100473104,"2,920.00",Morrison Merlin Limited
Manchester City Council,Environment and Operations,Electricity,16.08.2011,5100473105,"2,555.00",Morrison Merlin Limited
Manchester City Council,Corporate Services,Equipment,16.08.2011,5100471541,898.29,Victoria Baths Trust
Manchester City Council,Environment and Operations,Expenditure re Internal Trading Ordered Externally,16.08.2011,5100475295,"2,700.00",Peel Investments (north) Ltd
Manchester City Council,Corporate Services,External repairs and maintenance for buildings,16.08.2011,5100475090,735,Redacted Personal Information
Manchester City Council,Corporate Services,External repairs and maintenance for buildings,16.08.2011,5100471541,688.57,Victoria Baths Trust
Manchester City Council,Corporate Services,Fees,16.08.2011,1902748537,"3,569.73",Equita Ltd
Manchester City Council,Corporate Services,Fees,16.08.2011,1902748537,"-3,569.73",Equita Ltd
Manchester City Council,Adult Social Care,Funeral and coroner related services,16.08.2011,5100475517,"1,537.00",Michael Kennedy Funeral Service
Manchester City Council,Adult Social Care,Funeral and coroner related services,16.08.2011,5100475516,587,Michael Kennedy Funeral Service
Manchester City Council,Adult Social Care,Funeral and coroner related services,16.08.2011,5100475515,"1,204.00",Michael Kennedy Funeral Service
Manchester City Council,Adult Social Care,Funeral and coroner related services,16.08.2011,5100475535,997,Michael Kennedy Funeral Service
Manchester City Council,Adult Social Care,Funeral and coroner related services,16.08.2011,5100475540,997,Michael Kennedy Funeral Service
Manchester City Council,Adult Social Care,Funeral and coroner related services,16.08.2011,5100475514,937,Michael Kennedy Funeral Service
Manchester City Council,Adult Social Care,Funeral and coroner related services,16.08.2011,5100475538,937,Michael Kennedy Funeral Service
Manchester City Council,Childrens Services,Furniture,16.08.2011,5100475680,785.81,Eps Supplies Ltd
Manchester City Council,Adult Social Care,General Payments not otherwise categorised,16.08.2011,5100475518,"9,649.03",NHS Manchester Primary Care Trust
Manchester City Council,Manchester Leisure,Grant and subscriptions awarded,16.08.2011,5100475376,"45,000.00",Carlisle City Council
Manchester City Council,Manchester Leisure,Grant and subscriptions awarded,16.08.2011,5100475492,"2,000.00",Stockport Mbc
Manchester City Council,Manchester Leisure,Grant and subscriptions awarded,16.08.2011,5100475484,"1,000.00",The Portico Library
Manchester City Council,Childrens Services,Grant and subscriptions awarded,16.08.2011,5100475572,"3,813.50",Fischer Education Project Ltd
Manchester City Council,Learning Disabilities PB,Grant and subscriptions awarded,16.08.2011,5100475319,"2,498.25",Manchester People First
Manchester City Council,Chief Executives,Hire of Equipment,16.08.2011,5100475530,"-4,293.00",Daytona Stage Hire
Manchester City Council,Childrens Services,Home Care ,16.08.2011,5100475543,"4,600.00",Education Business Solutions
Manchester City Council,Childrens Services,Home Care ,16.08.2011,5100475545,"1,709.40",Education Business Solutions
Manchester City Council,Adult Social Care,Landline Telephone,16.08.2011,1902564601,569.05,BT PLC
Manchester City Council,Adult Social Care,Landline Telephone,16.08.2011,1902748190,505.04,Cable & Wireless UK
Manchester City Council,Childrens Services,Payments for services,16.08.2011,5100475341,500,Active4u Ltd
Manchester City Council,Childrens Services,Payments for services,16.08.2011,5100475526,533,Eden Care(North West)Limited
Manchester City Council,Childrens Services,Payments for services,16.08.2011,5100474834,730.8,Redacted Personal Information
Manchester City Council,Childrens Services,Payments for services,16.08.2011,5100475561,"1,071.42",Redacted Personal Information
Manchester City Council,Childrens Services,Payments for services,16.08.2011,5100475549,"2,906.88",The Together Trust
Manchester City Council,Childrens Services,Payments for services,16.08.2011,5100475536,"2,353.63",The Together Trust
Manchester City Council,Childrens Services,Payments for services,16.08.2011,5100475550,"2,289.64",The Together Trust
Manchester City Council,Childrens Services,Payments for services,16.08.2011,5100475542,"1,973.88",The Together Trust
Manchester City Council,Childrens Services,Payments for services,16.08.2011,5100475547,"1,700.22",The Together Trust
Manchester City Council,Childrens Services,Payments for services,16.08.2011,5100475555,"1,667.45",The Together Trust
Manchester City Council,Childrens Services,Payments for services,16.08.2011,5100475548,"1,144.82",The Together Trust
Manchester City Council,Childrens Services,Payments for services,16.08.2011,5100475528,"1,084.16",The Together Trust
Manchester City Council,Childrens Services,Payments for services,16.08.2011,5100475553,923.52,The Together Trust
Manchester City Council,Childrens Services,Payments for services,16.08.2011,5100475531,726.72,The Together Trust
Manchester City Council,Childrens Services,Payments for services,16.08.2011,5100475533,726.72,The Together Trust
Manchester City Council,Childrens Services,Payments for services,16.08.2011,5100475546,536.72,The Together Trust
Manchester City Council,Childrens Services,Payments for services,16.08.2011,5100475532,-726.72,The Together Trust
Manchester City Council,Manchester Leisure,Payments to Sub-Contractors,16.08.2011,5100475431,672,Glendale Managed Services
Manchester City Council,Hospitality + Trading Services,Payments to Sub-Contractors,16.08.2011,5100475216,-833.34,M J Hulton Ltd
Manchester City Council,Hospitality + Trading Services,Postage,16.08.2011,5100475335,"1,918.58",Royal Mail Group Plc
Manchester City Council,Regeneration Finance,Postage,16.08.2011,5100475044,656.76,Royal Mail Group Ltd
Manchester City Council,Manchester Leisure,Proffesional fees,16.08.2011,5100475479,528,Creative Concern
Manchester City Council,Housing Revenue Account,Proffesional fees,16.08.2011,5100475198,"-1,282.05",ENER-G Switch 2 Ltd
Manchester City Council,Hospitality + Trading Services,Purchase of stores for re-distribution,16.08.2011,5100475578,"3,750.17",Burdens Ltd
Manchester City Council,Adult Social Care,Radio Charges,16.08.2011,5100475439,"1,008.71",Adt Fire & Security Plc
Manchester City Council,Adult Social Care,Radio Charges,16.08.2011,5100475440,-757.91,Adt Fire & Security Plc
Manchester City Council,Adult Social Care,Radio Charges,16.08.2011,5100475454,"1,814.10",Siemens Financial Services Ltd
Manchester City Council,Manchester Leisure,Refuse Collection,16.08.2011,5100475566,"2,828.00",Dickinson Environmental
Manchester City Council,Manchester Leisure,Refuse Collection,16.08.2011,5100475568,"2,140.00",Dickinson Environmental
Manchester City Council,Environment and Operations,Refuse Collection,16.08.2011,5100475481,607.1,Enterprise Manchester Partnership
Manchester City Council,Regeneration Finance,Renoval and Storage of Furniture,16.08.2011,5100475287,"1,329.41",BCL
Manchester City Council,Adult Social Care,Rents,16.08.2011,5100475363,"1,125.75",St Pauls Church Hall
Manchester City Council,Childrens Services,Rents,16.08.2011,5100475618,"10,337.00",Diocese of Salford
Manchester City Council,Learning Disabilities PB,Residential Care Homes Payments,16.08.2011,5100475313,"2,193.14",Redacted Personal Information
Manchester City Council,Childrens Services,Signers/Interpreters,16.08.2011,5100475390,"5,042.13",Black Health Agency
Manchester City Council,Childrens Services,Signers/Interpreters,16.08.2011,5100475400,"3,934.65",Black Health Agency
Manchester City Council,Childrens Services,Signers/Interpreters,16.08.2011,5100475398,"1,560.60",Black Health Agency
Manchester City Council,Childrens Services,Signers/Interpreters,16.08.2011,5100475389,"1,397.00",Black Health Agency
Manchester City Council,Childrens Services,Signers/Interpreters,16.08.2011,5100475411,925,Salford City Council
Manchester City Council,Regeneration Finance,Signers/Interpreters,16.08.2011,5100472239,784.8,Interpreter Booking Services
Manchester City Council,Corporate Services,Storage Costs,16.08.2011,5100475388,"1,807.38",Box-It (NW)
Manchester City Council,Childrens Services,Supported Accommodation,16.08.2011,5100475421,557.54,Intact Project Ltd
Manchester City Council,Childrens Services,Training and Development,16.08.2011,5100475367,"7,050.00",Sticky Change (Partners) Ltd
Manchester City Council,Hospitality + Trading Services,Vehicle Hire Costs,16.08.2011,5100475137,580,Vale Engineering (York) Ltd
Manchester City Council,Adult Social Care,Works and associated costs for Land and Buildings,16.08.2011,5100475434,"152,849.00",F Parkinson Limited
Manchester City Council,Childrens Services,Works and associated costs for Land and Buildings,16.08.2011,5100475356,"69,200.00",F Parkinson Limited
Manchester City Council,Childrens Services,Works and associated costs for Land and Buildings,16.08.2011,5100475353,"11,022.00",F Parkinson Limited
Manchester City Council,Childrens Services,Works and associated costs for Land and Buildings,16.08.2011,5100475365,"213,517.00",GB Building Solutions Ltd
Manchester City Council,Manchester City Galleries,Works and associated costs for Land and Buildings,16.08.2011,5100475495,508.38,Blackbox-AV
Manchester City Council,Childrens Services,Agency staff provision,17.08.2011,5100476075,"1,254.00",PULSE
Manchester City Council,Childrens Services,Agency staff provision,17.08.2011,5100476048,"-1,254.00",PULSE
Manchester City Council,Chief Executives,Agency staff provision,17.08.2011,5100475708,642.25,Reed Employment Plc
Manchester City Council,Childrens Services,Bed & Breakfast Acc,17.08.2011,5100475692,840,Intact Project Ltd
Manchester City Council,Childrens Services,Bed & Breakfast Acc,17.08.2011,5100475693,840,Intact Project Ltd
Manchester City Council,Hospitality + Trading Services,Building Materials for direct delivery,17.08.2011,5100476076,"1,100.00",P.F. Cusack (Tools Supplies) Ltd
Manchester City Council,Housing General Fund,Building Works,17.08.2011,1902749820,"2,010.00",Handicare  UK Ltd
Manchester City Council,Childrens Services,Car Parking Permits,17.08.2011,1902748498,"4,657.04",National Car Parks Manchester Ltd
Manchester City Council,Childrens Services,Car Parking Permits,17.08.2011,1902748497,"1,569.50",National Car Parks Manchester Ltd
Manchester City Council,Corporate Services,Car Parking Permits,17.08.2011,5100475755,"9,391.26",National Car Parks Ltd Season Ticke
Manchester City Council,Adult Social Care,Carer Support Payments ,17.08.2011,5100475759,"5,619.00",Just Checking Ltd
Manchester City Council,Environment and Operations,Cash Collection,17.08.2011,5100476039,"1,871.30",National Car Parks Manchester Ltd
Manchester City Council,Hospitality + Trading Services,Catering Provisions,17.08.2011,1902755263,"1,397.19",Brake Bros Foodservice Ltd
Manchester City Council,Hospitality + Trading Services,Catering Provisions,17.08.2011,1902755263,"1,184.58",Brake Bros Foodservice Ltd
Manchester City Council,Hospitality + Trading Services,Catering Provisions,17.08.2011,1902755289,973.06,Brake Bros Foodservice Ltd
Manchester City Council,Hospitality + Trading Services,Catering Provisions,17.08.2011,1902755289,656.52,Brake Bros Foodservice Ltd
Manchester City Council,Hospitality + Trading Services,Catering Provisions,17.08.2011,1902755289,638.05,Brake Bros Foodservice Ltd
Manchester City Council,Hospitality + Trading Services,Catering Provisions,17.08.2011,1902755289,550.73,Brake Bros Foodservice Ltd
Manchester City Council,Hospitality + Trading Services,Catering Provisions,17.08.2011,1902755289,542.27,Brake Bros Foodservice Ltd
Manchester City Council,Adult Social Care,Catering Provisions,17.08.2011,1902754367,739.14,Redacted Personal Information
Manchester City Council,Hospitality + Trading Services,Cleaning Equipment,17.08.2011,5100476004,"2,725.64",J.C.Decaux Uk Limited
Manchester City Council,Hospitality + Trading Services,Cleaning Equipment and Materials,17.08.2011,5100475858,"1,052.45",Bpi Recycled Products Plc
Manchester City Council,Hospitality + Trading Services,Cleaning Equipment and Materials,17.08.2011,5100475666,510.9,Bpi Recycled Products Plc
Manchester City Council,Chief Executives,Construction Works,17.08.2011,5100476038,800,Redacted Personal Information
Manchester City Council,Chief Executives,Construction Works,17.08.2011,5100476053,746.11,Wilde Consultants Ltd
Manchester City Council,Childrens Services,Consultants Fees,17.08.2011,5100476148,"3,445.93",Davis Langdon
Manchester City Council,Corporate Services,Consultants Fees,17.08.2011,5100475689,"8,253.36",Mace Ltd
Manchester City Council,Corporate Services,Consultants Fees,17.08.2011,5100450315,"6,419.28",Mace Ltd
Manchester City Council,Environment and Operations,Equipment,17.08.2011,5100475884,"13,996.50",Egbert H Taylor & Company Ltd
Manchester City Council,Environment and Operations,Equipment,17.08.2011,5100475885,"13,996.50",Egbert H Taylor & Company Ltd
Manchester City Council,Adult Social Care,Equipment,17.08.2011,5100476110,847.6,Aidapt Bathrooms Ltd
Manchester City Council,Adult Social Care,Equipment,17.08.2011,5100476106,727.6,Aidapt Bathrooms Ltd
Manchester City Council,Adult Social Care,Equipment,17.08.2011,5100476161,"1,495.50",Patterson Medical Ltd
Manchester City Council,Chief Executives,Equipment,17.08.2011,5100475971,"40,175.00",powerPerfector Ltd
Manchester City Council,Corporate Services,Fees,17.08.2011,1902748541,"30,720.88",Equita Ltd
Manchester City Council,Corporate Services,Fees,17.08.2011,1902748541,"-30,720.88",Equita Ltd
Manchester City Council,Corporate Services,Fees,17.08.2011,1902749132,"8,611.18",Marston Group Limited
Manchester City Council,Corporate Services,Fees,17.08.2011,1902749132,"-8,611.18",Marston Group Limited
Manchester City Council,Corporate Services,Fees,17.08.2011,1902749084,"21,732.48",Rossendales Ltd
Manchester City Council,Corporate Services,Fees,17.08.2011,1902749084,"-21,732.48",Rossendales Ltd
Manchester City Council,Childrens Services,Foster Payments,17.08.2011,1902741330,641.4,Barnardos Manchester Leaving Care S
Manchester City Council,Hospitality + Trading Services,Furniture,17.08.2011,5100476137,"21,825.00",Sico Europe Ltd
Manchester City Council,Hospitality + Trading Services,Furniture,17.08.2011,5100476134,645,Sico Europe Ltd
Manchester City Council,Adult Social Care,Furniture,17.08.2011,5100475741,902.66,The Furnishing Service Ltd
Manchester City Council,Adult Social Care,Furniture,17.08.2011,5100475920,595.06,The Furnishing Service Ltd
Manchester City Council,Adult Social Care,Furniture,17.08.2011,5100476049,577.18,The Furnishing Service Ltd
Manchester City Council,Childrens Services,Furniture,17.08.2011,5100475878,569,Yorkshire Purchasing
Manchester City Council,Housing Revenue Account,Gas,17.08.2011,5100476133,"51,445.91",Utilicom Ltd
Manchester City Council,Manchester Leisure,Grant and subscriptions awarded,17.08.2011,5100475879,"10,000.00",University Of Manchester
Manchester City Council,Manchester Leisure,Grant and subscriptions awarded,17.08.2011,5100475879,"4,583.00",University Of Manchester
Manchester City Council,Childrens Services,Grant and subscriptions awarded,17.08.2011,5100474407,"30,000.00",Eteach UK Ltd
Manchester City Council,Childrens Services,Grant and subscriptions awarded,17.08.2011,5100475571,"-3,813.50",Fischer Education Project Ltd
Manchester City Council,Childrens Services,Grant and subscriptions awarded,17.08.2011,5100475687,"1,341.00",Greater Manchester Coalition Of Dis
Manchester City Council,Childrens Services,Grant and subscriptions awarded,17.08.2011,5100475724,"5,848.00",National Govenors Association
Manchester City Council,Hospitality + Trading Services,Hire of Equipment,17.08.2011,5100476004,"50,325.24",J.C.Decaux Uk Limited
Manchester City Council,Chief Executives,Hire of Equipment,17.08.2011,5100475537,"3,593.00",Daytona Stage Hire
Manchester City Council,Hospitality + Trading Services,Hire of Machinery,17.08.2011,5100475969,"29,854.20",H & C Plant Hire Ltd
Manchester City Council,Hospitality + Trading Services,Hire of Machinery,17.08.2011,5100475959,"7,000.00",Worsley Plant Ltd
Manchester City Council,Hospitality + Trading Services,Hire of Machinery,17.08.2011,5100475959,680,Worsley Plant Ltd
Manchester City Council,Adult Social Care,Landline Telephone,17.08.2011,1902749712,837.06,Cable & Wireless UK
Manchester City Council,Corporate Services,Landline Telephone,17.08.2011,1902749681,931.51,Cable & Wireless UK
Manchester City Council,Regeneration Finance,Landline Telephone,17.08.2011,1902749522,792.31,BT PLC
Manchester City Council,Adult Social Care,Compensation Payments,17.08.2011,1902749672,"9,250.00",Redacted Personal Information
Manchester City Council,Highways Services,Compensation Payments,17.08.2011,1902749678,"8,300.00",DBS Law Ltd
Manchester City Council,Childrens Services,Payments for services,17.08.2011,5100475738,"3,835.00",Bike Right
Manchester City Council,Learning Disabilities PB,Payments for services,17.08.2011,5100475674,"2,519.16",Dawaking Care Ltd
Manchester City Council,Environment and Operations,Payments to Contractors,17.08.2011,5100476138,"1,957.00",Animal Wardens Ltd
Manchester City Council,Environment and Operations,Payments to Contractors,17.08.2011,5100476079,722,Animal Wardens Ltd
Manchester City Council,Hospitality + Trading Services,Payments to Sub-Contractors,17.08.2011,5100475974,"1,725.00",A1 Drainmasters Ltd
Manchester City Council,Environment and Operations,Payments to Sub-Contractors,17.08.2011,5100475908,608.72,Community Security (North West)
Manchester City Council,Environment and Operations,Payments to Sub-Contractors,17.08.2011,5100475688,"4,080.00",Manchester Dogs Home
Manchester City Council,Highways Services,Payments to Sub-Contractors,17.08.2011,5100476053,"5,076.44",Wilde Consultants Ltd
Manchester City Council,Childrens Services,Personal needs of client,17.08.2011,1902746648,700,Brooklands Estate Agents
Manchester City Council,Environment and Operations,Postage,17.08.2011,5100476033,"1,383.75",Royal Mail Group Plc
Manchester City Council,Environment and Operations,Postage,17.08.2011,5100476054,"1,091.80",Royal Mail Group Plc
Manchester City Council,Corporate Services,Postage,17.08.2011,5100475636,"6,593.78",Royal Mail Group Plc
Manchester City Council,Corporate Services,Postage,17.08.2011,5100475637,"1,213.79",Royal Mail Group Plc
Manchester City Council,Corporate Services,Postage,17.08.2011,5100475623,"1,073.38",Royal Mail Group Plc
Manchester City Council,Chief Executives,Postage,17.08.2011,5100476020,"45,702.69",Royal Mail Group Plc
Manchester City Council,Chief Executives,Postage,17.08.2011,5100476030,"2,315.74",Royal Mail Group Plc
Manchester City Council,Adult Social Care,Proffesional fees,17.08.2011,5100465177,"5,000.00",Salford City Council
Manchester City Council,Childrens Services,Proffesional fees,17.08.2011,1902740633,910.7,Barnardos Manchester Leaving Care S
Manchester City Council,Childrens Services,Proffesional fees,17.08.2011,5100476109,"12,000.00",Manchester Metropolitan University
Manchester City Council,Childrens Services,Proffesional fees,17.08.2011,5100476044,"11,891.00",Manchester Metropolitan University
Manchester City Council,Childrens Services,Proffesional fees,17.08.2011,5100476142,"4,232.00",Northern Way Properties Limited
Manchester City Council,Corporate Services,Proffesional fees,17.08.2011,5100476040,"2,673.67",Cles Consulting
Manchester City Council,Corporate Services,Proffesional fees,17.08.2011,5100475736,"4,980.04",Trafford Mbc
Manchester City Council,Highways Services,Proffesional fees,17.08.2011,5100475761,"2,060.43",AECOM Limited
Manchester City Council,Chief Executives,Publications,17.08.2011,5100475505,"2,044.00",Sweet & Maxwell Ltd
Manchester City Council,Hospitality + Trading Services,Purchase of stores for re-distribution,17.08.2011,5100475903,820,Ecomix Concrete Ltd
Manchester City Council,Hospitality + Trading Services,Purchase of stores for re-distribution,17.08.2011,5100475948,643,Ecomix Concrete Ltd
Manchester City Council,Hospitality + Trading Services,Purchase of stores for re-distribution,17.08.2011,5100475954,576,Ecomix Concrete Ltd
Manchester City Council,Environment and Operations,Radio Charges,17.08.2011,5100475424,756,Radio Links Communications Ltd
Manchester City Council,Hospitality + Trading Services,Refuse Collection,17.08.2011,5100475658,674.39,Bpi Recycled Products Plc
Manchester City Council,Hospitality + Trading Services,Refuse Collection,17.08.2011,5100475646,521.12,Bpi Recycled Products Plc
Manchester City Council,Adult Social Care,Rents,17.08.2011,5100476015,"26,770.70",Cascade Homes Ltd
Manchester City Council,Adult Social Care,Rents,17.08.2011,5100476013,"25,646.12",Cascade Homes Ltd
Manchester City Council,Adult Social Care,Rents,17.08.2011,5100476092,"2,663.96",Willow Park Housing Trust
Manchester City Council,Adult Social Care,Rents,17.08.2011,5100476094,631.96,Willow Park Housing Trust
Manchester City Council,Childrens Services,Rents,17.08.2011,1902741330,"3,125.15",Barnardos Manchester Leaving Care S
Manchester City Council,Chief Executives,Rents,17.08.2011,5100475723,"7,454.91",Portakabin Ltd
Manchester City Council,Childrens Services,Subsistence and Conference Expenses,17.08.2011,5100474846,"1,850.00",Helen Crane Training & Consultancy
Manchester City Council,Manchester Leisure,Third party payments to other Local Authorities,17.08.2011,5100475642,-963.9,University Of Manchester
Manchester City Council,Hospitality + Trading Services,Tipping - Tonnage,17.08.2011,5100475984,504,J.Hopkins (Contractors) Ltd.
Manchester City Council,Hospitality + Trading Services,Training and Development,17.08.2011,5100475719,930,Myerscough College
Manchester City Council,Adult Social Care,Training and Development,17.08.2011,5100475668,"2,440.00",University Of Manchester
Manchester City Council,Adult Social Care,Training and Development,17.08.2011,5100475669,"2,440.00",University Of Manchester
Manchester City Council,Adult Social Care,Training and Development,17.08.2011,5100475670,"2,440.00",University Of Manchester
Manchester City Council,Adult Social Care,Training and Development,17.08.2011,5100475671,"2,440.00",University Of Manchester
Manchester City Council,Adult Social Care,Training and Development,17.08.2011,5100475673,"2,440.00",University Of Manchester
Manchester City Council,Adult Social Care,Training and Development,17.08.2011,5100475660,850,University Of Manchester
Manchester City Council,Adult Social Care,Training and Development,17.08.2011,5100475661,850,University Of Manchester
Manchester City Council,Adult Social Care,Training and Development,17.08.2011,5100475662,850,University Of Manchester
Manchester City Council,Adult Social Care,Training and Development,17.08.2011,5100475663,850,University Of Manchester
Manchester City Council,Adult Social Care,Training and Development,17.08.2011,5100475665,850,University Of Manchester
Manchester City Council,Adult Social Care,Training and Development,17.08.2011,5100475659,565,University Of Manchester
Manchester City Council,Childrens Services,Training and Development,17.08.2011,5100475596,557.65,Essential Papers Ltd
Manchester City Council,Hospitality + Trading Services,Transport Coach Hire,17.08.2011,5100474770,807.37,Orion Travel
Manchester City Council,Chief Executives,Travel,17.08.2011,5100476087,510,Stagecoach Manchester
Manchester City Council,Insurance Fund,Vehicle & Plant Ins,17.08.2011,5100476085,"73,252.13",Zurich Insurance
Manchester City Council,Hospitality + Trading Services,Vehicle Costs,17.08.2011,5100475901,680,Fleet Parts Limited
Manchester City Council,Hospitality + Trading Services,Vehicle Parts/Spares,17.08.2011,5100475740,625,Northern Commercials (Mirfield) Ltd
